Workbook

Sheet QMIN
A1: True_Positive | B1: Id | C1: PREDICTED GROUP | D1: GROUP QC | E1: PREDICTED MINERAL | F1: MINERAL QC | G1: 2nd PREDICT MINERAL | H1: FORMULA | I1: REFERENCIA | J1: REFERENCE MINERAL | K1: AL2O3 | L1: BAO | M1: CAO | N1: CE2O3 | O1: CL | P1: COO | Q1: CR2O3 | R1: CUO | S1: F | T1: FE2O3 | U1: FEOT | V1: H2O | W1: HFO2 | X1: K2O | Y1: LA2O3 | Z1: MGO | AA1: MNO | AB1: NA2O | AC1: NB2O5 | AD1: ND2O3 | AE1: NIO | AF1: P2O5 | AG1: PR2O3 | AH1: S | AI1: SIO2 | AJ1: SM2O3 | AK1: SRO | AL1: TA2O5 | AM1: THO | AN1: TIO2 | AO1: UO2 | AP1: V2O3 | AQ1: Y2O3 | AR1: ZNO | AS1: ZRO2 | AT1: TOTAL
A2: 1 | B2: 22053 | C2: AMPHIBOLES | D2: MEDIUM QUALITY | E2: PARGASITE | F2: MEDIUM QUALITY | G2: KAERSUTITE | H2: (K0.2Na0.7)Σ0.9(Ca1.9)Σ1.9(Ti0.1Cr0.1Fe0.2Al0.8Fe0.4Mg3.1)Σ4.7(Al1.9Si6.0)Σ7.9O22(OH1.8)Σ1.9 | I2: Costa 2008 | J2: Amphibole | K2: 15.23 | L2: 0 | M2: 12.27 | N2: 0 | O2: 0 | P2: 0 | Q2: 0.69 | R2: 0 | S2: 0 | T2: 1.71 | U2: 7.24 | V2: 0 | W2: 0 | X2: 1.12 | Y2: 0 | Z2: 14.54 | AA2: 0.08 | AB2: 2.4 | AC2: 0 | AD2: 0 | AE2: 0 | AF2: 0 | AG2: 0 | AH2: 0 | AI2: 40.69 | AJ2: 0 | AK2: 0 | AL2: 0 | AM2: 0 | AN2: 1.02 | AO2: 0 | AP2: 0 | AQ2: 0 | AR2: 0 | AS2: 0 | AT2: 96.99
A3: 1 | B3: 22054 | C3: AMPHIBOLES | D3: MEDIUM QUALITY | E3: PARGASITE | F3: MEDIUM QUALITY | G3: KAERSUTITE | H3: (K0.2Na0.7)Σ0.9(Ca1.9)Σ1.9(Ti0.1Cr0.1Fe0.2Al0.8Fe0.4Mg3.1)Σ4.7(Al2.0Si6.0)Σ8.0O22(OH1.8)Σ1.9 | I3: Costa 2008 | J3: Amphibole | K3: 15.7 | L3: 0 | M3: 12.22 | N3: 0 | O3: 0 | P3: 0 | Q3: 0.7 | R3: 0 | S3: 0 | T3: 0.33 | U3: 7.8 | V3: 0 | W3: 0 | X3: 1.11 | Y3: 0 | Z3: 14.35 | AA3: 0.04 | AB3: 2.33 | AC3: 0 | AD3: 0 | AE3: 0 | AF3: 0 | AG3: 0 | AH3: 0 | AI3: 40.81 | AJ3: 0 | AK3: 0 | AL3: 0 | AM3: 0 | AN3: 1.14 | AO3: 0 | AP3: 0 | AQ3: 0 | AR3: 0 | AS3: 0 | AT3: 96.53
A4: 1 | B4: 22055 | C4: AMPHIBOLES | D4: MEDIUM QUALITY | E4: PARGASITE | F4: MEDIUM QUALITY | G4: KAERSUTITE | H4: (K0.2Na0.7)Σ0.9(Ca1.9)Σ1.9(Ti0.1Cr0.1Fe0.2Al0.8Fe0.4Mg3.1)Σ4.7(Al1.9Si5.9)Σ7.8O22(OH1.8)Σ1.9 | I4: Costa 2008 | J4: Amphibole | K4: 15.28 | L4: 0 | M4: 12.52 | N4: 0 | O4: 0 | P4: 0 | Q4: 0.74 | R4: 0 | S4: 0 | T4: 1.1 | U4: 7.75 | V4: 0 | W4: 0 | X4: 1.16 | Y4: 0 | Z4: 14.28 | AA4: 0.04 | AB4: 2.46 | AC4: 0 | AD4: 0 | AE4: 0 | AF4: 0 | AG4: 0 | AH4: 0 | AI4: 40.9 | AJ4: 0 | AK4: 0 | AL4: 0 | AM4: 0 | AN4: 0.96 | AO4: 0 | AP4: 0 | AQ4: 0 | AR4: 0 | AS4: 0 | AT4: 97.19
A5: 1 | B5: 22056 | C5: AMPHIBOLES | D5: MEDIUM QUALITY | E5: KAERSUTITE | F5: LOW QUALITY | G5: PARGASITE | H5: (K0.2Na0.7)Σ0.9(Ca1.9)Σ1.9(Ti0.1Cr0.1Fe0.2Al0.8Fe0.4Mg3.0)Σ4.6(Al1.9Si6.0)Σ7.9O22(O0.2OH1.8)Σ2.0 | I5: Costa 2008 | J5: Amphibole | K5: 15.47 | L5: 0 | M5: 12.11 | N5: 0 | O5: 0 | P5: 0 | Q5: 0.75 | R5: 0 | S5: 0 | T5: 0 | U5: 8.96 | V5: 0 | W5: 0 | X5: 1.23 | Y5: 0 | Z5: 14.15 | AA5: 0.04 | AB5: 2.53 | AC5: 0 | AD5: 0 | AE5: 0 | AF5: 0 | AG5: 0 | AH5: 0 | AI5: 40.74 | AJ5: 0 | AK5: 0 | AL5: 0 | AM5: 0 | AN5: 1.34 | AO5: 0 | AP5: 0 | AQ5: 0 | AR5: 0 | AS5: 0 | AT5: 97.32
A6: 1 | B6: 22057 | C6: AMPHIBOLES | D6: MEDIUM QUALITY | E6: PARGASITE | F6: LOW QUALITY | G6: KAERSUTITE | H6: (K0.2Na0.7)Σ0.9(Ca1.9)Σ1.9(Ti0.1Cr0.1Fe0.2Al0.8Fe0.4Mg3.0)Σ4.6(Al1.9Si6.1)Σ8.0O22(O0.2OH1.8)Σ2.0 | I6: Costa 2008 | J6: Amphibole | K6: 15.55 | L6: 0 | M6: 11.67 | N6: 0 | O6: 0 | P6: 0 | Q6: 0.82 | R6: 0 | S6: 0 | T6: 0 | U6: 8.39 | V6: 0 | W6: 0 | X6: 1.25 | Y6: 0 | Z6: 14.09 | AA6: 0.08 | AB6: 2.19 | AC6: 0 | AD6: 0 | AE6: 0 | AF6: 0 | AG6: 0 | AH6: 0 | AI6: 41.47 | AJ6: 0 | AK6: 0 | AL6: 0 | AM6: 0 | AN6: 1.09 | AO6: 0 | AP6: 0 | AQ6: 0 | AR6: 0 | AS6: 0 | AT6: 96.6
A7: 1 | B7: 22058 | C7: AMPHIBOLES | D7: MEDIUM QUALITY | E7: PARGASITE | F7: LOW QUALITY | G7: HORNBLENDE (SENSU LATO) | H7: (K0.2Na0.7)Σ0.9(Ca1.9)Σ1.9(Ti0.1Cr0.1Fe0.1Al0.8Fe0.4Mg3.1)Σ4.6(Al1.8Si6.2)Σ8.0O22(OH1.8)Σ1.9 | I7: Costa 2008 | J7: Amphibole | K7: 14.91 | L7: 0 | M7: 11.85 | N7: 0 | O7: 0 | P7: 0 | Q7: 0.75 | R7: 0 | S7: 0 | T7: 0 | U7: 9.41 | V7: 0 | W7: 0 | X7: 1.18 | Y7: 0 | Z7: 14.32 | AA7: 0 | AB7: 2.39 | AC7: 0 | AD7: 0 | AE7: 0 | AF7: 0 | AG7: 0 | AH7: 0 | AI7: 42.55 | AJ7: 0 | AK7: 0 | AL7: 0 | AM7: 0 | AN7: 1.14 | AO7: 0 | AP7: 0 | AQ7: 0 | AR7: 0 | AS7: 0 | AT7: 98.5
A8: 1 | B8: 22059 | C8: AMPHIBOLES | D8: MEDIUM QUALITY | E8: PARGASITE | F8: LOW QUALITY | G8: KAERSUTITE | H8: (K0.2Na0.7)Σ0.9(Ca1.9)Σ1.9(Ti0.1Cr0.1Fe0.1Al0.8Fe0.4Mg3.1)Σ4.6(Al1.8Si6.2)Σ8.0O22(O0.2OH1.8)Σ2.0 | I8: Costa 2008 | J8: Amphibole | K8: 14.99 | L8: 0 | M8: 11.82 | N8: 0 | O8: 0 | P8: 0 | Q8: 0.83 | R8: 0 | S8: 0 | T8: 0 | U8: 8.79 | V8: 0 | W8: 0 | X8: 1.2 | Y8: 0 | Z8: 14.18 | AA8: 0.03 | AB8: 2.34 | AC8: 0 | AD8: 0 | AE8: 0 | AF8: 0 | AG8: 0 | AH8: 0 | AI8: 42.04 | AJ8: 0 | AK8: 0 | AL8: 0 | AM8: 0 | AN8: 1.1 | AO8: 0 | AP8: 0 | AQ8: 0 | AR8: 0 | AS8: 0 | AT8: 97.32
A9: 1 | B9: 22060 | C9: AMPHIBOLES | D9: MEDIUM QUALITY | E9: PARGASITE | F9: LOW QUALITY | G9: KAERSUTITE | H9: (K0.2Na0.7)Σ0.9(Ca1.9)Σ1.9(Ti0.1Cr0.1Fe0.1Al0.8Fe0.4Mg3.0)Σ4.5(Al1.8Si6.1)Σ7.9O22(OH1.8)Σ1.9 | I9: Costa 2008 | J9: Amphibole | K9: 15.3 | L9: 0 | M9: 11.66 | N9: 0 | O9: 0 | P9: 0 | Q9: 0.71 | R9: 0 | S9: 0 | T9: 0 | U9: 8.99 | V9: 0 | W9: 0 | X9: 1.24 | Y9: 0 | Z9: 13.95 | AA9: 0.03 | AB9: 2.23 | AC9: 0 | AD9: 0 | AE9: 0 | AF9: 0 | AG9: 0 | AH9: 0 | AI9: 41.61 | AJ9: 0 | AK9: 0 | AL9: 0 | AM9: 0 | AN9: 1.18 | AO9: 0 | AP9: 0 | AQ9: 0 | AR9: 0 | AS9: 0 | AT9: 96.9
A10: 1 | B10: 22061 | C10: AMPHIBOLES | D10: MEDIUM QUALITY | E10: PARGASITE | F10: LOW QUALITY | G10: KAERSUTITE | H10: (K0.2Na0.5)Σ0.7(Ca1.9)Σ1.9(Ti0.1Cr0.1Fe0.1Al0.8Fe0.4Mg3.0)Σ4.5(Al1.8Si6.2)Σ8.0O22(OH1.8)Σ1.9 | I10: Costa 2008 | J10: Amphibole | K10: 14.98 | L10: 0 | M10: 11.86 | N10: 0 | O10: 0 | P10: 0 | Q10: 0.69 | R10: 0 | S10: 0 | T10: 0 | U10: 8.76 | V10: 0 | W10: 0 | X10: 1.2 | Y10: 0 | Z10: 14.13 | AA10: 0.01 | AB10: 1.9 | AC10: 0 | AD10: 0 | AE10: 0 | AF10: 0 | AG10: 0 | AH10: 0 | AI10: 41.99 | AJ10: 0 | AK10: 0 | AL10: 0 | AM10: 0 | AN10: 1.14 | AO10: 0 | AP10: 0 | AQ10: 0 | AR10: 0 | AS10: 0 | AT10: 96.66
A11: 1 | B11: 22062 | C11: AMPHIBOLES | D11: MEDIUM QUALITY | E11: PARGASITE | F11: LOW QUALITY | G11: KAERSUTITE | H11: (K0.2Na0.6)Σ0.8(Ca1.9)Σ1.9(Ti0.1Cr0.1Fe0.1Al0.8Fe0.4Mg3.0)Σ4.5(Al1.8Si6.2)Σ8.0O22(OH1.8)Σ1.9 | I11: Costa 2008 | J11: Amphibole | K11: 14.95 | L11: 0 | M11: 12 | N11: 0 | O11: 0 | P11: 0 | Q11: 0.66 | R11: 0 | S11: 0 | T11: 0 | U11: 9.13 | V11: 0 | W11: 0 | X11: 1.21 | Y11: 0 | Z11: 14.04 | AA11: 0.06 | AB11: 2.05 | AC11: 0 | AD11: 0 | AE11: 0 | AF11: 0 | AG11: 0 | AH11: 0 | AI11: 41.97 | AJ11: 0 | AK11: 0 | AL11: 0 | AM11: 0 | AN11: 1.15 | AO11: 0 | AP11: 0 | AQ11: 0 | AR11: 0 | AS11: 0 | AT11: 97.22
A12: 1 | B12: 22063 | C12: AMPHIBOLES | D12: MEDIUM QUALITY | E12: PARGASITE | F12: LOW QUALITY | G12: KAERSUTITE | H12: (K0.2Na0.7)Σ0.9(Ca1.9)Σ1.9(Ti0.1Cr0.1Fe0.2Al0.8Fe0.4Mg3.0)Σ4.6(Al1.8Si6.2)Σ8.0O22(OH1.8)Σ1.9 | I12: Costa 2008 | J12: Amphibole | K12: 14.81 | L12: 0 | M12: 11.82 | N12: 0 | O12: 0 | P12: 0 | Q12: 0.69 | R12: 0 | S12: 0 | T12: 0 | U12: 9.05 | V12: 0 | W12: 0 | X12: 1.17 | Y12: 0 | Z12: 14.03 | AA12: 0.08 | AB12: 2.48 | AC12: 0 | AD12: 0 | AE12: 0 | AF12: 0 | AG12: 0 | AH12: 0 | AI12: 42.07 | AJ12: 0 | AK12: 0 | AL12: 0 | AM12: 0 | AN12: 1.04 | AO12: 0 | AP12: 0 | AQ12: 0 | AR12: 0 | AS12: 0 | AT12: 97.24
A13: 1 | B13: 22064 | C13: AMPHIBOLES | D13: MEDIUM QUALITY | E13: PARGASITE | F13: LOW QUALITY | G13: KAERSUTITE | H13: (K0.2Na0.6)Σ0.8(Ca1.9)Σ1.9(Ti0.1Cr0.1Fe0.1Al0.8Fe0.4Mg3.0)Σ4.5(Al1.8Si6.2)Σ8.0O22(OH1.8)Σ1.9 | I13: Costa 2008 | J13: Amphibole | K13: 14.78 | L13: 0 | M13: 11.84 | N13: 0 | O13: 0 | P13: 0 | Q13: 0.76 | R13: 0 | S13: 0 | T13: 0 | U13: 8.89 | V13: 0 | W13: 0 | X13: 1.19 | Y13: 0 | Z13: 13.96 | AA13: 0.05 | AB13: 2.08 | AC13: 0 | AD13: 0 | AE13: 0 | AF13: 0 | AG13: 0 | AH13: 0 | AI13: 42 | AJ13: 0 | AK13: 0 | AL13: 0 | AM13: 0 | AN13: 1.14 | AO13: 0 | AP13: 0 | AQ13: 0 | AR13: 0 | AS13: 0 | AT13: 96.69
A14: 1 | B14: 22065 | C14: AMPHIBOLES | D14: MEDIUM QUALITY | E14: PARGASITE | F14: MEDIUM QUALITY | G14: KAERSUTITE | H14: (K0.3Na0.7)Σ1.0(Ca1.8Fe0.1)Σ1.9(Ti0.2Cr0.1Fe0.2Al0.8Fe0.4Mg3.0)Σ4.7(Al1.8Si6.2)Σ8.0O22(O0.4OH1.6)Σ2.0 | I14: Costa 2008 | J14: Amphibole | K14: 15.61 | L14: 0 | M14: 11.45 | N14: 0 | O14: 0 | P14: 0 | Q14: 0.44 | R14: 0 | S14: 0 | T14: 2.39 | U14: 5.74 | V14: 0 | W14: 0 | X14: 1.37 | Y14: 0 | Z14: 14.54 | AA14: 0.1 | AB14: 2.66 | AC14: 0 | AD14: 0 | AE14: 0 | AF14: 0 | AG14: 0 | AH14: 0 | AI14: 42.57 | AJ14: 0 | AK14: 0 | AL14: 0 | AM14: 0 | AN14: 2.12 | AO14: 0 | AP14: 0 | AQ14: 0 | AR14: 0 | AS14: 0 | AT14: 98.99
A15: 1 | B15: 22066 | C15: AMPHIBOLES | D15: MEDIUM QUALITY | E15: PARGASITE | F15: MEDIUM QUALITY | G15: KAERSUTITE | H15: (K0.3Na0.7)Σ1.0(Ca1.8Fe0.1)Σ1.9(Ti0.2Fe0.1Al0.8Fe0.4Mg3.0)Σ4.5(Al1.8Si6.2)Σ8.0O22(O0.3OH1.6)Σ1.9 | I15: Costa 2008 | J15: Amphibole | K15: 15.76 | L15: 0 | M15: 11.3 | N15: 0 | O15: 0 | P15: 0 | Q15: 0.37 | R15: 0 | S15: 0 | T15: 1.68 | U15: 6.52 | V15: 0 | W15: 0 | X15: 1.45 | Y15: 0 | Z15: 13.93 | AA15: 0.07 | AB15: 2.43 | AC15: 0 | AD15: 0 | AE15: 0 | AF15: 0 | AG15: 0 | AH15: 0 | AI15: 42.54 | AJ15: 0 | AK15: 0 | AL15: 0 | AM15: 0 | AN15: 1.97 | AO15: 0 | AP15: 0 | AQ15: 0 | AR15: 0 | AS15: 0 | AT15: 98.02
A16: 1 | B16: 22067 | C16: AMPHIBOLES | D16: MEDIUM QUALITY | E16: PARGASITE | F16: MEDIUM QUALITY | G16: KAERSUTITE | H16: (K0.3Na0.7)Σ1.0(Ca1.8Fe0.1)Σ1.9(Ti0.2Fe0.1Al0.8Fe0.4Mg3.0)Σ4.5(Al1.8Si6.2)Σ8.0O22(O0.4OH1.6)Σ2.0 | I16: Costa 2008 | J16: Amphibole | K16: 15.86 | L16: 0 | M16: 11.45 | N16: 0 | O16: 0 | P16: 0 | Q16: 0.4 | R16: 0 | S16: 0 | T16: 1.86 | U16: 5.69 | V16: 0 | W16: 0 | X16: 1.46 | Y16: 0 | Z16: 14.37 | AA16: 0.01 | AB16: 2.6 | AC16: 0 | AD16: 0 | AE16: 0 | AF16: 0 | AG16: 0 | AH16: 0 | AI16: 42.11 | AJ16: 0 | AK16: 0 | AL16: 0 | AM16: 0 | AN16: 2.12 | AO16: 0 | AP16: 0 | AQ16: 0 | AR16: 0 | AS16: 0 | AT16: 97.93
A17: 1 | B17: 22068 | C17: AMPHIBOLES | D17: MEDIUM QUALITY | E17: PARGASITE | F17: MEDIUM QUALITY | G17: KAERSUTITE | H17: (K0.3Na0.7)Σ1.0(Ca1.8Fe0.1)Σ1.9(Ti0.2Cr0.1Fe0.1Al0.8Fe0.4Mg3.0)Σ4.6(Al1.8Si6.2)Σ8.0O22(O0.3OH1.6)Σ1.9 | I17: Costa 2008 | J17: Amphibole | K17: 16.03 | L17: 0 | M17: 11.35 | N17: 0 | O17: 0 | P17: 0 | Q17: 0.45 | R17: 0 | S17: 0 | T17: 2.37 | U17: 5.65 | V17: 0 | W17: 0 | X17: 1.49 | Y17: 0 | Z17: 14.31 | AA17: 0.04 | AB17: 2.48 | AC17: 0 | AD17: 0 | AE17: 0 | AF17: 0 | AG17: 0 | AH17: 0 | AI17: 42.52 | AJ17: 0 | AK17: 0 | AL17: 0 | AM17: 0 | AN17: 2.11 | AO17: 0 | AP17: 0 | AQ17: 0 | AR17: 0 | AS17: 0 | AT17: 98.8
A18: 1 | B18: 22069 | C18: AMPHIBOLES | D18: MEDIUM QUALITY | E18: PARGASITE | F18: MEDIUM QUALITY | G18: KAERSUTITE | H18: (K0.3Na0.7)Σ1.0(Ca1.8Fe0.1)Σ1.9(Ti0.2Fe0.1Al0.8Fe0.4Mg3.0)Σ4.5(Al1.8Si6.2)Σ8.0O22(O0.4OH1.6)Σ2.0 | I18: Costa 2008 | J18: Amphibole | K18: 15.61 | L18: 0 | M18: 11.37 | N18: 0 | O18: 0 | P18: 0 | Q18: 0.38 | R18: 0 | S18: 0 | T18: 1.87 | U18: 6.33 | V18: 0 | W18: 0 | X18: 1.34 | Y18: 0 | Z18: 14.23 | AA18: 0.07 | AB18: 2.68 | AC18: 0 | AD18: 0 | AE18: 0 | AF18: 0 | AG18: 0 | AH18: 0 | AI18: 42.33 | AJ18: 0 | AK18: 0 | AL18: 0 | AM18: 0 | AN18: 2.18 | AO18: 0 | AP18: 0 | AQ18: 0 | AR18: 0 | AS18: 0 | AT18: 98.39
A19: 1 | B19: 22070 | C19: AMPHIBOLES | D19: MEDIUM QUALITY | E19: PARGASITE | F19: MEDIUM QUALITY | G19: KAERSUTITE | H19: (K0.2Na0.7)Σ0.9(Ca1.8Fe0.1)Σ1.9(Ti0.2Cr0.1Fe0.1Al0.8Fe0.4Mg3.0)Σ4.6(Al1.8Si6.2)Σ8.0O22(O0.2OH1.7)Σ1.9 | I19: Costa 2008 | J19: Amphibole | K19: 15.77 | L19: 0 | M19: 11.43 | N19: 0 | O19: 0 | P19: 0 | Q19: 0.52 | R19: 0 | S19: 0 | T19: 1.38 | U19: 6.71 | V19: 0 | W19: 0 | X19: 1.32 | Y19: 0 | Z19: 13.96 | AA19: 0.06 | AB19: 2.55 | AC19: 0 | AD19: 0 | AE19: 0 | AF19: 0 | AG19: 0 | AH19: 0 | AI19: 42.38 | AJ19: 0 | AK19: 0 | AL19: 0 | AM19: 0 | AN19: 1.85 | AO19: 0 | AP19: 0 | AQ19: 0 | AR19: 0 | AS19: 0 | AT19: 97.93
A20: 1 | B20: 22071 | C20: AMPHIBOLES | D20: MEDIUM QUALITY | E20: PARGASITE | F20: MEDIUM QUALITY | G20: KAERSUTITE | H20: (K0.3Na0.7)Σ1.0(Ca1.8Fe0.1)Σ1.9(Ti0.2Cr0.1Fe0.1Al0.8Fe0.4Mg3.0)Σ4.6(Al1.8Si6.2)Σ8.0O22(O0.2OH1.7)Σ1.9 | I20: Costa 2008 | J20: Amphibole | K20: 15.81 | L20: 0 | M20: 11.08 | N20: 0 | O20: 0 | P20: 0 | Q20: 0.48 | R20: 0 | S20: 0 | T20: 3.6 | U20: 4.72 | V20: 0 | W20: 0 | X20: 1.34 | Y20: 0 | Z20: 14.26 | AA20: 0.04 | AB20: 2.47 | AC20: 0 | AD20: 0 | AE20: 0 | AF20: 0 | AG20: 0 | AH20: 0 | AI20: 42.32 | AJ20: 0 | AK20: 0 | AL20: 0 | AM20: 0 | AN20: 1.76 | AO20: 0 | AP20: 0 | AQ20: 0 | AR20: 0 | AS20: 0 | AT20: 97.88
A21: 1 | B21: 22072 | C21: AMPHIBOLES | D21: MEDIUM QUALITY | E21: PARGASITE | F21: MEDIUM QUALITY | G21: KAERSUTITE | H21: (K0.3Na0.7)Σ1.0(Ca1.8Fe0.1)Σ1.9(Ti0.2Cr0.1Fe0.2Al0.8Fe0.4Mg3.0)Σ4.7(Al1.8Si6.2)Σ8.0O22(O0.4OH1.7)Σ2.1 | I21: Costa 2008 | J21: Amphibole | K21: 15.21 | L21: 0 | M21: 11.58 | N21: 0 | O21: 0 | P21: 0 | Q21: 0.45 | R21: 0 | S21: 0 | T21: 0 | U21: 8.06 | V21: 0 | W21: 0 | X21: 1.5 | Y21: 0 | Z21: 13.78 | AA21: 0.12 | AB21: 2.57 | AC21: 0 | AD21: 0 | AE21: 0 | AF21: 0 | AG21: 0 | AH21: 0 | AI21: 42.97 | AJ21: 0 | AK21: 0 | AL21: 0 | AM21: 0 | AN21: 2.17 | AO21: 0 | AP21: 0 | AQ21: 0 | AR21: 0 | AS21: 0 | AT21: 98.41
A22: 1 | B22: 22073 | C22: AMPHIBOLES | D22: MEDIUM QUALITY | E22: PARGASITE | F22: MEDIUM QUALITY | G22: KAERSUTITE | H22: (K0.2Na0.8)Σ1.0(Ca1.8Fe0.1)Σ1.9(Ti0.2Cr0.1Fe0.1Al0.8Fe0.4Mg3.0)Σ4.6(Al1.8Si6.2)Σ8.0O22(OH1.7)Σ1.8 | I22: Costa 2008 | J22: Amphibole | K22: 15.73 | L22: 0 | M22: 11.36 | N22: 0 | O22: 0 | P22: 0 | Q22: 0.56 | R22: 0 | S22: 0 | T22: 1.02 | U22: 6.57 | V22: 0 | W22: 0 | X22: 1.11 | Y22: 0 | Z22: 14.09 | AA22: 0.06 | AB22: 2.67 | AC22: 0 | AD22: 0 | AE22: 0 | AF22: 0 | AG22: 0 | AH22: 0 | AI22: 42.79 | AJ22: 0 | AK22: 0 | AL22: 0 | AM22: 0 | AN22: 1.7 | AO22: 0 | AP22: 0 | AQ22: 0 | AR22: 0 | AS22: 0 | AT22: 97.66
A23: 1 | B23: 22074 | C23: AMPHIBOLES | D23: MEDIUM QUALITY | E23: PARGASITE | F23: MEDIUM QUALITY | G23: KAERSUTITE | H23: (K0.3Na0.7)Σ1.0(Ca1.8Fe0.1)Σ1.9(Ti0.2Fe0.2Al0.8Fe0.4Mg3.0)Σ4.6(Al1.8Si6.2)Σ8.0O22(O0.4OH1.6)Σ2.0 | I23: Costa 2008 | J23: Amphibole | K23: 15.6 | L23: 0 | M23: 11.57 | N23: 0 | O23: 0 | P23: 0 | Q23: 0.36 | R23: 0 | S23: 0 | T23: 0 | U23: 7.82 | V23: 0 | W23: 0 | X23: 1.48 | Y23: 0 | Z23: 13.62 | AA23: 0.09 | AB23: 2.62 | AC23: 0 | AD23: 0 | AE23: 0 | AF23: 0 | AG23: 0 | AH23: 0 | AI23: 42.55 | AJ23: 0 | AK23: 0 | AL23: 0 | AM23: 0 | AN23: 2.26 | AO23: 0 | AP23: 0 | AQ23: 0 | AR23: 0 | AS23: 0 | AT23: 97.97
A24: 1 | B24: 22075 | C24: AMPHIBOLES | D24: MEDIUM QUALITY | E24: PARGASITE | F24: MEDIUM QUALITY | G24: KAERSUTITE | H24: (K0.3Na0.7)Σ1.0(Ca1.8Fe0.1)Σ1.9(Ti0.2Cr0.1Fe0.1Al0.8Fe0.4Mg3.0)Σ4.6(Al1.8Si6.2)Σ8.0O22(O0.3OH1.7)Σ2.0 | I24: Costa 2008 | J24: Amphibole | K24: 15.62 | L24: 0 | M24: 11.57 | N24: 0 | O24: 0 | P24: 0 | Q24: 0.47 | R24: 0 | S24: 0 | T24: 0.31 | U24: 7.64 | V24: 0 | W24: 0 | X24: 1.52 | Y24: 0 | Z24: 13.77 | AA24: 0 | AB24: 2.24 | AC24: 0 | AD24: 0 | AE24: 0 | AF24: 0 | AG24: 0 | AH24: 0 | AI24: 42.54 | AJ24: 0 | AK24: 0 | AL24: 0 | AM24: 0 | AN24: 2.12 | AO24: 0 | AP24: 0 | AQ24: 0 | AR24: 0 | AS24: 0 | AT24: 97.8
A25: 1 | B25: 22076 | C25: AMPHIBOLES | D25: MEDIUM QUALITY | E25: PARGASITE | F25: MEDIUM QUALITY | G25: KAERSUTITE | H25: (K0.3Na0.6)Σ0.9(Ca1.8Fe0.1)Σ1.9(Ti0.2Cr0.1Fe0.2Al0.8Fe0.4Mg3.0)Σ4.7(Al1.8Si6.2)Σ8.0O22(O0.3OH1.6)Σ1.9 | I25: Costa 2008 | J25: Amphibole | K25: 15.38 | L25: 0 | M25: 11.38 | N25: 0 | O25: 0 | P25: 0 | Q25: 0.48 | R25: 0 | S25: 0 | T25: 1.86 | U25: 6.5 | V25: 0 | W25: 0 | X25: 1.54 | Y25: 0 | Z25: 13.79 | AA25: 0.09 | AB25: 2.02 | AC25: 0 | AD25: 0 | AE25: 0 | AF25: 0 | AG25: 0 | AH25: 0 | AI25: 42.54 | AJ25: 0 | AK25: 0 | AL25: 0 | AM25: 0 | AN25: 2.11 | AO25: 0 | AP25: 0 | AQ25: 0 | AR25: 0 | AS25: 0 | AT25: 97.69
A26: 1 | B26: 22077 | C26: AMPHIBOLES | D26: MEDIUM QUALITY | E26: PARGASITE | F26: MEDIUM QUALITY | G26: KAERSUTITE | H26: (K0.3Na0.7)Σ1.0(Ca1.8Fe0.1)Σ1.9(Ti0.2Cr0.1Fe0.1Al0.8Fe0.4Mg3.0)Σ4.6(Al1.8Si6.2)Σ8.0O22(O0.4OH1.6)Σ2.0 | I26: Costa 2008 | J26: Amphibole | K26: 15.33 | L26: 0 | M26: 11.29 | N26: 0 | O26: 0 | P26: 0 | Q26: 0.53 | R26: 0 | S26: 0 | T26: 0.16 | U26: 7.77 | V26: 0 | W26: 0 | X26: 1.55 | Y26: 0 | Z26: 13.8 | AA26: 0.07 | AB26: 2.53 | AC26: 0 | AD26: 0 | AE26: 0 | AF26: 0 | AG26: 0 | AH26: 0 | AI26: 42.72 | AJ26: 0 | AK26: 0 | AL26: 0 | AM26: 0 | AN26: 2.11 | AO26: 0 | AP26: 0 | AQ26: 0 | AR26: 0 | AS26: 0 | AT26: 97.86
A27: 1 | B27: 22078 | C27: AMPHIBOLES | D27: MEDIUM QUALITY | E27: PARGASITE | F27: MEDIUM QUALITY | G27: KAERSUTITE | H27: (K0.3Na0.6)Σ0.9(Ca1.8Fe0.1)Σ1.9(Ti0.3Cr0.1Fe0.2Al0.8Fe0.4Mg3.0)Σ4.8(Al1.8Si6.2)Σ8.0O22(O0.4OH1.6)Σ2.0 | I27: Costa 2008 | J27: Amphibole | K27: 15.31 | L27: 0 | M27: 11.65 | N27: 0 | O27: 0 | P27: 0 | Q27: 0.44 | R27: 0 | S27: 0 | T27: 0 | U27: 8 | V27: 0 | W27: 0 | X27: 1.59 | Y27: 0 | Z27: 13.76 | AA27: 0.1 | AB27: 2.51 | AC27: 0 | AD27: 0 | AE27: 0 | AF27: 0 | AG27: 0 | AH27: 0 | AI27: 42.1 | AJ27: 0 | AK27: 0 | AL27: 0 | AM27: 0 | AN27: 2.33 | AO27: 0 | AP27: 0 | AQ27: 0 | AR27: 0 | AS27: 0 | AT27: 97.79
A28: 1 | B28: 22079 | C28: AMPHIBOLES | D28: MEDIUM QUALITY | E28: PARGASITE | F28: MEDIUM QUALITY | G28: KAERSUTITE | H28: (K0.3Na0.7)Σ1.0(Ca1.8Fe0.1)Σ1.9(Ti0.2Cr0.1Fe0.1Al0.8Fe0.4Mg3.0)Σ4.6(Al1.8Si6.2)Σ8.0O22(O0.4OH1.7)Σ2.1 | I28: Costa 2008 | J28: Amphibole | K28: 15.56 | L28: 0 | M28: 11.51 | N28: 0 | O28: 0 | P28: 0 | Q28: 0.43 | R28: 0 | S28: 0 | T28: 0 | U28: 7.9 | V28: 0 | W28: 0 | X28: 1.61 | Y28: 0 | Z28: 13.86 | AA28: 0.04 | AB28: 2.87 | AC28: 0 | AD28: 0 | AE28: 0 | AF28: 0 | AG28: 0 | AH28: 0 | AI28: 42.37 | AJ28: 0 | AK28: 0 | AL28: 0 | AM28: 0 | AN28: 2.15 | AO28: 0 | AP28: 0 | AQ28: 0 | AR28: 0 | AS28: 0 | AT28: 98.3
A29: 1 | B29: 22080 | C29: AMPHIBOLES | D29: MEDIUM QUALITY | E29: PARGASITE | F29: MEDIUM QUALITY | G29: KAERSUTITE | H29: (K0.1Na0.8)Σ0.9(Ca1.8Fe0.1)Σ1.9(Ti0.2Cr0.1Fe0.1Al0.7Fe0.4Mg3.0)Σ4.5(Al1.8Si6.2)Σ8.0O22(O0.2OH1.7)Σ1.9 | I29: Costa 2008 | J29: Amphibole | K29: 14.74 | L29: 0 | M29: 11.3 | N29: 0 | O29: 0 | P29: 0 | Q29: 0.44 | R29: 0 | S29: 0 | T29: 1.77 | U29: 6.92 | V29: 0 | W29: 0 | X29: 0.64 | Y29: 0 | Z29: 13.77 | AA29: 0.04 | AB29: 2.73 | AC29: 0 | AD29: 0 | AE29: 0 | AF29: 0 | AG29: 0 | AH29: 0 | AI29: 42.19 | AJ29: 0 | AK29: 0 | AL29: 0 | AM29: 0 | AN29: 1.9 | AO29: 0 | AP29: 0 | AQ29: 0 | AR29: 0 | AS29: 0 | AT29: 96.44
A30: 1 | B30: 22081 | C30: AMPHIBOLES | D30: MEDIUM QUALITY | E30: PARGASITE | F30: LOW QUALITY | G30: HORNBLENDE (SENSU LATO) | H30: (K0.1Na0.8)Σ0.9(Ca1.8Fe0.1Na0.1)Σ2.0(Ti0.2Fe0.1Al0.6Fe0.4Mg3.1)Σ4.4(Al1.8Si6.2)Σ8.0O22(OH1.8)Σ1.9 | I30: Costa 2008 | J30: Amphibole | K30: 14.04 | L30: 0 | M30: 11.4 | N30: 0 | O30: 0 | P30: 0 | Q30: 0.4 | R30: 0 | S30: 0 | T30: 1.33 | U30: 7.3 | V30: 0 | W30: 0 | X30: 0.61 | Y30: 0 | Z30: 14.42 | AA30: 0 | AB30: 3.1 | AC30: 0 | AD30: 0 | AE30: 0 | AF30: 0 | AG30: 0 | AH30: 0 | AI30: 43.4 | AJ30: 0 | AK30: 0 | AL30: 0 | AM30: 0 | AN30: 1.8 | AO30: 0 | AP30: 0 | AQ30: 0 | AR30: 0 | AS30: 0 | AT30: 97.8
A31: 1 | B31: 22082 | C31: AMPHIBOLES | D31: MEDIUM QUALITY | E31: PARGASITE | F31: MEDIUM QUALITY | G31: HORNBLENDE (SENSU LATO) | H31: (K0.1Na0.8)Σ0.9(Ca1.8Fe0.1Na0.1)Σ2.0(Ti0.2Cr0.1Fe0.1Al0.7Fe0.4Mg3.1)Σ4.6(Al1.8Si6.2)Σ8.0O22(OH1.8)Σ1.9 | I31: Costa 2008 | J31: Amphibole | K31: 14.66 | L31: 0 | M31: 11.31 | N31: 0 | O31: 0 | P31: 0 | Q31: 0.42 | R31: 0 | S31: 0 | T31: 2.26 | U31: 6.62 | V31: 0 | W31: 0 | X31: 0.62 | Y31: 0 | Z31: 14.16 | AA31: 0.06 | AB31: 2.99 | AC31: 0 | AD31: 0 | AE31: 0 | AF31: 0 | AG31: 0 | AH31: 0 | AI31: 42.96 | AJ31: 0 | AK31: 0 | AL31: 0 | AM31: 0 | AN31: 1.84 | AO31: 0 | AP31: 0 | AQ31: 0 | AR31: 0 | AS31: 0 | AT31: 97.9
A32: 1 | B32: 22083 | C32: AMPHIBOLES | D32: MEDIUM QUALITY | E32: PARGASITE | F32: MEDIUM QUALITY | G32: HORNBLENDE (SENSU LATO) | H32: (K0.1Na0.7)Σ0.8(Ca1.8Fe0.1)Σ1.9(Ti0.2Cr0.1Fe0.1Al0.7Fe0.4Mg3.0)Σ4.5(Al1.8Si6.2)Σ8.0O22(OH1.7)Σ1.8 | I32: Costa 2008 | J32: Amphibole | K32: 14.48 | L32: 0 | M32: 11.51 | N32: 0 | O32: 0 | P32: 0 | Q32: 0.5 | R32: 0 | S32: 0 | T32: 1.8 | U32: 7.03 | V32: 0 | W32: 0 | X32: 0.61 | Y32: 0 | Z32: 13.88 | AA32: 0.01 | AB32: 2.55 | AC32: 0 | AD32: 0 | AE32: 0 | AF32: 0 | AG32: 0 | AH32: 0 | AI32: 42.8 | AJ32: 0 | AK32: 0 | AL32: 0 | AM32: 0 | AN32: 1.77 | AO32: 0 | AP32: 0 | AQ32: 0 | AR32: 0 | AS32: 0 | AT32: 96.94
A33: 1 | B33: 22084 | C33: AMPHIBOLES | D33: MEDIUM QUALITY | E33: PARGASITE | F33: MEDIUM QUALITY | G33: KAERSUTITE | H33: (K0.1Na0.8)Σ0.9(Ca1.8Fe0.1Na0.1)Σ2.0(Ti0.2Cr0.1Fe0.1Al0.7Fe0.4Mg3.0)Σ4.5(Al1.8Si6.1)Σ7.9O22(O0.2OH1.7)Σ1.9 | I33: Costa 2008 | J33: Amphibole | K33: 14.65 | L33: 0 | M33: 11.31 | N33: 0 | O33: 0 | P33: 0 | Q33: 0.54 | R33: 0 | S33: 0 | T33: 1.26 | U33: 8 | V33: 0 | W33: 0 | X33: 0.58 | Y33: 0 | Z33: 13.46 | AA33: 0.04 | AB33: 3.1 | AC33: 0 | AD33: 0 | AE33: 0 | AF33: 0 | AG33: 0 | AH33: 0 | AI33: 41.63 | AJ33: 0 | AK33: 0 | AL33: 0 | AM33: 0 | AN33: 1.86 | AO33: 0 | AP33: 0 | AQ33: 0 | AR33: 0 | AS33: 0 | AT33: 96.43
A34: 1 | B34: 22085 | C34: AMPHIBOLES | D34: MEDIUM QUALITY | E34: PARGASITE | F34: MEDIUM QUALITY | G34: KAERSUTITE | H34: (K0.1Na0.8)Σ0.9(Ca1.8Fe0.1)Σ1.9(Ti0.2Cr0.1Fe0.1Al0.7Fe0.4Mg3.0)Σ4.5(Al1.8Si6.2)Σ8.0O22(O0.3OH1.7)Σ2.0 | I34: Costa 2008 | J34: Amphibole | K34: 14.58 | L34: 0 | M34: 11.25 | N34: 0 | O34: 0 | P34: 0 | Q34: 0.45 | R34: 0 | S34: 0 | T34: 2.13 | U34: 7.33 | V34: 0 | W34: 0 | X34: 0.62 | Y34: 0 | Z34: 13.52 | AA34: 0.08 | AB34: 2.83 | AC34: 0 | AD34: 0 | AE34: 0 | AF34: 0 | AG34: 0 | AH34: 0 | AI34: 42.22 | AJ34: 0 | AK34: 0 | AL34: 0 | AM34: 0 | AN34: 1.94 | AO34: 0 | AP34: 0 | AQ34: 0 | AR34: 0 | AS34: 0 | AT34: 96.95
A35: 1 | B35: 22086 | C35: AMPHIBOLES | D35: MEDIUM QUALITY | E35: PARGASITE | F35: MEDIUM QUALITY | G35: KAERSUTITE | H35: (K0.1Na0.8)Σ0.9(Ca1.8Fe0.1Na0.1)Σ2.0(Ti0.2Cr0.1Fe0.1Al0.7Fe0.4Mg3.0)Σ4.5(Al1.8Si6.2)Σ8.0O22(O0.2OH1.7)Σ1.9 | I35: Costa 2008 | J35: Amphibole | K35: 14.57 | L35: 0 | M35: 11.39 | N35: 0 | O35: 0 | P35: 0 | Q35: 0.52 | R35: 0 | S35: 0 | T35: 0.93 | U35: 8.43 | V35: 0 | W35: 0 | X35: 0.62 | Y35: 0 | Z35: 13.33 | AA35: 0.06 | AB35: 2.94 | AC35: 0 | AD35: 0 | AE35: 0 | AF35: 0 | AG35: 0 | AH35: 0 | AI35: 41.98 | AJ35: 0 | AK35: 0 | AL35: 0 | AM35: 0 | AN35: 1.93 | AO35: 0 | AP35: 0 | AQ35: 0 | AR35: 0 | AS35: 0 | AT35: 96.7
A36: 1 | B36: 22087 | C36: AMPHIBOLES | D36: MEDIUM QUALITY | E36: PARGASITE | F36: MEDIUM QUALITY | G36: KAERSUTITE | H36: (K0.1Na0.8)Σ0.9(Ca1.8Fe0.1)Σ1.9(Ti0.2Cr0.1Fe0.1Al0.7Fe0.4Mg3.0)Σ4.5(Al1.9Si6.1)Σ8.0O22(O0.3OH1.6)Σ1.9 | I36: Costa 2008 | J36: Amphibole | K36: 14.66 | L36: 0 | M36: 11.29 | N36: 0 | O36: 0 | P36: 0 | Q36: 0.45 | R36: 0 | S36: 0 | T36: 1.22 | U36: 8.03 | V36: 0 | W36: 0 | X36: 0.67 | Y36: 0 | Z36: 13.33 | AA36: 0.05 | AB36: 2.77 | AC36: 0 | AD36: 0 | AE36: 0 | AF36: 0 | AG36: 0 | AH36: 0 | AI36: 41.28 | AJ36: 0 | AK36: 0 | AL36: 0 | AM36: 0 | AN36: 1.91 | AO36: 0 | AP36: 0 | AQ36: 0 | AR36: 0 | AS36: 0 | AT36: 95.66
A37: 1 | B37: 22088 | C37: AMPHIBOLES | D37: MEDIUM QUALITY | E37: PARGASITE | F37: LOW QUALITY | G37: HORNBLENDE (SENSU LATO) | H37: (K0.1Na0.8)Σ0.9(Ca1.8Fe0.1)Σ1.9(Ti0.2Cr0.1Fe0.1Al0.7Fe0.4Mg3.0)Σ4.5(Al1.8Si6.2)Σ8.0O22(O0.2OH1.7)Σ1.9 | I37: Costa 2008 | J37: Amphibole | K37: 14.41 | L37: 0 | M37: 11.3 | N37: 0 | O37: 0 | P37: 0 | Q37: 0.42 | R37: 0 | S37: 0 | T37: 1.99 | U37: 7.46 | V37: 0 | W37: 0 | X37: 0.54 | Y37: 0 | Z37: 13.39 | AA37: 0.03 | AB37: 2.6 | AC37: 0 | AD37: 0 | AE37: 0 | AF37: 0 | AG37: 0 | AH37: 0 | AI37: 42.2 | AJ37: 0 | AK37: 0 | AL37: 0 | AM37: 0 | AN37: 1.91 | AO37: 0 | AP37: 0 | AQ37: 0 | AR37: 0 | AS37: 0 | AT37: 96.25
A38: 1 | B38: 22089 | C38: AMPHIBOLES | D38: MEDIUM QUALITY | E38: PARGASITE | F38: MEDIUM QUALITY | G38: HORNBLENDE (SENSU LATO) | H38: (K0.1Na0.8)Σ0.9(Ca1.8Fe0.1Na0.1)Σ2.0(Ti0.2Cr0.1Fe0.1Al0.8Fe0.4Mg3.0)Σ4.6(Al1.8Si6.2)Σ8.0O22(OH1.7)Σ1.8 | I38: Costa 2008 | J38: Amphibole | K38: 15.07 | L38: 0 | M38: 11.26 | N38: 0 | O38: 0 | P38: 0 | Q38: 0.46 | R38: 0 | S38: 0 | T38: 3.17 | U38: 6.27 | V38: 0 | W38: 0 | X38: 0.4 | Y38: 0 | Z38: 14 | AA38: 0.06 | AB38: 3.21 | AC38: 0 | AD38: 0 | AE38: 0 | AF38: 0 | AG38: 0 | AH38: 0 | AI38: 42.6 | AJ38: 0 | AK38: 0 | AL38: 0 | AM38: 0 | AN38: 1.85 | AO38: 0 | AP38: 0 | AQ38: 0 | AR38: 0 | AS38: 0 | AT38: 98.35
A39: 1 | B39: 22090 | C39: AMPHIBOLES | D39: MEDIUM QUALITY | E39: PARGASITE | F39: MEDIUM QUALITY | G39: HORNBLENDE (SENSU LATO) | H39: (K0.1Na0.8)Σ0.9(Ca1.8Fe0.1)Σ1.9(Ti0.2Cr0.1Fe0.1Al0.8Fe0.4Mg3.1)Σ4.7(Al1.8Si6.2)Σ8.0O22(OH1.7)Σ1.8 | I39: Costa 2008 | J39: Amphibole | K39: 15.33 | L39: 0 | M39: 11.25 | N39: 0 | O39: 0 | P39: 0 | Q39: 0.51 | R39: 0 | S39: 0 | T39: 4.8 | U39: 4.82 | V39: 0 | W39: 0 | X39: 0.39 | Y39: 0 | Z39: 14.2 | AA39: 0.01 | AB39: 2.9 | AC39: 0 | AD39: 0 | AE39: 0 | AF39: 0 | AG39: 0 | AH39: 0 | AI39: 42.76 | AJ39: 0 | AK39: 0 | AL39: 0 | AM39: 0 | AN39: 1.8 | AO39: 0 | AP39: 0 | AQ39: 0 | AR39: 0 | AS39: 0 | AT39: 98.77
A40: 1 | B40: 22091 | C40: AMPHIBOLES | D40: MEDIUM QUALITY | E40: PARGASITE | F40: MEDIUM QUALITY | G40: HORNBLENDE (SENSU LATO) | H40: (K0.1Na0.9)Σ1.0(Ca1.8Fe0.1Na0.1)Σ2.0(Ti0.2Fe0.1Al0.8Fe0.4Mg3.0)Σ4.5(Al1.8Si6.2)Σ8.0O22(OH1.8)Σ1.9 | I40: Costa 2008 | J40: Amphibole | K40: 14.89 | L40: 0 | M40: 11.25 | N40: 0 | O40: 0 | P40: 0 | Q40: 0.41 | R40: 0 | S40: 0 | T40: 2.37 | U40: 7 | V40: 0 | W40: 0 | X40: 0.4 | Y40: 0 | Z40: 13.99 | AA40: 0.05 | AB40: 3.35 | AC40: 0 | AD40: 0 | AE40: 0 | AF40: 0 | AG40: 0 | AH40: 0 | AI40: 43.16 | AJ40: 0 | AK40: 0 | AL40: 0 | AM40: 0 | AN40: 1.73 | AO40: 0 | AP40: 0 | AQ40: 0 | AR40: 0 | AS40: 0 | AT40: 98.6
A41: 1 | B41: 22092 | C41: AMPHIBOLES | D41: MEDIUM QUALITY | E41: PARGASITE | F41: MEDIUM QUALITY | G41: HORNBLENDE (SENSU LATO) | H41: (K0.1Na0.8)Σ0.9(Ca1.8Fe0.1Na0.1)Σ2.0(Ti0.2Cr0.1Fe0.1Al0.8Fe0.3Mg3.1)Σ4.6(Al1.8Si6.2)Σ8.0O22(OH1.7)Σ1.8 | I41: Costa 2008 | J41: Amphibole | K41: 15.02 | L41: 0 | M41: 11.2 | N41: 0 | O41: 0 | P41: 0 | Q41: 0.45 | R41: 0 | S41: 0 | T41: 5.18 | U41: 4.57 | V41: 0 | W41: 0 | X41: 0.41 | Y41: 0 | Z41: 14.46 | AA41: 0.05 | AB41: 3.06 | AC41: 0 | AD41: 0 | AE41: 0 | AF41: 0 | AG41: 0 | AH41: 0 | AI41: 42.84 | AJ41: 0 | AK41: 0 | AL41: 0 | AM41: 0 | AN41: 1.84 | AO41: 0 | AP41: 0 | AQ41: 0 | AR41: 0 | AS41: 0 | AT41: 99.08
A42: 1 | B42: 22093 | C42: AMPHIBOLES | D42: MEDIUM QUALITY | E42: PARGASITE | F42: MEDIUM QUALITY | G42: HORNBLENDE (SENSU LATO) | H42: (K0.1Na0.9)Σ1.0(Ca1.8Fe0.1Na0.1)Σ2.0(Ti0.2Cr0.1Fe0.1Al0.7Fe0.4Mg3.1)Σ4.6(Al1.8Si6.2)Σ8.0O22(O0.2OH1.8)Σ2.0 | I42: Costa 2008 | J42: Amphibole | K42: 14.65 | L42: 0 | M42: 11.29 | N42: 0 | O42: 0 | P42: 0 | Q42: 0.51 | R42: 0 | S42: 0 | T42: 3.15 | U42: 6.36 | V42: 0 | W42: 0 | X42: 0.39 | Y42: 0 | Z42: 14.33 | AA42: 0.04 | AB42: 3.4 | AC42: 0 | AD42: 0 | AE42: 0 | AF42: 0 | AG42: 0 | AH42: 0 | AI42: 43.07 | AJ42: 0 | AK42: 0 | AL42: 0 | AM42: 0 | AN42: 1.91 | AO42: 0 | AP42: 0 | AQ42: 0 | AR42: 0 | AS42: 0 | AT42: 99.1
A43: 1 | B43: 22094 | C43: AMPHIBOLES | D43: MEDIUM QUALITY | E43: PARGASITE | F43: MEDIUM QUALITY | G43: HORNBLENDE (SENSU LATO) | H43: (K0.1Na0.8)Σ0.9(Ca1.8Fe0.1Na0.1)Σ2.0(Ti0.2Cr0.1Fe0.1Al0.8Fe0.4Mg3.0)Σ4.6(Al1.8Si6.2)Σ8.0O22(O0.2OH1.8)Σ2.0 | I43: Costa 2008 | J43: Amphibole | K43: 14.82 | L43: 0 | M43: 11.02 | N43: 0 | O43: 0 | P43: 0 | Q43: 0.47 | R43: 0 | S43: 0 | T43: 4.36 | U43: 5.69 | V43: 0 | W43: 0 | X43: 0.4 | Y43: 0 | Z43: 14.03 | AA43: 0.02 | AB43: 3.2 | AC43: 0 | AD43: 0 | AE43: 0 | AF43: 0 | AG43: 0 | AH43: 0 | AI43: 42.9 | AJ43: 0 | AK43: 0 | AL43: 0 | AM43: 0 | AN43: 1.98 | AO43: 0 | AP43: 0 | AQ43: 0 | AR43: 0 | AS43: 0 | AT43: 98.89
A44: 1 | B44: 22095 | C44: AMPHIBOLES | D44: MEDIUM QUALITY | E44: PARGASITE | F44: MEDIUM QUALITY | G44: HORNBLENDE (SENSU LATO) | H44: (K0.1Na0.8)Σ0.9(Ca1.7Fe0.1Na0.1)Σ1.9(Ti0.2Cr0.1Fe0.2Al0.7Fe0.3Mg3.0)Σ4.5(Al1.8Si6.2)Σ8.0O22(O0.3OH1.7)Σ2.0 | I44: Costa 2008 | J44: Amphibole | K44: 14.74 | L44: 0 | M44: 10.84 | N44: 0 | O44: 0 | P44: 0 | Q44: 0.52 | R44: 0 | S44: 0 | T44: 4.49 | U44: 5.49 | V44: 0 | W44: 0 | X44: 0.42 | Y44: 0 | Z44: 13.85 | AA44: 0.09 | AB44: 3.11 | AC44: 0 | AD44: 0 | AE44: 0 | AF44: 0 | AG44: 0 | AH44: 0 | AI44: 42.7 | AJ44: 0 | AK44: 0 | AL44: 0 | AM44: 0 | AN44: 1.97 | AO44: 0 | AP44: 0 | AQ44: 0 | AR44: 0 | AS44: 0 | AT44: 98.22
A45: 1 | B45: 22096 | C45: AMPHIBOLES | D45: MEDIUM QUALITY | E45: PARGASITE | F45: MEDIUM QUALITY | G45: HORNBLENDE (SENSU LATO) | H45: (K0.1Na0.8)Σ0.9(Ca1.8Fe0.1Na0.1)Σ2.0(Ti0.2Cr0.1Fe0.1Al0.7Fe0.4Mg3.0)Σ4.5(Al1.8Si6.2)Σ8.0O22(O0.2OH1.7)Σ1.9 | I45: Costa 2008 | J45: Amphibole | K45: 14.72 | L45: 0 | M45: 11.08 | N45: 0 | O45: 0 | P45: 0 | Q45: 0.49 | R45: 0 | S45: 0 | T45: 2.97 | U45: 6.55 | V45: 0 | W45: 0 | X45: 0.4 | Y45: 0 | Z45: 13.92 | AA45: 0.04 | AB45: 3.27 | AC45: 0 | AD45: 0 | AE45: 0 | AF45: 0 | AG45: 0 | AH45: 0 | AI45: 42.75 | AJ45: 0 | AK45: 0 | AL45: 0 | AM45: 0 | AN45: 1.98 | AO45: 0 | AP45: 0 | AQ45: 0 | AR45: 0 | AS45: 0 | AT45: 98.17
A46: 1 | B46: 22097 | C46: AMPHIBOLES | D46: MEDIUM QUALITY | E46: PARGASITE | F46: MEDIUM QUALITY | G46: HORNBLENDE (SENSU LATO) | H46: (K0.1Na0.8)Σ0.9(Ca1.7Fe0.1Na0.1)Σ1.9(Ti0.2Cr0.1Fe0.1Al0.8Fe0.3Mg3.1)Σ4.6(Al1.8Si6.2)Σ8.0O22(O0.3OH1.7)Σ2.0 | I46: Costa 2008 | J46: Amphibole | K46: 15.01 | L46: 0 | M46: 10.97 | N46: 0 | O46: 0 | P46: 0 | Q46: 0.58 | R46: 0 | S46: 0 | T46: 5.53 | U46: 4.42 | V46: 0 | W46: 0 | X46: 0.43 | Y46: 0 | Z46: 14.17 | AA46: 0.07 | AB46: 2.99 | AC46: 0 | AD46: 0 | AE46: 0 | AF46: 0 | AG46: 0 | AH46: 0 | AI46: 42.61 | AJ46: 0 | AK46: 0 | AL46: 0 | AM46: 0 | AN46: 2 | AO46: 0 | AP46: 0 | AQ46: 0 | AR46: 0 | AS46: 0 | AT46: 98.78
A47: 1 | B47: 22098 | C47: AMPHIBOLES | D47: MEDIUM QUALITY | E47: PARGASITE | F47: MEDIUM QUALITY | G47: HORNBLENDE (SENSU LATO) | H47: (K0.1Na0.8)Σ0.9(Ca1.8Fe0.1Na0.1)Σ2.0(Ti0.2Cr0.1Fe0.2Al0.8Fe0.3Mg3.1)Σ4.7(Al1.8Si6.2)Σ8.0O22(O0.3OH1.7)Σ2.0 | I47: Costa 2008 | J47: Amphibole | K47: 14.94 | L47: 0 | M47: 11.02 | N47: 0 | O47: 0 | P47: 0 | Q47: 0.52 | R47: 0 | S47: 0 | T47: 5.3 | U47: 4.45 | V47: 0 | W47: 0 | X47: 0.37 | Y47: 0 | Z47: 14.4 | AA47: 0.09 | AB47: 3.13 | AC47: 0 | AD47: 0 | AE47: 0 | AF47: 0 | AG47: 0 | AH47: 0 | AI47: 42.88 | AJ47: 0 | AK47: 0 | AL47: 0 | AM47: 0 | AN47: 2 | AO47: 0 | AP47: 0 | AQ47: 0 | AR47: 0 | AS47: 0 | AT47: 99.1
A48: 1 | B48: 22099 | C48: AMPHIBOLES | D48: MEDIUM QUALITY | E48: PARGASITE | F48: MEDIUM QUALITY | G48: KAERSUTITE | H48: (K0.1Na0.8)Σ0.9(Ca1.8Fe0.1)Σ1.9(Ti0.2Cr0.1Fe0.1Al0.7Fe0.4Mg3.0)Σ4.5(Al1.8Si6.2)Σ8.0O22(O0.2OH1.7)Σ1.9 | I48: Costa 2008 | J48: Amphibole | K48: 14.74 | L48: 0 | M48: 11.3 | N48: 0 | O48: 0 | P48: 0 | Q48: 0.44 | R48: 0 | S48: 0 | T48: 1.77 | U48: 6.92 | V48: 0 | W48: 0 | X48: 0.64 | Y48: 0 | Z48: 13.77 | AA48: 0.04 | AB48: 2.73 | AC48: 0 | AD48: 0 | AE48: 0 | AF48: 0 | AG48: 0 | AH48: 0 | AI48: 42.19 | AJ48: 0 | AK48: 0 | AL48: 0 | AM48: 0 | AN48: 1.9 | AO48: 0 | AP48: 0 | AQ48: 0 | AR48: 0 | AS48: 0 | AT48: 96.44
A49: 1 | B49: 22100 | C49: AMPHIBOLES | D49: MEDIUM QUALITY | E49: PARGASITE | F49: MEDIUM QUALITY | G49: HORNBLENDE (SENSU LATO) | H49: (K0.1Na0.8)Σ0.9(Ca1.7Fe0.1)Σ1.8(Ti0.2Fe0.1Al0.8Fe0.4Mg3.0)Σ4.5(Al1.8Si6.2)Σ8.0O22(O0.2OH1.7)Σ1.9 | I49: Costa 2008 | J49: Amphibole | K49: 14.77 | L49: 0 | M49: 10.97 | N49: 0 | O49: 0 | P49: 0 | Q49: 0.34 | R49: 0 | S49: 0 | T49: 5.39 | U49: 4.86 | V49: 0 | W49: 0 | X49: 0.38 | Y49: 0 | Z49: 13.62 | AA49: 0.08 | AB49: 2.59 | AC49: 0 | AD49: 0 | AE49: 0 | AF49: 0 | AG49: 0 | AH49: 0 | AI49: 41.97 | AJ49: 0 | AK49: 0 | AL49: 0 | AM49: 0 | AN49: 1.89 | AO49: 0 | AP49: 0 | AQ49: 0 | AR49: 0 | AS49: 0 | AT49: 96.86
A50: 1 | B50: 22101 | C50: AMPHIBOLES | D50: MEDIUM QUALITY | E50: PARGASITE | F50: MEDIUM QUALITY | G50: HORNBLENDE (SENSU LATO) | H50: (K0.1Na0.9)Σ1.0(Ca1.7Fe0.1Na0.1)Σ1.9(Ti0.2Fe0.2Al0.8Fe0.4Mg3.0)Σ4.6(Al1.8Si6.2)Σ8.0O22(O0.2OH1.7)Σ1.9 | I50: Costa 2008 | J50: Amphibole | K50: 14.92 | L50: 0 | M50: 10.98 | N50: 0 | O50: 0 | P50: 0 | Q50: 0.38 | R50: 0 | S50: 0 | T50: 3.24 | U50: 6.63 | V50: 0 | W50: 0 | X50: 0.35 | Y50: 0 | Z50: 13.66 | AA50: 0.09 | AB50: 3.33 | AC50: 0 | AD50: 0 | AE50: 0 | AF50: 0 | AG50: 0 | AH50: 0 | AI50: 42.51 | AJ50: 0 | AK50: 0 | AL50: 0 | AM50: 0 | AN50: 1.9 | AO50: 0 | AP50: 0 | AQ50: 0 | AR50: 0 | AS50: 0 | AT50: 97.99
A51: 1 | B51: 22102 | C51: AMPHIBOLES | D51: MEDIUM QUALITY | E51: PARGASITE | F51: MEDIUM QUALITY | G51: HORNBLENDE (SENSU LATO) | H51: (K0.1Na0.9)Σ1.0(Ca1.7Fe0.1Na0.1)Σ1.9(Ti0.2Fe0.1Al0.8Fe0.4Mg3.0)Σ4.5(Al1.8Si6.2)Σ8.0O22(O0.2OH1.7)Σ1.9 | I51: Costa 2008 | J51: Amphibole | K51: 14.85 | L51: 0 | M51: 10.89 | N51: 0 | O51: 0 | P51: 0 | Q51: 0.34 | R51: 0 | S51: 0 | T51: 2.7 | U51: 6.93 | V51: 0 | W51: 0 | X51: 0.37 | Y51: 0 | Z51: 13.48 | AA51: 0.07 | AB51: 3.31 | AC51: 0 | AD51: 0 | AE51: 0 | AF51: 0 | AG51: 0 | AH51: 0 | AI51: 42.02 | AJ51: 0 | AK51: 0 | AL51: 0 | AM51: 0 | AN51: 1.86 | AO51: 0 | AP51: 0 | AQ51: 0 | AR51: 0 | AS51: 0 | AT51: 96.82
A52: 1 | B52: 22103 | C52: AMPHIBOLES | D52: MEDIUM QUALITY | E52: HORNBLENDE (SENSU LATO) | F52: LOW QUALITY | G52: MAGNESIOHASTINGSITE | H52: (K0.2Na0.3)Σ0.5(Ca1.9Fe0.1Na0.1)Σ2.1(Ti0.1Fe0.3Al0.6Fe0.4Mg1.6)Σ3.0(Al1.8Si6.3)Σ8.1O22(OH1.9)Σ2.0 | I52: Zolinger 2005 | J52: Amphibole | K52: 14.04 | L52: 0 | M52: 11.53 | N52: 0 | O52: 0 | P52: 0 | Q52: 0.02 | R52: 0 | S52: 0 | T52: 0 | U52: 20.83 | V52: 0 | W52: 0 | X52: 0.91 | Y52: 0 | Z52: 7.57 | AA52: 0.41 | AB52: 1.11 | AC52: 0 | AD52: 0 | AE52: 0 | AF52: 0 | AG52: 0 | AH52: 0 | AI52: 41.83 | AJ52: 0 | AK52: 0 | AL52: 0 | AM52: 0 | AN52: 0.91 | AO52: 0 | AP52: 0 | AQ52: 0 | AR52: 0 | AS52: 0 | AT52: 99.16
A53: 1 | B53: 22104 | C53: AMPHIBOLES | D53: LOW QUALITY | E53: HORNBLENDE (SENSU LATO) | F53: MEDIUM QUALITY | G53: MAGNESIOHASTINGSITE | H53: (K0.2Na0.3)Σ0.5(Ca1.9Na0.1)Σ2.0(Ti0.1Fe0.3Al0.6Fe0.4Mg1.5)Σ2.9(Al1.7Si6.3)Σ8.0O22(O0.2OH1.9)Σ2.1 | I53: Zolinger 2005 | J53: Amphibole | K53: 13.38 | L53: 0 | M53: 11.58 | N53: 0 | O53: 0 | P53: 0 | Q53: 0.01 | R53: 0 | S53: 0 | T53: 0 | U53: 20.59 | V53: 0 | W53: 0 | X53: 0.95 | Y53: 0 | Z53: 6.05 | AA53: 0.35 | AB53: 1.07 | AC53: 0 | AD53: 0 | AE53: 0 | AF53: 0 | AG53: 0 | AH53: 0 | AI53: 41.73 | AJ53: 0 | AK53: 0 | AL53: 0 | AM53: 0 | AN53: 0.92 | AO53: 0 | AP53: 0 | AQ53: 0 | AR53: 0 | AS53: 0 | AT53: 96.63
A54: 1 | B54: 22105 | C54: AMPHIBOLES | D54: MEDIUM QUALITY | E54: HORNBLENDE (SENSU LATO) | F54: MEDIUM QUALITY | G54: HASTINGSITE | H54: (K0.1Na0.2)Σ0.3(Ca1.8Na0.1)Σ1.9(Ti0.1Fe0.3Al0.6Fe0.4Mg1.5)Σ2.9(Al1.6Si6.3)Σ7.9O22(OH1.9)Σ2.0 | I54: Zolinger 2005 | J54: Amphibole | K54: 12.46 | L54: 0 | M54: 11.22 | N54: 0 | O54: 0 | P54: 0 | Q54: 0 | R54: 0 | S54: 0 | T54: 0 | U54: 21.15 | V54: 0 | W54: 0 | X54: 0.71 | Y54: 0 | Z54: 7.39 | AA54: 0.45 | AB54: 1.25 | AC54: 0 | AD54: 0 | AE54: 0 | AF54: 0 | AG54: 0 | AH54: 0 | AI54: 42.62 | AJ54: 0 | AK54: 0 | AL54: 0 | AM54: 0 | AN54: 1.07 | AO54: 0 | AP54: 0 | AQ54: 0 | AR54: 0 | AS54: 0 | AT54: 98.32
A55: 1 | B55: 22106 | C55: AMPHIBOLES | D55: MEDIUM QUALITY | E55: KAERSUTITE | F55: LOW QUALITY | G55: PARGASITE | H55: (K0.4Na0.4)Σ0.8(Ca1.8Fe0.1)Σ1.9(Ti0.3Fe0.2Al0.8Fe0.4Mg3.0)Σ4.7(Al1.9Si6.1)Σ8.0O22(O0.5OH1.6)Σ2.1 | I55: Zolinger 2005 | J55: Amphibole | K55: 14.88 | L55: 0 | M55: 11.24 | N55: 0 | O55: 0 | P55: 0 | Q55: 0.25 | R55: 0 | S55: 0 | T55: 0 | U55: 9.58 | V55: 0 | W55: 0 | X55: 2.04 | Y55: 0 | Z55: 14.14 | AA55: 0.09 | AB55: 1.38 | AC55: 0 | AD55: 0 | AE55: 0 | AF55: 0 | AG55: 0 | AH55: 0 | AI55: 41.25 | AJ55: 0 | AK55: 0 | AL55: 0 | AM55: 0 | AN55: 2.24 | AO55: 0 | AP55: 0 | AQ55: 0 | AR55: 0 | AS55: 0 | AT55: 97.09
A56: 1 | B56: 22107 | C56: AMPHIBOLES | D56: LOW QUALITY | E56: KAERSUTITE | F56: MEDIUM QUALITY | G56: PARGASITE | H56: (K0.4Na0.4)Σ0.8(Ca1.9Fe0.1)Σ2.0(Ti0.3Fe0.1Al0.9Fe0.4Mg2.9)Σ4.6(Al1.8Si6.1)Σ7.9O22(O0.4OH1.6)Σ2.0 | I56: Zolinger 2005 | J56: Amphibole | K56: 18.08 | L56: 0 | M56: 12.11 | N56: 0 | O56: 0 | P56: 0 | Q56: 0.25 | R56: 0 | S56: 0 | T56: 0 | U56: 7.58 | V56: 0 | W56: 0 | X56: 2.27 | Y56: 0 | Z56: 12.8 | AA56: 0.06 | AB56: 1.22 | AC56: 0 | AD56: 0 | AE56: 0 | AF56: 0 | AG56: 0 | AH56: 0 | AI56: 41.49 | AJ56: 0 | AK56: 0 | AL56: 0 | AM56: 0 | AN56: 2.52 | AO56: 0 | AP56: 0 | AQ56: 0 | AR56: 0 | AS56: 0 | AT56: 98.38
A57: 1 | B57: 22108 | C57: AMPHIBOLES | D57: MEDIUM QUALITY | E57: HORNBLENDE (SENSU LATO) | F57: MEDIUM QUALITY | G57: MAGNESIOHASTINGSITE | H57: (K0.1Na0.3)Σ0.4(Ca1.9Na0.1)Σ2.0(Ti0.1Fe0.3Al0.6Fe0.4Mg2.0)Σ3.4(Al1.5Si6.5)Σ8.0O22(OH1.9)Σ2.0 | I57: Zolinger 2005 | J57: Amphibole | K57: 13.35 | L57: 0 | M57: 11.66 | N57: 0 | O57: 0 | P57: 0 | Q57: 0.02 | R57: 0 | S57: 0 | T57: 0 | U57: 19.2 | V57: 0 | W57: 0 | X57: 0.56 | Y57: 0 | Z57: 8.86 | AA57: 0.36 | AB57: 1.16 | AC57: 0 | AD57: 0 | AE57: 0 | AF57: 0 | AG57: 0 | AH57: 0 | AI57: 43.92 | AJ57: 0 | AK57: 0 | AL57: 0 | AM57: 0 | AN57: 0.96 | AO57: 0 | AP57: 0 | AQ57: 0 | AR57: 0 | AS57: 0 | AT57: 100.05
A58: 1 | B58: 22109 | C58: AMPHIBOLES | D58: MEDIUM QUALITY | E58: HORNBLENDE (SENSU LATO) | F58: MEDIUM QUALITY | G58: MAGNESIOHASTINGSITE | H58: (K0.1Na0.2)Σ0.3(Ca1.9Na0.1)Σ2.0(Ti0.1Fe0.3Al0.5Fe0.4Mg2.3)Σ3.6(Al1.5Si6.6)Σ8.1O22(OH1.9)Σ2.0 | I58: Zolinger 2005 | J58: Amphibole | K58: 11.17 | L58: 0 | M58: 11.89 | N58: 0 | O58: 0 | P58: 0 | Q58: 0 | R58: 0 | S58: 0 | T58: 0 | U58: 16.4 | V58: 0 | W58: 0 | X58: 0.71 | Y58: 0 | Z58: 10.28 | AA58: 0.32 | AB58: 1.16 | AC58: 0 | AD58: 0 | AE58: 0 | AF58: 0 | AG58: 0 | AH58: 0 | AI58: 43.97 | AJ58: 0 | AK58: 0 | AL58: 0 | AM58: 0 | AN58: 1.01 | AO58: 0 | AP58: 0 | AQ58: 0 | AR58: 0 | AS58: 0 | AT58: 96.91
A59: 1 | B59: 22110 | C59: AMPHIBOLES | D59: MEDIUM QUALITY | E59: HORNBLENDE (SENSU LATO) | F59: MEDIUM QUALITY | G59: MAGNESIOHASTINGSITE | H59: (K0.1Na0.2)Σ0.3(Ca1.9Na0.1)Σ2.0(Ti0.1Fe0.2Al0.5Fe0.4Mg2.3)Σ3.5(Al1.5Si6.5)Σ8.0O22(OH1.9)Σ2.0 | I59: Zolinger 2005 | J59: Amphibole | K59: 11.17 | L59: 0 | M59: 11.83 | N59: 0 | O59: 0 | P59: 0 | Q59: 0.07 | R59: 0 | S59: 0 | T59: 0 | U59: 16.23 | V59: 0 | W59: 0 | X59: 0.73 | Y59: 0 | Z59: 10.27 | AA59: 0.36 | AB59: 1.2 | AC59: 0 | AD59: 0 | AE59: 0 | AF59: 0 | AG59: 0 | AH59: 0 | AI59: 44 | AJ59: 0 | AK59: 0 | AL59: 0 | AM59: 0 | AN59: 0.83 | AO59: 0 | AP59: 0 | AQ59: 0 | AR59: 0 | AS59: 0 | AT59: 96.69
A60: 1 | B60: 22111 | C60: AMPHIBOLES | D60: MEDIUM QUALITY | E60: HORNBLENDE (SENSU LATO) | F60: MEDIUM QUALITY | G60: HASTINGSITE | H60: (K0.1Na0.2)Σ0.3(Ca1.8Na0.1)Σ1.9(Ti0.1Fe0.3Al0.6Fe0.4Mg1.5)Σ2.9(Al1.6Si6.3)Σ7.9O22(OH1.9)Σ2.0 | I60: Zolinger 2005 | J60: Amphibole | K60: 12.46 | L60: 0 | M60: 11.22 | N60: 0 | O60: 0 | P60: 0 | Q60: 0 | R60: 0 | S60: 0 | T60: 0 | U60: 21.15 | V60: 0 | W60: 0 | X60: 0.71 | Y60: 0 | Z60: 7.39 | AA60: 0.45 | AB60: 1.25 | AC60: 0 | AD60: 0 | AE60: 0 | AF60: 0 | AG60: 0 | AH60: 0 | AI60: 42.62 | AJ60: 0 | AK60: 0 | AL60: 0 | AM60: 0 | AN60: 1.07 | AO60: 0 | AP60: 0 | AQ60: 0 | AR60: 0 | AS60: 0 | AT60: 98.32
A61: 1 | B61: 22112 | C61: AMPHIBOLES | D61: MEDIUM QUALITY | E61: HORNBLENDE (SENSU LATO) | F61: MEDIUM QUALITY | G61: MAGNESIOHASTINGSITE | H61: (K0.1Na0.3)Σ0.4(Ca1.8Na0.1)Σ1.9(Ti0.1Fe0.3Al0.6Fe0.4Mg1.6)Σ3.0(Al1.7Si6.3)Σ8.0O22(OH1.9)Σ2.0 | I61: Zolinger 2005 | J61: Amphibole | K61: 12.11 | L61: 0 | M61: 11.24 | N61: 0 | O61: 0 | P61: 0 | Q61: 0.03 | R61: 0 | S61: 0 | T61: 0 | U61: 20.84 | V61: 0 | W61: 0 | X61: 0.71 | Y61: 0 | Z61: 7.64 | AA61: 0.43 | AB61: 1.31 | AC61: 0 | AD61: 0 | AE61: 0 | AF61: 0 | AG61: 0 | AH61: 0 | AI61: 42.14 | AJ61: 0 | AK61: 0 | AL61: 0 | AM61: 0 | AN61: 0.88 | AO61: 0 | AP61: 0 | AQ61: 0 | AR61: 0 | AS61: 0 | AT61: 97.33
A62: 1 | B62: 22113 | C62: AMPHIBOLES | D62: MEDIUM QUALITY | E62: HORNBLENDE (SENSU LATO) | F62: MEDIUM QUALITY | G62: MAGNESIOHASTINGSITE | H62: (K0.1Na0.3)Σ0.4(Ca1.9Na0.1)Σ2.0(Ti0.1Fe0.3Al0.6Fe0.4Mg2.0)Σ3.4(Al1.5Si6.5)Σ8.0O22(OH1.9)Σ2.0 | I62: Zolinger 2005 | J62: Amphibole | K62: 11.65 | L62: 0 | M62: 11.69 | N62: 0 | O62: 0 | P62: 0 | Q62: 0.02 | R62: 0 | S62: 0 | T62: 0 | U62: 18.96 | V62: 0 | W62: 0 | X62: 0.54 | Y62: 0 | Z62: 9.08 | AA62: 0.31 | AB62: 1.2 | AC62: 0 | AD62: 0 | AE62: 0 | AF62: 0 | AG62: 0 | AH62: 0 | AI62: 44.04 | AJ62: 0 | AK62: 0 | AL62: 0 | AM62: 0 | AN62: 1.11 | AO62: 0 | AP62: 0 | AQ62: 0 | AR62: 0 | AS62: 0 | AT62: 98.6
A63: 1 | B63: 22114 | C63: AMPHIBOLES | D63: MEDIUM QUALITY | E63: PARGASITE | F63: LOW QUALITY | G63: HORNBLENDE (SENSU LATO) | H63: (K0.2Na0.7)Σ0.9(Ca1.8Na0.1)Σ1.9(Ti0.2Fe0.2Al0.5Fe0.3Mg3.8)Σ5.0(Al1.6Si6.4)Σ8.0O22(O0.3OH1.8)Σ2.1 | I63: Nannini 2011 | J63: Amphibole | K63: 12.35 | L63: 0 | M63: 11.372 | N63: 0 | O63: 0 | P63: 0 | Q63: 0 | R63: 0 | S63: 0 | T63: 0 | U63: 2.356 | V63: 0 | W63: 0 | X63: 0.923 | Y63: 0 | Z63: 18.256 | AA63: 0.036 | AB63: 3.484 | AC63: 0 | AD63: 0 | AE63: 0 | AF63: 0 | AG63: 0 | AH63: 0 | AI63: 44.136 | AJ63: 0 | AK63: 0 | AL63: 0 | AM63: 0 | AN63: 2.179 | AO63: 0 | AP63: 0 | AQ63: 0 | AR63: 0 | AS63: 0 | AT63: 95.092
A64: 1 | B64: 22115 | C64: AMPHIBOLES | D64: MEDIUM QUALITY | E64: PARGASITE | F64: LOW QUALITY | G64: HORNBLENDE (SENSU LATO) | H64: (K0.2Na0.7)Σ0.9(Ca1.8Na0.1)Σ1.9(Ti0.2Fe0.2Al0.5Fe0.4Mg4.1)Σ5.4(Al1.6Si6.3)Σ7.9O22(O0.3OH1.7)Σ2.0 | I64: Nannini 2011 | J64: Amphibole | K64: 12.355 | L64: 0 | M64: 11.3 | N64: 0 | O64: 0 | P64: 0 | Q64: 0 | R64: 0 | S64: 0 | T64: 0 | U64: 2.509 | V64: 0 | W64: 0 | X64: 1.055 | Y64: 0 | Z64: 18.414 | AA64: 0.03 | AB64: 3.538 | AC64: 0 | AD64: 0 | AE64: 0 | AF64: 0 | AG64: 0 | AH64: 0 | AI64: 43.746 | AJ64: 0 | AK64: 0 | AL64: 0 | AM64: 0 | AN64: 2.147 | AO64: 0 | AP64: 0 | AQ64: 0 | AR64: 0 | AS64: 0 | AT64: 95.094
A65: 1 | B65: 22116 | C65: AMPHIBOLES | D65: MEDIUM QUALITY | E65: PARGASITE | F65: LOW QUALITY | G65: EDENITE | H65: (K0.2Na0.6)Σ0.8(Ca1.8Na0.1)Σ1.9(Ti0.2Fe0.2Al0.5Fe0.4Mg3.8)Σ5.1(Al1.6Si6.4)Σ8.0O22(O0.2OH1.8)Σ2.0 | I65: Nannini 2011 | J65: Amphibole | K65: 12.264 | L65: 0 | M65: 11.595 | N65: 0 | O65: 0 | P65: 0 | Q65: 0 | R65: 0 | S65: 0 | T65: 0 | U65: 2.52 | V65: 0 | W65: 0 | X65: 1.172 | Y65: 0 | Z65: 18.163 | AA65: 0.001 | AB65: 3.471 | AC65: 0 | AD65: 0 | AE65: 0 | AF65: 0 | AG65: 0 | AH65: 0 | AI65: 43.916 | AJ65: 0 | AK65: 0 | AL65: 0 | AM65: 0 | AN65: 1.956 | AO65: 0 | AP65: 0 | AQ65: 0 | AR65: 0 | AS65: 0 | AT65: 95.058
A66: 1 | B66: 22117 | C66: AMPHIBOLES | D66: MEDIUM QUALITY | E66: PARGASITE | F66: LOW QUALITY | G66: HORNBLENDE (SENSU LATO) | H66: (K0.2Na0.6)Σ0.8(Ca1.8Na0.1)Σ1.9(Ti0.2Fe0.2Al0.5Fe0.4Mg3.8)Σ5.1(Al1.6Si6.3)Σ7.9O22(O0.3OH1.7)Σ2.0 | I66: Nannini 2011 | J66: Amphibole | K66: 12.31 | L66: 0 | M66: 11.401 | N66: 0 | O66: 0 | P66: 0 | Q66: 0 | R66: 0 | S66: 0 | T66: 0 | U66: 2.491 | V66: 0 | W66: 0 | X66: 1.155 | Y66: 0 | Z66: 18.325 | AA66: 0.073 | AB66: 3.541 | AC66: 0 | AD66: 0 | AE66: 0 | AF66: 0 | AG66: 0 | AH66: 0 | AI66: 43.995 | AJ66: 0 | AK66: 0 | AL66: 0 | AM66: 0 | AN66: 2.19 | AO66: 0 | AP66: 0 | AQ66: 0 | AR66: 0 | AS66: 0 | AT66: 95.481
A67: 1 | B67: 22118 | C67: AMPHIBOLES | D67: MEDIUM QUALITY | E67: PARGASITE | F67: LOW QUALITY | G67: EDENITE | H67: (K0.2Na0.6)Σ0.8(Ca1.8Fe0.1)Σ1.9(Ti0.4Cr0.2Fe0.1Al0.5Fe0.4Mg3.7)Σ5.3(Al1.8Si6.2)Σ8.0O22(O0.4OH1.6)Σ2.0 | I67: Nannini 2016 | J67: Amphibole | K67: 12.4488 | L67: 0 | M67: 11.3578 | N67: 0 | O67: 0 | P67: 0 | Q67: 2.2972 | R67: 0 | S67: 0 | T67: 0 | U67: 2.7114 | V67: 0 | W67: 0 | X67: 1.2354 | Y67: 0 | Z67: 18.1636 | AA67: 0.0102 | AB67: 2.2214 | AC67: 0 | AD67: 0 | AE67: 0.1762 | AF67: 0 | AG67: 0 | AH67: 0 | AI67: 42.7642 | AJ67: 0 | AK67: 0 | AL67: 0 | AM67: 0 | AN67: 3.8163 | AO67: 0 | AP67: 0 | AQ67: 0 | AR67: 0 | AS67: 0 | AT67: 97.2025
A68: 1 | B68: 22119 | C68: AMPHIBOLES | D68: MEDIUM QUALITY | E68: PARGASITE | F68: LOW QUALITY | G68: KAERSUTITE | H68: (K0.2Na0.6)Σ0.8(Ca1.8Fe0.1)Σ1.9(Ti0.4Cr0.2Fe0.1Al0.5Fe0.4Mg3.7)Σ5.3(Al1.8Si6.2)Σ8.0O22(O0.4OH1.6)Σ2.0 | I68: Nannini 2016 | J68: Amphibole | K68: 12.4716 | L68: 0 | M68: 11.6147 | N68: 0 | O68: 0 | P68: 0 | Q68: 2.3356 | R68: 0 | S68: 0 | T68: 0 | U68: 2.5008 | V68: 0 | W68: 0 | X68: 1.2407 | Y68: 0 | Z68: 17.9795 | AA68: 0.1017 | AB68: 2.1881 | AC68: 0 | AD68: 0 | AE68: 0.1524 | AF68: 0 | AG68: 0 | AH68: 0 | AI68: 42.6431 | AJ68: 0 | AK68: 0 | AL68: 0 | AM68: 0 | AN68: 3.9999 | AO68: 0 | AP68: 0 | AQ68: 0 | AR68: 0 | AS68: 0 | AT68: 97.2281
A69: 1 | B69: 22120 | C69: AMPHIBOLES | D69: MEDIUM QUALITY | E69: PARGASITE | F69: LOW QUALITY | G69: EDENITE | H69: (K0.2Na0.7)Σ0.9(Ca1.9Fe0.1Na0.1)Σ2.1(Ti0.1Cr0.2Fe0.1Al0.5Fe0.4Mg3.8)Σ5.1(Al1.6Si6.3)Σ7.9O22(OH1.9)Σ2.0 | I69: Carvalho 1997 | J69: Amphibole | K69: 12.641 | L69: 0 | M69: 11.927 | N69: 0 | O69: 0 | P69: 0 | Q69: 1.659 | R69: 0 | S69: 0 | T69: 0 | U69: 2.7 | V69: 2.09 | W69: 0 | X69: 1.145 | Y69: 0 | Z69: 18.109 | AA69: 0.016 | AB69: 3.265 | AC69: 0 | AD69: 0 | AE69: 0 | AF69: 0 | AG69: 0 | AH69: 0 | AI69: 44.278 | AJ69: 0 | AK69: 0 | AL69: 0 | AM69: 0 | AN69: 0.983 | AO69: 0 | AP69: 0 | AQ69: 0 | AR69: 0 | AS69: 0 | AT69: 98.813
A70: 1 | B70: 22121 | C70: AMPHIBOLES | D70: MEDIUM QUALITY | E70: PARGASITE | F70: LOW QUALITY | G70: EDENITE | H70: (K0.2Na0.6)Σ0.8(Ca1.9Fe0.1Na0.1)Σ2.1(Ti0.1Cr0.2Fe0.1Al0.5Fe0.4Mg3.8)Σ5.1(Al1.6Si6.3)Σ7.9O22(OH1.9)Σ2.0 | I70: Carvalho 1997 | J70: Amphibole | K70: 12.488 | L70: 0 | M70: 11.899 | N70: 0 | O70: 0 | P70: 0 | Q70: 1.625 | R70: 0 | S70: 0 | T70: 0 | U70: 2.716 | V70: 2.092 | W70: 0 | X70: 1.125 | Y70: 0 | Z70: 18.246 | AA70: 0.062 | AB70: 3.29 | AC70: 0 | AD70: 0 | AE70: 0 | AF70: 0 | AG70: 0 | AH70: 0 | AI70: 44.437 | AJ70: 0 | AK70: 0 | AL70: 0 | AM70: 0 | AN70: 0.923 | AO70: 0 | AP70: 0 | AQ70: 0 | AR70: 0 | AS70: 0 | AT70: 98.903
A71: 1 | B71: 22122 | C71: AMPHIBOLES | D71: MEDIUM QUALITY | E71: PARGASITE | F71: LOW QUALITY | G71: EDENITE | H71: (K0.2Na0.6)Σ0.8(Ca1.9Fe0.1Na0.1)Σ2.1(Ti0.1Cr0.2Fe0.1Al0.5Fe0.4Mg3.7)Σ5.0(Al1.6Si6.3)Σ7.9O22(OH1.9)Σ2.0 | I71: Carvalho 1997 | J71: Amphibole | K71: 12.791 | L71: 0 | M71: 11.88 | N71: 0 | O71: 0 | P71: 0 | Q71: 1.672 | R71: 0 | S71: 0 | T71: 0 | U71: 2.808 | V71: 2.08 | W71: 0 | X71: 1.179 | Y71: 0 | Z71: 17.932 | AA71: 0.016 | AB71: 3.129 | AC71: 0 | AD71: 0 | AE71: 0 | AF71: 0 | AG71: 0 | AH71: 0 | AI71: 43.948 | AJ71: 0 | AK71: 0 | AL71: 0 | AM71: 0 | AN71: 0.992 | AO71: 0 | AP71: 0 | AQ71: 0 | AR71: 0 | AS71: 0 | AT71: 98.427
A72: 1 | B72: 22123 | C72: AMPHIBOLES | D72: MEDIUM QUALITY | E72: RICHTERITE | F72: MEDIUM QUALITY | G72: TREMOLITE | H72: (K0.8Na0.2)Σ1.0(Ca1.1Mg0.1Na0.9)Σ2.1(Fe0.1Fe0.4Mg4.2)Σ4.7(Al0.2Si7.5Ti0.1)Σ7.8O22(OH1.8)Σ1.9 | I72: Nannini 2016 | J72: Amphibole | K72: 1.1257 | L72: 0 | M72: 7.1561 | N72: 0 | O72: 0 | P72: 0 | Q72: 0.1446 | R72: 0 | S72: 0 | T72: 0 | U72: 3.2951 | V72: 0 | W72: 0 | X72: 4.286 | Y72: 0 | Z72: 21.8798 | AA72: 0 | AB72: 4.898 | AC72: 0 | AD72: 0 | AE72: 0.1294 | AF72: 0 | AG72: 0 | AH72: 0 | AI72: 52.0504 | AJ72: 0 | AK72: 0 | AL72: 0 | AM72: 0 | AN72: 0.9755 | AO72: 0 | AP72: 0 | AQ72: 0 | AR72: 0 | AS72: 0 | AT72: 95.9406
A73: 1 | B73: 22124 | C73: AMPHIBOLES | D73: MEDIUM QUALITY | E73: PARGASITE | F73: LOW QUALITY | G73: EDENITE | H73: (K0.3Na0.8)Σ1.1(Ca1.8Fe0.1Na0.1)Σ2.0(Ti0.1Cr0.1Fe0.1Al0.6Fe0.4Mg3.7)Σ5.0(Al1.8Si6.2)Σ8.0O22(OH1.9)Σ2.0 | I73: Carvalho 1997 | J73: Amphibole | K73: 13.493 | L73: 0 | M73: 11.208 | N73: 0 | O73: 0 | P73: 0 | Q73: 2.24 | R73: 0 | S73: 0 | T73: 0 | U73: 2.841 | V73: 2.058 | W73: 0 | X73: 1.345 | Y73: 0 | Z73: 17.375 | AA73: 0.025 | AB73: 2.84 | AC73: 0 | AD73: 0 | AE73: 0 | AF73: 0 | AG73: 0 | AH73: 0 | AI73: 43.124 | AJ73: 0 | AK73: 0 | AL73: 0 | AM73: 0 | AN73: 0.813 | AO73: 0 | AP73: 0 | AQ73: 0 | AR73: 0 | AS73: 0 | AT73: 97.362
A74: 0 | B74: 21844 | C74: FELDSPAR | D74: LOW QUALITY | E74: ANDESINE | F74: LOW QUALITY | G74: ANORTHOCLASE | H74: (Ca0.3K0.3Na0.4)Σ1.0(Si2.5)Σ2.5O7.2 | I74: Carvalho 1997 | J74: Amphibole | K74: 0.165 | L74: 0 | M74: 6.501 | N74: 0 | O74: 0 | P74: 0 | Q74: 0.192 | R74: 0 | S74: 0 | T74: 0 | U74: 0.802 | V74: 2.162 | W74: 0 | X74: 5.109 | Y74: 0 | Z74: 23.854 | AA74: 0.004 | AB74: 4.245 | AC74: 0 | AD74: 0 | AE74: 0 | AF74: 0 | AG74: 0 | AH74: 0 | AI74: 57.25 | AJ74: 0 | AK74: 0 | AL74: 0 | AM74: 0 | AN74: 0.186 | AO74: 0 | AP74: 0 | AQ74: 0 | AR74: 0 | AS74: 0 | AT74: 100.47
A75: 0 | B75: 21605 | C75: MICA | D75: LOW QUALITY | E75: BIOTITE (SENSU LATO) | F75: LOW QUALITY | G75: CELADONITE | H75: (Ca1.4K3.7Na0.2)Σ5.3(Ti0.1Cr0.2Fe0.5Mg5.9Li2.0)Σ8.7(Al1.9Si4.0)Σ5.9O20(OH4.0)Σ4.0 | I75: Carvalho 1997 | J75: Amphibole | K75: 12.383 | L75: 0 | M75: 6.87 | N75: 0 | O75: 0 | P75: 0 | Q75: 1.633 | R75: 0 | S75: 0 | T75: 0 | U75: 3.186 | V75: 2.033 | W75: 0 | X75: 7.597 | Y75: 0 | Z75: 20.737 | AA75: 0.036 | AB75: 0.254 | AC75: 0 | AD75: 0 | AE75: 0 | AF75: 0 | AG75: 0 | AH75: 0 | AI75: 42.196 | AJ75: 0 | AK75: 0 | AL75: 0 | AM75: 0 | AN75: 1.102 | AO75: 0 | AP75: 0 | AQ75: 0 | AR75: 0 | AS75: 0 | AT75: 98.027
A76: 0 | B76: 21606 | C76: MICA | D76: LOW QUALITY | E76: BIOTITE (SENSU LATO) | F76: LOW QUALITY | G76: CELADONITE | H76: (Ca1.2K3.8Na0.2)Σ5.2(Ti0.1Cr0.1Fe0.5Mg6.2Li2.1)Σ9.0(Al1.7Si4.1)Σ5.8O20(OH4.0)Σ4.0 | I76: Carvalho 1997 | J76: Amphibole | K76: 11.513 | L76: 0 | M76: 6.037 | N76: 0 | O76: 0 | P76: 0 | Q76: 1.374 | R76: 0 | S76: 0 | T76: 0 | U76: 3.239 | V76: 2.027 | W76: 0 | X76: 7.893 | Y76: 0 | Z76: 21.646 | AA76: 0.054 | AB76: 0.212 | AC76: 0 | AD76: 0 | AE76: 0 | AF76: 0 | AG76: 0 | AH76: 0 | AI76: 42.611 | AJ76: 0 | AK76: 0 | AL76: 0 | AM76: 0 | AN76: 1.059 | AO76: 0 | AP76: 0 | AQ76: 0 | AR76: 0 | AS76: 0 | AT76: 97.665
A77: 0 | B77: 19380 | C77: PYROXENE | D77: MEDIUM QUALITY | E77: OMPHACITE | F77: LOW QUALITY | G77: PIGEONITE | H77: (Ca0.5Na0.1Fe0.2Mg0.2)Σ1.0(Fe0.1Al0.2Fe0.2Mg0.5)Σ1.0(Al0.3Si1.7)Σ2.0O5.9 | I77: Zolinger 2005 | J77: Amphibole | K77: 10.96 | L77: 0 | M77: 11.38 | N77: 0 | O77: 0 | P77: 0 | Q77: 0.22 | R77: 0 | S77: 0 | T77: 0 | U77: 16 | V77: 0 | W77: 0 | X77: 0.52 | Y77: 0 | Z77: 11.75 | AA77: 0.3 | AB77: 1.21 | AC77: 0 | AD77: 0 | AE77: 0 | AF77: 0 | AG77: 0 | AH77: 0 | AI77: 45.93 | AJ77: 0 | AK77: 0 | AL77: 0 | AM77: 0 | AN77: 0.64 | AO77: 0 | AP77: 0 | AQ77: 0 | AR77: 0 | AS77: 0 | AT77: 98.91
A78: 0 | B78: 19381 | C78: PYROXENE | D78: MEDIUM QUALITY | E78: OMPHACITE | F78: LOW QUALITY | G78: AUGITE | H78: (Ca0.5Na0.1Fe0.2Mg0.2)Σ1.0(Fe0.1Al0.2Fe0.2Mg0.5)Σ1.0(Al0.3Si1.7)Σ2.0O5.9 | I78: Zolinger 2005 | J78: Amphibole | K78: 10.58 | L78: 0 | M78: 11.18 | N78: 0 | O78: 0 | P78: 0 | Q78: 0.18 | R78: 0 | S78: 0 | T78: 0 | U78: 15.52 | V78: 0 | W78: 0 | X78: 0.49 | Y78: 0 | Z78: 11.98 | AA78: 0.31 | AB78: 1.16 | AC78: 0 | AD78: 0 | AE78: 0 | AF78: 0 | AG78: 0 | AH78: 0 | AI78: 45.81 | AJ78: 0 | AK78: 0 | AL78: 0 | AM78: 0 | AN78: 0.62 | AO78: 0 | AP78: 0 | AQ78: 0 | AR78: 0 | AS78: 0 | AT78: 97.83
A79: 0 | B79: 19382 | C79: PYROXENE | D79: MEDIUM QUALITY | E79: OMPHACITE | F79: LOW QUALITY | G79: PIGEONITE | H79: (Ca0.5Na0.1Fe0.2Mg0.2)Σ1.0(Fe0.2Al0.2Fe0.2Mg0.5)Σ1.1(Al0.3Si1.7)Σ2.0O5.9 | I79: Zolinger 2005 | J79: Amphibole | K79: 11.35 | L79: 0 | M79: 11.71 | N79: 0 | O79: 0 | P79: 0 | Q79: 0.04 | R79: 0 | S79: 0 | T79: 0 | U79: 15.35 | V79: 0 | W79: 0 | X79: 0.54 | Y79: 0 | Z79: 11.85 | AA79: 0.35 | AB79: 1.16 | AC79: 0 | AD79: 0 | AE79: 0 | AF79: 0 | AG79: 0 | AH79: 0 | AI79: 44.78 | AJ79: 0 | AK79: 0 | AL79: 0 | AM79: 0 | AN79: 1 | AO79: 0 | AP79: 0 | AQ79: 0 | AR79: 0 | AS79: 0 | AT79: 98.13
A80: 0 | B80: 19383 | C80: PYROXENE | D80: MEDIUM QUALITY | E80: OMPHACITE | F80: MEDIUM QUALITY | G80: PIGEONITE | H80: (Ca0.5Na0.1Fe0.2Mg0.2)Σ1.0(Fe0.2Al0.2Fe0.2Mg0.5)Σ1.1(Al0.3Si1.7)Σ2.0O5.9 | I80: Zolinger 2005 | J80: Amphibole | K80: 11.91 | L80: 0 | M80: 11.7 | N80: 0 | O80: 0 | P80: 0 | Q80: 0.07 | R80: 0 | S80: 0 | T80: 0 | U80: 15.49 | V80: 0 | W80: 0 | X80: 0.56 | Y80: 0 | Z80: 11.56 | AA80: 0.32 | AB80: 1.23 | AC80: 0 | AD80: 0 | AE80: 0 | AF80: 0 | AG80: 0 | AH80: 0 | AI80: 44.87 | AJ80: 0 | AK80: 0 | AL80: 0 | AM80: 0 | AN80: 1.04 | AO80: 0 | AP80: 0 | AQ80: 0 | AR80: 0 | AS80: 0 | AT80: 98.75
A81: 0 | B81: 19384 | C81: PYROXENE | D81: MEDIUM QUALITY | E81: OMPHACITE | F81: LOW QUALITY | G81: PIGEONITE | H81: (Ca0.5Na0.1Fe0.2Mg0.2)Σ1.0(Fe0.1Al0.3Fe0.2Mg0.4)Σ1.0(Al0.2Si1.8)Σ2.0O5.9 | I81: Zolinger 2005 | J81: Amphibole | K81: 10.52 | L81: 0 | M81: 11.76 | N81: 0 | O81: 0 | P81: 0 | Q81: 0.08 | R81: 0 | S81: 0 | T81: 0 | U81: 16.42 | V81: 0 | W81: 0 | X81: 0.65 | Y81: 0 | Z81: 11.05 | AA81: 0.31 | AB81: 0.94 | AC81: 0 | AD81: 0 | AE81: 0 | AF81: 0 | AG81: 0 | AH81: 0 | AI81: 45.93 | AJ81: 0 | AK81: 0 | AL81: 0 | AM81: 0 | AN81: 0.57 | AO81: 0 | AP81: 0 | AQ81: 0 | AR81: 0 | AS81: 0 | AT81: 98.23
A82: 0 | B82: 19385 | C82: PYROXENE | D82: MEDIUM QUALITY | E82: OMPHACITE | F82: LOW QUALITY | G82: PIGEONITE | H82: (Ca0.5Na0.1Fe0.2Mg0.2)Σ1.0(Fe0.2Al0.2Fe0.2Mg0.4)Σ1.0(Al0.3Si1.7)Σ2.0O5.9 | I82: Zolinger 2005 | J82: Amphibole | K82: 10.78 | L82: 0 | M82: 11.39 | N82: 0 | O82: 0 | P82: 0 | Q82: 0.14 | R82: 0 | S82: 0 | T82: 0 | U82: 16.31 | V82: 0 | W82: 0 | X82: 0.77 | Y82: 0 | Z82: 11.19 | AA82: 0.33 | AB82: 1.14 | AC82: 0 | AD82: 0 | AE82: 0 | AF82: 0 | AG82: 0 | AH82: 0 | AI82: 44.94 | AJ82: 0 | AK82: 0 | AL82: 0 | AM82: 0 | AN82: 0.75 | AO82: 0 | AP82: 0 | AQ82: 0 | AR82: 0 | AS82: 0 | AT82: 97.74
A83: 0 | B83: 19386 | C83: PYROXENE | D83: LOW QUALITY | E83: TITAN-AUGITE | F83: LOW QUALITY | G83: PIGEONITE | H83: (Ca0.5Fe0.3Mg0.2)Σ1.0(Al0.3Fe0.3Mg0.3)Σ0.9(Al0.3Si1.7)Σ2.0O6.0 | I83: Zolinger 2005 | J83: Amphibole | K83: 12.34 | L83: 0 | M83: 11.53 | N83: 0 | O83: 0 | P83: 0 | Q83: 0.05 | R83: 0 | S83: 0 | T83: 0 | U83: 18.94 | V83: 0 | W83: 0 | X83: 0.87 | Y83: 0 | Z83: 8.78 | AA83: 0.32 | AB83: 0.12 | AC83: 0 | AD83: 0 | AE83: 0 | AF83: 0 | AG83: 0 | AH83: 0 | AI83: 43.64 | AJ83: 0 | AK83: 0 | AL83: 0 | AM83: 0 | AN83: 1.38 | AO83: 0 | AP83: 0 | AQ83: 0 | AR83: 0 | AS83: 0 | AT83: 97.97
A84: 0 | B84: 19387 | C84: PYROXENE | D84: MEDIUM QUALITY | E84: OMPHACITE | F84: LOW QUALITY | G84: PIGEONITE | H84: (Ca0.5Na0.1Fe0.2Mg0.2)Σ1.0(Fe0.2Al0.2Fe0.1Mg0.4)Σ0.9(Al0.3Si1.7)Σ2.0O5.9 | I84: Zolinger 2005 | J84: Amphibole | K84: 11.11 | L84: 0 | M84: 11.58 | N84: 0 | O84: 0 | P84: 0 | Q84: 0.13 | R84: 0 | S84: 0 | T84: 0 | U84: 16.51 | V84: 0 | W84: 0 | X84: 0.93 | Y84: 0 | Z84: 10.62 | AA84: 0.5 | AB84: 1.02 | AC84: 0 | AD84: 0 | AE84: 0 | AF84: 0 | AG84: 0 | AH84: 0 | AI84: 44.3 | AJ84: 0 | AK84: 0 | AL84: 0 | AM84: 0 | AN84: 0.36 | AO84: 0 | AP84: 0 | AQ84: 0 | AR84: 0 | AS84: 0 | AT84: 97.06
A85: 0 | B85: 19388 | C85: PYROXENE | D85: MEDIUM QUALITY | E85: OMPHACITE | F85: LOW QUALITY | G85: PIGEONITE | H85: (Ca0.5Na0.1Fe0.2Mg0.2)Σ1.0(Fe0.1Al0.2Fe0.2Mg0.5)Σ1.0(Al0.2Si1.8)Σ2.0O5.9 | I85: Zolinger 2005 | J85: Amphibole | K85: 9.64 | L85: 0 | M85: 11.53 | N85: 0 | O85: 0 | P85: 0 | Q85: 0.16 | R85: 0 | S85: 0 | T85: 0 | U85: 15.78 | V85: 0 | W85: 0 | X85: 0.74 | Y85: 0 | Z85: 11.58 | AA85: 0.49 | AB85: 0.9 | AC85: 0 | AD85: 0 | AE85: 0 | AF85: 0 | AG85: 0 | AH85: 0 | AI85: 45.85 | AJ85: 0 | AK85: 0 | AL85: 0 | AM85: 0 | AN85: 0.28 | AO85: 0 | AP85: 0 | AQ85: 0 | AR85: 0 | AS85: 0 | AT85: 96.95
A86: 0 | B86: 19389 | C86: PYROXENE | D86: MEDIUM QUALITY | E86: OMPHACITE | F86: MEDIUM QUALITY | G86: AUGITE | H86: (Ca0.5Na0.1Fe0.2Mg0.2)Σ1.0(Al0.3Fe0.3Mg0.5)Σ1.1(Al0.2Si1.8)Σ2.0O6.0 | I86: Zolinger 2005 | J86: Amphibole | K86: 10.78 | L86: 0 | M86: 11.26 | N86: 0 | O86: 0 | P86: 0 | Q86: 0.14 | R86: 0 | S86: 0 | T86: 0 | U86: 13.95 | V86: 0 | W86: 0 | X86: 0.37 | Y86: 0 | Z86: 12.02 | AA86: 0.2 | AB86: 1.14 | AC86: 0 | AD86: 0 | AE86: 0 | AF86: 0 | AG86: 0 | AH86: 0 | AI86: 46.1 | AJ86: 0 | AK86: 0 | AL86: 0 | AM86: 0 | AN86: 1.09 | AO86: 0 | AP86: 0 | AQ86: 0 | AR86: 0 | AS86: 0 | AT86: 97.05
A87: 0 | B87: 19390 | C87: PYROXENE | D87: MEDIUM QUALITY | E87: OMPHACITE | F87: LOW QUALITY | G87: TITAN-AUGITE | H87: (Ca0.5Na0.1Fe0.2Mg0.2)Σ1.0(Fe0.1Al0.2Fe0.2Mg0.5)Σ1.0(Al0.3Si1.7)Σ2.0O6.0 | I87: Zolinger 2005 | J87: Amphibole | K87: 11.1 | L87: 0 | M87: 11.2 | N87: 0 | O87: 0 | P87: 0 | Q87: 0.14 | R87: 0 | S87: 0 | T87: 0 | U87: 14.16 | V87: 0 | W87: 0 | X87: 0.4 | Y87: 0 | Z87: 11.86 | AA87: 0.29 | AB87: 1.21 | AC87: 0 | AD87: 0 | AE87: 0 | AF87: 0 | AG87: 0 | AH87: 0 | AI87: 45.03 | AJ87: 0 | AK87: 0 | AL87: 0 | AM87: 0 | AN87: 1.16 | AO87: 0 | AP87: 0 | AQ87: 0 | AR87: 0 | AS87: 0 | AT87: 96.55
A88: 0 | B88: 19391 | C88: PYROXENE | D88: MEDIUM QUALITY | E88: OMPHACITE | F88: LOW QUALITY | G88: PIGEONITE | H88: (Ca0.5Na0.1Fe0.2Mg0.2)Σ1.0(Fe0.2Al0.2Fe0.2Mg0.3)Σ0.9(Al0.3Si1.7)Σ2.0O5.9 | I88: Zolinger 2005 | J88: Amphibole | K88: 11.14 | L88: 0 | M88: 11.8 | N88: 0 | O88: 0 | P88: 0 | Q88: 0.05 | R88: 0 | S88: 0 | T88: 0 | U88: 19.61 | V88: 0 | W88: 0 | X88: 0.6 | Y88: 0 | Z88: 9.18 | AA88: 0.24 | AB88: 1.21 | AC88: 0 | AD88: 0 | AE88: 0 | AF88: 0 | AG88: 0 | AH88: 0 | AI88: 42.9 | AJ88: 0 | AK88: 0 | AL88: 0 | AM88: 0 | AN88: 0.86 | AO88: 0 | AP88: 0 | AQ88: 0 | AR88: 0 | AS88: 0 | AT88: 97.59
A89: 1 | B89: 19458 | C89: PYROXENE | D89: MEDIUM QUALITY | E89: PIGEONITE | F89: LOW QUALITY | G89: AEGIRINE | H89: (Ca0.2Na0.3Fe0.1Mg0.4)Σ1.0(Fe0.2Mg0.6)Σ0.8(Si2.0)Σ2.0O5.7 | I89: Guarino et al. 2013 | J89: Clinopyroxene | K89: 0.2663 | L89: 0 | M89: 5.8822 | N89: 0 | O89: 0 | P89: 0 | Q89: 0 | R89: 0 | S89: 0 | T89: 0 | U89: 6.3018 | V89: 0 | W89: 0 | X89: 4.5889 | Y89: 0 | Z89: 19.0353 | AA89: 0.2271 | AB89: 4.6408 | AC89: 0 | AD89: 0 | AE89: 0 | AF89: 0 | AG89: 0 | AH89: 0 | AI89: 54.9797 | AJ89: 0 | AK89: 0 | AL89: 0 | AM89: 0 | AN89: 1.8228 | AO89: 0 | AP89: 0 | AQ89: 0 | AR89: 0 | AS89: 0 | AT89: 97.7449
A90: 1 | B90: 19459 | C90: PYROXENE | D90: MEDIUM QUALITY | E90: PIGEONITE | F90: LOW QUALITY | G90: AEGIRINE | H90: (Ca0.2Na0.3Fe0.1Mg0.4)Σ1.0(Ti0.1Fe0.2Mg0.6)Σ1.0(Si2.0)Σ2.0O5.7 | I90: Guarino et al. 2013 | J90: Clinopyroxene | K90: 0.5296 | L90: 0 | M90: 5.8258 | N90: 0 | O90: 0 | P90: 0 | Q90: 0 | R90: 0 | S90: 0 | T90: 0 | U90: 5.6424 | V90: 0 | W90: 0 | X90: 4.3344 | Y90: 0 | Z90: 19.3725 | AA90: 0.1955 | AB90: 4.7439 | AC90: 0 | AD90: 0 | AE90: 0 | AF90: 0 | AG90: 0 | AH90: 0 | AI90: 54.5711 | AJ90: 0 | AK90: 0 | AL90: 0 | AM90: 0 | AN90: 2.0058 | AO90: 0 | AP90: 0 | AQ90: 0 | AR90: 0 | AS90: 0 | AT90: 97.2211
A91: 1 | B91: 19460 | C91: PYROXENE | D91: MEDIUM QUALITY | E91: PIGEONITE | F91: LOW QUALITY | G91: AEGIRINE | H91: (Ca0.2Na0.3Fe0.1Mg0.4)Σ1.0(Ti0.1Fe0.1Mg0.7)Σ1.0(Si2.0)Σ2.0O5.7 | I91: Guarino et al. 2013 | J91: Clinopyroxene | K91: 0.7312 | L91: 0 | M91: 6.1505 | N91: 0 | O91: 0 | P91: 0 | Q91: 0 | R91: 0 | S91: 0 | T91: 0 | U91: 4.5965 | V91: 0 | W91: 0 | X91: 4.2933 | Y91: 0 | Z91: 19.6418 | AA91: 0.3489 | AB91: 4.5607 | AC91: 0 | AD91: 0 | AE91: 0 | AF91: 0 | AG91: 0 | AH91: 0 | AI91: 54.1819 | AJ91: 0 | AK91: 0 | AL91: 0 | AM91: 0 | AN91: 2.1066 | AO91: 0 | AP91: 0 | AQ91: 0 | AR91: 0 | AS91: 0 | AT91: 96.6114
A92: 1 | B92: 19769 | C92: PYROXENE | D92: LOW QUALITY | E92: ENSTATITE/CLINOENSTATITE | F92: LOW QUALITY | G92: PIGEONITE | H92: (Ca0.2Fe0.1Mg0.7)Σ1.0(Ti0.1Mg0.5)Σ0.7(Si2.1)Σ2.1O6.0 | I92: Nannini 2016 | J92: Orthopyroxene | K92: 0.0985 | L92: 0 | M92: 6.253 | N92: 0 | O92: 0 | P92: 0 | Q92: 0.2986 | R92: 0 | S92: 0 | T92: 0 | U92: 2.6438 | V92: 0 | W92: 0 | X92: 4.1587 | Y92: 0 | Z92: 22.1405 | AA92: 0.0665 | AB92: 0.6846 | AC92: 0 | AD92: 0 | AE92: 0.0563 | AF92: 0 | AG92: 0 | AH92: 0 | AI92: 57.0451 | AJ92: 0 | AK92: 0 | AL92: 0 | AM92: 0 | AN92: 4.9621 | AO92: 0 | AP92: 0 | AQ92: 0 | AR92: 0 | AS92: 0 | AT92: 98.4077
A93: 1 | B93: 19770 | C93: PYROXENE | D93: LOW QUALITY | E93: ENSTATITE/CLINOENSTATITE | F93: LOW QUALITY | G93: PIGEONITE | H93: (Ca0.2Na0.1Mg0.7)Σ1.0(Ti0.1Mg0.5)Σ0.7(Si2.1)Σ2.1O6.0 | I93: Nannini 2016 | J93: Orthopyroxene | K93: 0.0771 | L93: 0 | M93: 6.2714 | N93: 0 | O93: 0 | P93: 0 | Q93: 0.1952 | R93: 0 | S93: 0 | T93: 0 | U93: 2.6223 | V93: 0 | W93: 0 | X93: 4.1114 | Y93: 0 | Z93: 22.3265 | AA93: 0.1177 | AB93: 0.7404 | AC93: 0 | AD93: 0 | AE93: 0 | AF93: 0 | AG93: 0 | AH93: 0 | AI93: 56.8166 | AJ93: 0 | AK93: 0 | AL93: 0 | AM93: 0 | AN93: 4.8037 | AO93: 0 | AP93: 0 | AQ93: 0 | AR93: 0 | AS93: 0 | AT93: 98.0823
A94: 1 | B94: 19897 | C94: PYROXENE | D94: LOW QUALITY | E94: ENSTATITE/CLINOENSTATITE | F94: LOW QUALITY | G94: DIOPSIDE | H94: (Ca0.1Na0.2Mg0.7)Σ1.0(Al0.1Mg0.6)Σ0.7(Si2.2)Σ2.2O6.1 | I94: Carvalho 1997 | J94: Orthopyroxene | K94: 1.283 | L94: 0 | M94: 1.432 | N94: 0 | O94: 0 | P94: 0 | Q94: 1.627 | R94: 0 | S94: 0 | T94: 0 | U94: 2.449 | V94: 2.156 | W94: 0 | X94: 0.533 | Y94: 0 | Z94: 22.482 | AA94: 0.042 | AB94: 2.48 | AC94: 0 | AD94: 0 | AE94: 0 | AF94: 0 | AG94: 0 | AH94: 0 | AI94: 55.765 | AJ94: 0 | AK94: 0 | AL94: 0 | AM94: 0 | AN94: 0.087 | AO94: 0 | AP94: 0 | AQ94: 0 | AR94: 0 | AS94: 0 | AT94: 90.336
A95: 1 | B95: 19898 | C95: PYROXENE | D95: LOW QUALITY | E95: OMPHACITE | F95: LOW QUALITY | G95: DIOPSIDE | H95: (Ca0.4Na0.2Mg0.4)Σ1.0(Fe0.1Mg0.9)Σ1.0(Si2.1)Σ2.1O6.0 | I95: Carvalho 1997 | J95: Clinopyroxene | K95: 0.632 | L95: 0 | M95: 10.448 | N95: 0 | O95: 0 | P95: 0 | Q95: 0.297 | R95: 0 | S95: 0 | T95: 0 | U95: 1.683 | V95: 2.18 | W95: 0 | X95: 0.51 | Y95: 0 | Z95: 23.488 | AA95: 0.064 | AB95: 2.664 | AC95: 0 | AD95: 0 | AE95: 0 | AF95: 0 | AG95: 0 | AH95: 0 | AI95: 57.556 | AJ95: 0 | AK95: 0 | AL95: 0 | AM95: 0 | AN95: 0.028 | AO95: 0 | AP95: 0 | AQ95: 0 | AR95: 0 | AS95: 0 | AT95: 99.55
A96: 1 | B96: 19899 | C96: PYROXENE | D96: LOW QUALITY | E96: OMPHACITE | F96: LOW QUALITY | G96: DIOPSIDE | H96: (Ca0.4Na0.2Mg0.4)Σ1.0(Mg0.8)Σ0.8(Si2.1)Σ2.1O6.0 | I96: Carvalho 1997 | J96: Clinopyroxene | K96: 0.676 | L96: 0 | M96: 10.358 | N96: 0 | O96: 0 | P96: 0 | Q96: 0.294 | R96: 0 | S96: 0 | T96: 0 | U96: 1.513 | V96: 2.194 | W96: 0 | X96: 0.472 | Y96: 0 | Z96: 23.542 | AA96: 0 | AB96: 2.86 | AC96: 0 | AD96: 0 | AE96: 0 | AF96: 0 | AG96: 0 | AH96: 0 | AI96: 58.112 | AJ96: 0 | AK96: 0 | AL96: 0 | AM96: 0 | AN96: 0.008 | AO96: 0 | AP96: 0 | AQ96: 0 | AR96: 0 | AS96: 0 | AT96: 100.029
A97: 1 | B97: 20042 | C97: PYROXENE | D97: MEDIUM QUALITY | E97: AEGIRINE | F97: LOW QUALITY | G97: AEGIRINE | H97: (Ca0.2Na0.4Mg0.4)Σ1.0(Ti0.1Fe0.1Mg0.6)Σ0.9(Si2.0)Σ2.0O5.7 | I97: Nannini 2016 | J97: Clinopyroxene | K97: 0.7334 | L97: 0 | M97: 4.8275 | N97: 0 | O97: 0 | P97: 0 | Q97: 0.0121 | R97: 0 | S97: 0 | T97: 0 | U97: 3.2532 | V97: 0 | W97: 0 | X97: 4.5824 | Y97: 0 | Z97: 19.7337 | AA97: 0.0765 | AB97: 5.4124 | AC97: 0 | AD97: 0 | AE97: 0.0843 | AF97: 0 | AG97: 0 | AH97: 0 | AI97: 54.8641 | AJ97: 0 | AK97: 0 | AL97: 0 | AM97: 0 | AN97: 3.6659 | AO97: 0 | AP97: 0 | AQ97: 0 | AR97: 0 | AS97: 0 | AT97: 97.2455
A98: 1 | B98: 20059 | C98: PYROXENE | D98: LOW QUALITY | E98: AEGIRINE | F98: LOW QUALITY | G98: PIGEONITE | H98: (Ca0.1Na0.5Mg0.4)Σ1.0(Ti0.1Fe0.1Mg0.6)Σ0.9(Si1.9)Σ1.9O5.5 | I98: Nannini 2016 | J98: Clinopyroxene | K98: 0.2296 | L98: 0 | M98: 3.192 | N98: 0 | O98: 0 | P98: 0 | Q98: 0.0178 | R98: 0 | S98: 0 | T98: 0 | U98: 3.5235 | V98: 0 | W98: 0 | X98: 4.7496 | Y98: 0 | Z98: 18.3151 | AA98: 0.0202 | AB98: 7.5899 | AC98: 0 | AD98: 0 | AE98: 0.0521 | AF98: 0 | AG98: 0 | AH98: 0 | AI98: 52.0449 | AJ98: 0 | AK98: 0 | AL98: 0 | AM98: 0 | AN98: 4.4245 | AO98: 0 | AP98: 0 | AQ98: 0 | AR98: 0 | AS98: 0 | AT98: 94.1592
A99: 1 | B99: 20065 | C99: PYROXENE | D99: MEDIUM QUALITY | E99: PIGEONITE | F99: LOW QUALITY | G99: AEGIRINE | H99: (Ca0.2Na0.4Fe0.1Mg0.3)Σ1.0(Fe0.2Mg0.8)Σ1.0(Si1.9)Σ1.9O5.6 | I99: Nannini 2016 | J99: Clinopyroxene | K99: 1.0386 | L99: 0 | M99: 5.3878 | N99: 0 | O99: 0 | P99: 0 | Q99: 0.0538 | R99: 0 | S99: 0 | T99: 0 | U99: 5.6487 | V99: 0 | W99: 0 | X99: 4.3459 | Y99: 0 | Z99: 20.2044 | AA99: 0.0765 | AB99: 5.914 | AC99: 0 | AD99: 0 | AE99: 0.1437 | AF99: 0 | AG99: 0 | AH99: 0 | AI99: 53.7182 | AJ99: 0 | AK99: 0 | AL99: 0 | AM99: 0 | AN99: 1.8099 | AO99: 0 | AP99: 0 | AQ99: 0 | AR99: 0 | AS99: 0 | AT99: 98.3415
A100: 1 | B100: 20066 | C100: PYROXENE | D100: MEDIUM QUALITY | E100: PIGEONITE | F100: LOW QUALITY | G100: OMPHACITE | H100: (Ca0.2Na0.4Mg0.4)Σ1.0(Fe0.1Mg0.7)Σ0.8(Si1.9)Σ1.9O5.6 | I100: Nannini 2016 | J100: Clinopyroxene | K100: 1.0592 | L100: 0 | M100: 6.2069 | N100: 0 | O100: 0 | P100: 0 | Q100: 0.0481 | R100: 0 | S100: 0 | T100: 0 | U100: 4.792 | V100: 0 | W100: 0 | X100: 4.5086 | Y100: 0 | Z100: 20.5798 | AA100: 0.0256 | AB100: 5.1642 | AC100: 0 | AD100: 0 | AE100: 0.0192 | AF100: 0 | AG100: 0 | AH100: 0 | AI100: 53.8812 | AJ100: 0 | AK100: 0 | AL100: 0 | AM100: 0 | AN100: 1.5567 | AO100: 0 | AP100: 0 | AQ100: 0 | AR100: 0 | AS100: 0 | AT100: 97.8415
A101: 1 | B101: 20067 | C101: PYROXENE | D101: MEDIUM QUALITY | E101: OMPHACITE | F101: LOW QUALITY | G101: PIGEONITE | H101: (Ca0.3Na0.3Mg0.4)Σ1.0(Fe0.1Mg0.7)Σ0.8(Si1.9)Σ1.9O5.6 | I101: Nannini 2016 | J101: Clinopyroxene | K101: 1.0439 | L101: 0 | M101: 6.8965 | N101: 0 | O101: 0 | P101: 0 | Q101: 0.723 | R101: 0 | S101: 0 | T101: 0 | U101: 3.005 | V101: 0 | W101: 0 | X101: 4.4184 | Y101: 0 | Z101: 21.455 | AA101: 0 | AB101: 4.8685 | AC101: 0 | AD101: 0 | AE101: 0 | AF101: 0 | AG101: 0 | AH101: 0 | AI101: 52.6189 | AJ101: 0 | AK101: 0 | AL101: 0 | AM101: 0 | AN101: 0.715 | AO101: 0 | AP101: 0 | AQ101: 0 | AR101: 0 | AS101: 0 | AT101: 95.7442
A102: 1 | B102: 20068 | C102: PYROXENE | D102: MEDIUM QUALITY | E102: OMPHACITE | F102: LOW QUALITY | G102: PIGEONITE | H102: (Ca0.3Na0.3Mg0.4)Σ1.0(Fe0.1Mg0.8)Σ0.9(Si1.9)Σ1.9O5.5 | I102: Nannini 2016 | J102: Clinopyroxene | K102: 1.1312 | L102: 0 | M102: 7.1926 | N102: 0 | O102: 0 | P102: 0 | Q102: 0.3107 | R102: 0 | S102: 0 | T102: 0 | U102: 3.056 | V102: 0 | W102: 0 | X102: 4.3867 | Y102: 0 | Z102: 21.7608 | AA102: 0.0253 | AB102: 4.7039 | AC102: 0 | AD102: 0 | AE102: 0.057 | AF102: 0 | AG102: 0 | AH102: 0 | AI102: 51.4134 | AJ102: 0 | AK102: 0 | AL102: 0 | AM102: 0 | AN102: 0.7444 | AO102: 0 | AP102: 0 | AQ102: 0 | AR102: 0 | AS102: 0 | AT102: 94.782
A103: 1 | B103: 20078 | C103: PYROXENE | D103: MEDIUM QUALITY | E103: OMPHACITE | F103: LOW QUALITY | G103: PIGEONITE | H103: (Ca0.3Na0.3Fe0.1Mg0.3)Σ1.0(Ti0.1Fe0.2Mg0.7)Σ1.1(Si2.0)Σ2.0O5.7 | I103: Guarino et al. 2013 | J103: Clinopyroxene | K103: 1.1535 | L103: 0 | M103: 7.2283 | N103: 0 | O103: 0 | P103: 0 | Q103: 0.2934 | R103: 0 | S103: 0 | T103: 0 | U103: 4.9783 | V103: 0 | W103: 0 | X103: 3.4909 | Y103: 0 | Z103: 18.7285 | AA103: 0.055 | AB103: 4.3968 | AC103: 0 | AD103: 0 | AE103: 0 | AF103: 0 | AG103: 0 | AH103: 0 | AI103: 54.2054 | AJ103: 0 | AK103: 0 | AL103: 0 | AM103: 0 | AN103: 2.4506 | AO103: 0 | AP103: 0 | AQ103: 0 | AR103: 0 | AS103: 0 | AT103: 96.9807
A104: 1 | B104: 20079 | C104: PYROXENE | D104: MEDIUM QUALITY | E104: PIGEONITE | F104: LOW QUALITY | G104: OMPHACITE | H104: (Ca0.2Na0.3Fe0.1Mg0.4)Σ1.0(Ti0.1Fe0.1Mg0.6)Σ0.9(Al0.1Si1.9)Σ2.0O5.7 | I104: Guarino et al. 2013 | J104: Clinopyroxene | K104: 1.5352 | L104: 0 | M104: 5.7535 | N104: 0 | O104: 0 | P104: 0 | Q104: 0.0261 | R104: 0 | S104: 0 | T104: 0 | U104: 4.8642 | V104: 0 | W104: 0 | X104: 4.171 | Y104: 0 | Z104: 19.2297 | AA104: 0 | AB104: 4.8004 | AC104: 0 | AD104: 0 | AE104: 0 | AF104: 0 | AG104: 0 | AH104: 0 | AI104: 53.2258 | AJ104: 0 | AK104: 0 | AL104: 0 | AM104: 0 | AN104: 3.4318 | AO104: 0 | AP104: 0 | AQ104: 0 | AR104: 0 | AS104: 0 | AT104: 97.0376
A105: 1 | B105: 20080 | C105: PYROXENE | D105: MEDIUM QUALITY | E105: PIGEONITE | F105: LOW QUALITY | G105: AEGIRINE | H105: (Ca0.2Na0.3Fe0.1Mg0.4)Σ1.0(Ti0.1Fe0.2Mg0.6)Σ1.0(Al0.1Si1.9)Σ2.0O5.6 | I105: Guarino et al. 2013 | J105: Clinopyroxene | K105: 1.5976 | L105: 0 | M105: 4.8394 | N105: 0 | O105: 0 | P105: 0 | Q105: 0 | R105: 0 | S105: 0 | T105: 0 | U105: 5.2303 | V105: 0 | W105: 0 | X105: 4.4029 | Y105: 0 | Z105: 19.363 | AA105: 0.1903 | AB105: 4.958 | AC105: 0 | AD105: 0 | AE105: 0 | AF105: 0 | AG105: 0 | AH105: 0 | AI105: 52.8137 | AJ105: 0 | AK105: 0 | AL105: 0 | AM105: 0 | AN105: 2.5595 | AO105: 0 | AP105: 0 | AQ105: 0 | AR105: 0 | AS105: 0 | AT105: 95.9547
A106: 1 | B106: 21237 | C106: PYROXENE | D106: LOW QUALITY | E106: PIGEONITE | F106: LOW QUALITY | G106: OMPHACITE | H106: (Ca0.3Na0.3Mg0.4)Σ1.0(Fe0.1Mg0.7)Σ0.8(Si2.0)Σ2.0O5.6 | I106: Guarino et al. 2013 | J106: Clinopyroxene | K106: 0.5472 | L106: 0 | M106: 6.856 | N106: 0 | O106: 0 | P106: 0 | Q106: 0.13 | R106: 0 | S106: 0 | T106: 0 | U106: 3.4686 | V106: 0 | W106: 0 | X106: 5.0779 | Y106: 0 | Z106: 21.31 | AA106: 0.1713 | AB106: 4.0911 | AC106: 0 | AD106: 0 | AE106: 0 | AF106: 0 | AG106: 0 | AH106: 0 | AI106: 55.818 | AJ106: 0 | AK106: 0 | AL106: 0 | AM106: 0 | AN106: 0 | AO106: 0 | AP106: 0 | AQ106: 0 | AR106: 0 | AS106: 0 | AT106: 97.4703
A107: 1 | B107: 21238 | C107: PYROXENE | D107: LOW QUALITY | E107: PIGEONITE | F107: LOW QUALITY | G107: OMPHACITE | H107: (Ca0.3Na0.3Mg0.4)Σ1.0(Fe0.1Mg0.8)Σ0.9(Si2.0)Σ2.0O5.6 | I107: Guarino et al. 2013 | J107: Clinopyroxene | K107: 0.3078 | L107: 0 | M107: 6.756 | N107: 0 | O107: 0 | P107: 0 | Q107: 0.044 | R107: 0 | S107: 0 | T107: 0 | U107: 2.6707 | V107: 0 | W107: 0 | X107: 5.2521 | Y107: 0 | Z107: 21.9984 | AA107: 0.0209 | AB107: 4.0451 | AC107: 0 | AD107: 0 | AE107: 0 | AF107: 0 | AG107: 0 | AH107: 0 | AI107: 56.2679 | AJ107: 0 | AK107: 0 | AL107: 0 | AM107: 0 | AN107: 0.2268 | AO107: 0 | AP107: 0 | AQ107: 0 | AR107: 0 | AS107: 0 | AT107: 97.5896
A108: 1 | B108: 21239 | C108: PYROXENE | D108: LOW QUALITY | E108: PIGEONITE | F108: LOW QUALITY | G108: ENSTATITE/CLINOENSTATITE | H108: (Ca0.2Na0.3Mg0.5)Σ1.0(Fe0.1Mg0.7)Σ0.8(Si2.0)Σ2.0O5.6 | I108: Carvalho 1997 | J108: Clinopyroxene | K108: 0.184 | L108: 0 | M108: 5.974 | N108: 0 | O108: 0 | P108: 0 | Q108: 0.035 | R108: 0 | S108: 0 | T108: 0 | U108: 2.365 | V108: 2.157 | W108: 0 | X108: 5.175 | Y108: 0 | Z108: 22.697 | AA108: 0.023 | AB108: 4.549 | AC108: 0 | AD108: 0 | AE108: 0 | AF108: 0 | AG108: 0 | AH108: 0 | AI108: 57.523 | AJ108: 0 | AK108: 0 | AL108: 0 | AM108: 0 | AN108: 0.097 | AO108: 0 | AP108: 0 | AQ108: 0 | AR108: 0 | AS108: 0 | AT108: 100.779
A109: 1 | B109: 21240 | C109: PYROXENE | D109: LOW QUALITY | E109: ENSTATITE/CLINOENSTATITE | F109: LOW QUALITY | G109: OMPHACITE | H109: (Ca0.2Na0.3Mg0.5)Σ1.0(Fe0.1Mg0.7)Σ0.8(Si2.0)Σ2.0O5.6 | I109: Carvalho 1997 | J109: Orthopyroxene | K109: 0.537 | L109: 0 | M109: 6.181 | N109: 0 | O109: 0 | P109: 0 | Q109: 0.189 | R109: 0 | S109: 0 | T109: 0 | U109: 2.473 | V109: 2.154 | W109: 0 | X109: 5.058 | Y109: 0 | Z109: 22.446 | AA109: 0 | AB109: 4.42 | AC109: 0 | AD109: 0 | AE109: 0 | AF109: 0 | AG109: 0 | AH109: 0 | AI109: 56.912 | AJ109: 0 | AK109: 0 | AL109: 0 | AM109: 0 | AN109: 0.361 | AO109: 0 | AP109: 0 | AQ109: 0 | AR109: 0 | AS109: 0 | AT109: 100.731
A110: 1 | B110: 21241 | C110: PYROXENE | D110: MEDIUM QUALITY | E110: OMPHACITE | F110: LOW QUALITY | G110: ENSTATITE/CLINOENSTATITE | H110: (Ca0.3Na0.3Mg0.4)Σ1.0(Fe0.1Mg0.8)Σ0.9(Si2.0)Σ2.0O5.6 | I110: Carvalho 1997 | J110: Clinopyroxene | K110: 0.417 | L110: 0 | M110: 7.169 | N110: 0 | O110: 0 | P110: 0 | Q110: 0.212 | R110: 0 | S110: 0 | T110: 0 | U110: 2.472 | V110: 2.099 | W110: 0 | X110: 4.946 | Y110: 0 | Z110: 21.924 | AA110: 0.081 | AB110: 4.063 | AC110: 0 | AD110: 0 | AE110: 0 | AF110: 0 | AG110: 0 | AH110: 0 | AI110: 55.051 | AJ110: 0 | AK110: 0 | AL110: 0 | AM110: 0 | AN110: 0.234 | AO110: 0 | AP110: 0 | AQ110: 0 | AR110: 0 | AS110: 0 | AT110: 98.668
A111: 1 | B111: 21242 | C111: PYROXENE | D111: LOW QUALITY | E111: PIGEONITE | F111: LOW QUALITY | G111: OMPHACITE | H111: (Ca0.2Na0.3Mg0.5)Σ1.0(Fe0.1Mg0.7)Σ0.8(Si2.0)Σ2.0O5.6 | I111: Carvalho 1997 | J111: Clinopyroxene | K111: 0.155 | L111: 0 | M111: 5.265 | N111: 0 | O111: 0 | P111: 0 | Q111: 0.066 | R111: 0 | S111: 0 | T111: 0 | U111: 1.879 | V111: 2.089 | W111: 0 | X111: 4.94 | Y111: 0 | Z111: 21.763 | AA111: 0 | AB111: 4.774 | AC111: 0 | AD111: 0 | AE111: 0 | AF111: 0 | AG111: 0 | AH111: 0 | AI111: 56.172 | AJ111: 0 | AK111: 0 | AL111: 0 | AM111: 0 | AN111: 0.084 | AO111: 0 | AP111: 0 | AQ111: 0 | AR111: 0 | AS111: 0 | AT111: 97.187
A112: 1 | B112: 21243 | C112: PYROXENE | D112: LOW QUALITY | E112: PIGEONITE | F112: LOW QUALITY | G112: OMPHACITE | H112: (Ca0.2Na0.3Mg0.5)Σ1.0(Fe0.1Mg0.7)Σ0.8(Si2.0)Σ2.0O5.6 | I112: Carvalho 1997 | J112: Clinopyroxene | K112: 0.29 | L112: 0 | M112: 4.919 | N112: 0 | O112: 0 | P112: 0 | Q112: 0.039 | R112: 0 | S112: 0 | T112: 0 | U112: 2.816 | V112: 2.073 | W112: 0 | X112: 4.814 | Y112: 0 | Z112: 21.611 | AA112: 0.055 | AB112: 4.717 | AC112: 0 | AD112: 0 | AE112: 0 | AF112: 0 | AG112: 0 | AH112: 0 | AI112: 55.254 | AJ112: 0 | AK112: 0 | AL112: 0 | AM112: 0 | AN112: 0.267 | AO112: 0 | AP112: 0 | AQ112: 0 | AR112: 0 | AS112: 0 | AT112: 96.855
A113: 1 | B113: 21244 | C113: PYROXENE | D113: LOW QUALITY | E113: PIGEONITE | F113: LOW QUALITY | G113: OMPHACITE | H113: (Ca0.1Na0.2Fe0.1Mg0.6)Σ1.0(Fe0.2Mg0.8)Σ1.0(Si1.8)Σ1.8O5.6 | I113: Carvalho 1997 | J113: Clinopyroxene | K113: 0.557 | L113: 0 | M113: 2.597 | N113: 0 | O113: 0 | P113: 0 | Q113: 0.107 | R113: 0 | S113: 0 | T113: 0 | U113: 6.303 | V113: 1.983 | W113: 0 | X113: 3.115 | Y113: 0 | Z113: 25.95 | AA113: 0.09 | AB113: 3.096 | AC113: 0 | AD113: 0 | AE113: 0 | AF113: 0 | AG113: 0 | AH113: 0 | AI113: 49.517 | AJ113: 0 | AK113: 0 | AL113: 0 | AM113: 0 | AN113: 0.134 | AO113: 0 | AP113: 0 | AQ113: 0 | AR113: 0 | AS113: 0 | AT113: 93.449
A114: 1 | B114: 21245 | C114: PYROXENE | D114: LOW QUALITY | E114: PIGEONITE | F114: LOW QUALITY | G114: OMPHACITE | H114: (Ca0.1Na0.2Fe0.1Mg0.6)Σ1.0(Fe0.2Mg0.8)Σ1.0(Si1.9)Σ1.9O5.6 | I114: Carvalho 1997 | J114: Clinopyroxene | K114: 0.629 | L114: 0 | M114: 2.391 | N114: 0 | O114: 0 | P114: 0 | Q114: 0.068 | R114: 0 | S114: 0 | T114: 0 | U114: 6.023 | V114: 1.979 | W114: 0 | X114: 3.26 | Y114: 0 | Z114: 25.73 | AA114: 0.088 | AB114: 3.142 | AC114: 0 | AD114: 0 | AE114: 0 | AF114: 0 | AG114: 0 | AH114: 0 | AI114: 49.619 | AJ114: 0 | AK114: 0 | AL114: 0 | AM114: 0 | AN114: 0.163 | AO114: 0 | AP114: 0 | AQ114: 0 | AR114: 0 | AS114: 0 | AT114: 93.092
A115: 1 | B115: 21246 | C115: PYROXENE | D115: LOW QUALITY | E115: PIGEONITE | F115: LOW QUALITY | G115: OMPHACITE | H115: (Ca0.1Na0.2Fe0.1Mg0.6)Σ1.0(Fe0.2Mg0.8)Σ1.0(Si1.9)Σ1.9O5.6 | I115: Carvalho 1997 | J115: Clinopyroxene | K115: 0.707 | L115: 0 | M115: 2.36 | N115: 0 | O115: 0 | P115: 0 | Q115: 0.142 | R115: 0 | S115: 0 | T115: 0 | U115: 6.26 | V115: 1.987 | W115: 0 | X115: 3.294 | Y115: 0 | Z115: 25.771 | AA115: 0.081 | AB115: 3.083 | AC115: 0 | AD115: 0 | AE115: 0 | AF115: 0 | AG115: 0 | AH115: 0 | AI115: 49.686 | AJ115: 0 | AK115: 0 | AL115: 0 | AM115: 0 | AN115: 0.188 | AO115: 0 | AP115: 0 | AQ115: 0 | AR115: 0 | AS115: 0 | AT115: 93.559
A116: 1 | B116: 21247 | C116: PYROXENE | D116: LOW QUALITY | E116: PIGEONITE | F116: LOW QUALITY | G116: OMPHACITE | H116: (Ca0.1Na0.3Fe0.1Mg0.5)Σ1.0(Fe0.2Mg0.9)Σ1.1(Si1.9)Σ1.9O5.6 | I116: Carvalho 1997 | J116: Clinopyroxene | K116: 0.319 | L116: 0 | M116: 1.987 | N116: 0 | O116: 0 | P116: 0 | Q116: 0.148 | R116: 0 | S116: 0 | T116: 0 | U116: 5.176 | V116: 2.007 | W116: 0 | X116: 3.297 | Y116: 0 | Z116: 25.758 | AA116: 0.147 | AB116: 3.542 | AC116: 0 | AD116: 0 | AE116: 0 | AF116: 0 | AG116: 0 | AH116: 0 | AI116: 51.255 | AJ116: 0 | AK116: 0 | AL116: 0 | AM116: 0 | AN116: 0.107 | AO116: 0 | AP116: 0 | AQ116: 0 | AR116: 0 | AS116: 0 | AT116: 93.743
A117: 1 | B117: 21248 | C117: PYROXENE | D117: LOW QUALITY | E117: PIGEONITE | F117: LOW QUALITY | G117: ENSTATITE/CLINOENSTATITE | H117: (Ca0.1Na0.2Fe0.1Mg0.6)Σ1.0(Fe0.2Mg0.8)Σ1.0(Si1.9)Σ1.9O5.6 | I117: Carvalho 1997 | J117: Clinopyroxene | K117: 0.372 | L117: 0 | M117: 2.613 | N117: 0 | O117: 0 | P117: 0 | Q117: 0.221 | R117: 0 | S117: 0 | T117: 0 | U117: 4.918 | V117: 2.041 | W117: 0 | X117: 3.616 | Y117: 0 | Z117: 25.646 | AA117: 0.075 | AB117: 3.484 | AC117: 0 | AD117: 0 | AE117: 0 | AF117: 0 | AG117: 0 | AH117: 0 | AI117: 52.254 | AJ117: 0 | AK117: 0 | AL117: 0 | AM117: 0 | AN117: 0.152 | AO117: 0 | AP117: 0 | AQ117: 0 | AR117: 0 | AS117: 0 | AT117: 95.392
A118: 1 | B118: 21249 | C118: PYROXENE | D118: LOW QUALITY | E118: PIGEONITE | F118: LOW QUALITY | G118: OMPHACITE | H118: (Ca0.1Na0.2Fe0.1Mg0.6)Σ1.0(Fe0.1Mg0.8)Σ0.9(Si1.9)Σ1.9O5.6 | I118: Carvalho 1997 | J118: Clinopyroxene | K118: 0.593 | L118: 0 | M118: 3.139 | N118: 0 | O118: 0 | P118: 0 | Q118: 0.129 | R118: 0 | S118: 0 | T118: 0 | U118: 4.685 | V118: 2.039 | W118: 0 | X118: 3.707 | Y118: 0 | Z118: 25.303 | AA118: 0.113 | AB118: 3.344 | AC118: 0 | AD118: 0 | AE118: 0 | AF118: 0 | AG118: 0 | AH118: 0 | AI118: 52.139 | AJ118: 0 | AK118: 0 | AL118: 0 | AM118: 0 | AN118: 0.143 | AO118: 0 | AP118: 0 | AQ118: 0 | AR118: 0 | AS118: 0 | AT118: 95.334
A119: 1 | B119: 21250 | C119: PYROXENE | D119: LOW QUALITY | E119: PIGEONITE | F119: LOW QUALITY | G119: OMPHACITE | H119: (Ca0.2Na0.2Mg0.6)Σ1.0(Fe0.1Mg0.8)Σ0.9(Si1.9)Σ1.9O5.6 | I119: Carvalho 1997 | J119: Clinopyroxene | K119: 0.93 | L119: 0 | M119: 4.005 | N119: 0 | O119: 0 | P119: 0 | Q119: 0.707 | R119: 0 | S119: 0 | T119: 0 | U119: 3.52 | V119: 2.032 | W119: 0 | X119: 3.487 | Y119: 0 | Z119: 26.288 | AA119: 0.013 | AB119: 2.757 | AC119: 0 | AD119: 0 | AE119: 0 | AF119: 0 | AG119: 0 | AH119: 0 | AI119: 50.788 | AJ119: 0 | AK119: 0 | AL119: 0 | AM119: 0 | AN119: 0.318 | AO119: 0 | AP119: 0 | AQ119: 0 | AR119: 0 | AS119: 0 | AT119: 94.845
A120: 1 | B120: 21251 | C120: PYROXENE | D120: LOW QUALITY | E120: PIGEONITE | F120: LOW QUALITY | G120: OMPHACITE | H120: (Ca0.2Na0.2Mg0.6)Σ1.0(Fe0.1Mg0.7)Σ0.8(Si1.9)Σ1.9O5.7 | I120: Carvalho 1997 | J120: Clinopyroxene | K120: 0.624 | L120: 0 | M120: 4.484 | N120: 0 | O120: 0 | P120: 0 | Q120: 0.75 | R120: 0 | S120: 0 | T120: 0 | U120: 2.893 | V120: 2.084 | W120: 0 | X120: 4.05 | Y120: 0 | Z120: 24.398 | AA120: 0.027 | AB120: 3.408 | AC120: 0 | AD120: 0 | AE120: 0 | AF120: 0 | AG120: 0 | AH120: 0 | AI120: 53.867 | AJ120: 0 | AK120: 0 | AL120: 0 | AM120: 0 | AN120: 0.413 | AO120: 0 | AP120: 0 | AQ120: 0 | AR120: 0 | AS120: 0 | AT120: 96.998
A121: 1 | B121: 21252 | C121: PYROXENE | D121: LOW QUALITY | E121: PIGEONITE | F121: LOW QUALITY | G121: OMPHACITE | H121: (Ca0.1Na0.3Mg0.6)Σ1.0(Fe0.1Mg0.8)Σ0.9(Si1.9)Σ1.9O5.6 | I121: Carvalho 1997 | J121: Clinopyroxene | K121: 0.654 | L121: 0 | M121: 3.277 | N121: 0 | O121: 0 | P121: 0 | Q121: 0.733 | R121: 0 | S121: 0 | T121: 0 | U121: 3.716 | V121: 2.043 | W121: 0 | X121: 3.718 | Y121: 0 | Z121: 25.157 | AA121: 0.058 | AB121: 3.72 | AC121: 0 | AD121: 0 | AE121: 0 | AF121: 0 | AG121: 0 | AH121: 0 | AI121: 52.084 | AJ121: 0 | AK121: 0 | AL121: 0 | AM121: 0 | AN121: 0.253 | AO121: 0 | AP121: 0 | AQ121: 0 | AR121: 0 | AS121: 0 | AT121: 95.413
A122: 1 | B122: 21253 | C122: PYROXENE | D122: LOW QUALITY | E122: PIGEONITE | F122: LOW QUALITY | G122: OMPHACITE | H122: (Ca0.1Na0.3Mg0.6)Σ1.0(Fe0.1Mg0.7)Σ0.8(Al0.1Si1.9)Σ2.0O5.7 | I122: Carvalho 1997 | J122: Clinopyroxene | K122: 1.197 | L122: 0 | M122: 2.817 | N122: 0 | O122: 0 | P122: 0 | Q122: 0.822 | R122: 0 | S122: 0 | T122: 0 | U122: 3.72 | V122: 2.063 | W122: 0 | X122: 3.724 | Y122: 0 | Z122: 24.55 | AA122: 0.064 | AB122: 3.698 | AC122: 0 | AD122: 0 | AE122: 0 | AF122: 0 | AG122: 0 | AH122: 0 | AI122: 52.943 | AJ122: 0 | AK122: 0 | AL122: 0 | AM122: 0 | AN122: 0.37 | AO122: 0 | AP122: 0 | AQ122: 0 | AR122: 0 | AS122: 0 | AT122: 95.968
A123: 1 | B123: 21254 | C123: PYROXENE | D123: LOW QUALITY | E123: PIGEONITE | F123: LOW QUALITY | G123: OMPHACITE | H123: (Ca0.1Na0.2Fe0.1Mg0.6)Σ1.0(Fe0.1Mg0.9)Σ1.0(Al0.1Si1.8)Σ1.9O5.7 | I123: Carvalho 1997 | J123: Clinopyroxene | K123: 1.717 | L123: 0 | M123: 3.17 | N123: 0 | O123: 0 | P123: 0 | Q123: 0.794 | R123: 0 | S123: 0 | T123: 0 | U123: 3.791 | V123: 2.015 | W123: 0 | X123: 2.775 | Y123: 0 | Z123: 27.241 | AA123: 0.073 | AB123: 2.467 | AC123: 0 | AD123: 0 | AE123: 0 | AF123: 0 | AG123: 0 | AH123: 0 | AI123: 49.302 | AJ123: 0 | AK123: 0 | AL123: 0 | AM123: 0 | AN123: 0.394 | AO123: 0 | AP123: 0 | AQ123: 0 | AR123: 0 | AS123: 0 | AT123: 93.739
A124: 1 | B124: 21255 | C124: PYROXENE | D124: LOW QUALITY | E124: ENSTATITE/CLINOENSTATITE | F124: LOW QUALITY | G124: PIGEONITE | H124: (Ca0.2Na0.3Mg0.5)Σ1.0(Fe0.1Mg0.7)Σ0.8(Si2.0)Σ2.0O5.7 | I124: Carvalho 1997 | J124: Clinopyroxene | K124: 0.287 | L124: 0 | M124: 4.199 | N124: 0 | O124: 0 | P124: 0 | Q124: 0.142 | R124: 0 | S124: 0 | T124: 0 | U124: 4.334 | V124: 2.097 | W124: 0 | X124: 4.589 | Y124: 0 | Z124: 22.798 | AA124: 0.073 | AB124: 3.938 | AC124: 0 | AD124: 0 | AE124: 0 | AF124: 0 | AG124: 0 | AH124: 0 | AI124: 55.587 | AJ124: 0 | AK124: 0 | AL124: 0 | AM124: 0 | AN124: 0.078 | AO124: 0 | AP124: 0 | AQ124: 0 | AR124: 0 | AS124: 0 | AT124: 98.122
A125: 1 | B125: 21256 | C125: PYROXENE | D125: LOW QUALITY | E125: PIGEONITE | F125: LOW QUALITY | G125: ENSTATITE/CLINOENSTATITE | H125: (Ca0.1Na0.3Fe0.1Mg0.5)Σ1.0(Fe0.2Mg0.8)Σ1.0(Si2.0)Σ2.0O5.7 | I125: Carvalho 1997 | J125: Clinopyroxene | K125: 0.334 | L125: 0 | M125: 2.251 | N125: 0 | O125: 0 | P125: 0 | Q125: 0.126 | R125: 0 | S125: 0 | T125: 0 | U125: 6.252 | V125: 2.014 | W125: 0 | X125: 3.519 | Y125: 0 | Z125: 23.656 | AA125: 0.104 | AB125: 3.517 | AC125: 0 | AD125: 0 | AE125: 0 | AF125: 0 | AG125: 0 | AH125: 0 | AI125: 52.528 | AJ125: 0 | AK125: 0 | AL125: 0 | AM125: 0 | AN125: 0.062 | AO125: 0 | AP125: 0 | AQ125: 0 | AR125: 0 | AS125: 0 | AT125: 94.363
A126: 1 | B126: 21257 | C126: PYROXENE | D126: LOW QUALITY | E126: ENSTATITE/CLINOENSTATITE | F126: LOW QUALITY | G126: PIGEONITE | H126: (Ca0.2Na0.2Fe0.1Mg0.5)Σ1.0(Fe0.1Mg0.7)Σ0.8(Si2.0)Σ2.0O5.7 | I126: Carvalho 1997 | J126: Clinopyroxene | K126: 0.328 | L126: 0 | M126: 5.413 | N126: 0 | O126: 0 | P126: 0 | Q126: 0.163 | R126: 0 | S126: 0 | T126: 0 | U126: 4.898 | V126: 2.101 | W126: 0 | X126: 4.624 | Y126: 0 | Z126: 22.154 | AA126: 0.041 | AB126: 3.385 | AC126: 0 | AD126: 0 | AE126: 0 | AF126: 0 | AG126: 0 | AH126: 0 | AI126: 55.555 | AJ126: 0 | AK126: 0 | AL126: 0 | AM126: 0 | AN126: 0.088 | AO126: 0 | AP126: 0 | AQ126: 0 | AR126: 0 | AS126: 0 | AT126: 98.75
A127: 0 | B127: 4331 | C127: GARNET | D127: MEDIUM QUALITY | E127: PYROPE | F127: MEDIUM QUALITY | G127: GROSSULAR | H127: (Ca0.4Fe0.5Mg2.0)2.9(Cr0.2Al1.6)1.8(Si3.2O2.0)Σ3.2 | I127: Donatti et al. 2013 | J127: Clinopyroxene | K127: 19.03 | L127: 0 | M127: 5.48 | N127: 0 | O127: 0 | P127: 0 | Q127: 3.72 | R127: 0 | S127: 0 | T127: 0 | U127: 7.54 | V127: 0 | W127: 0 | X127: 0 | Y127: 0 | Z127: 18.98 | AA127: 0.14 | AB127: 0 | AC127: 0 | AD127: 0 | AE127: 0 | AF127: 0 | AG127: 0 | AH127: 0 | AI127: 45.19 | AJ127: 0 | AK127: 0 | AL127: 0 | AM127: 0 | AN127: 0.77 | AO127: 0 | AP127: 0 | AQ127: 0 | AR127: 0 | AS127: 0 | AT127: 100.85
A128: 0 | B128: 4332 | C128: GARNET | D128: MEDIUM QUALITY | E128: PYROPE | F128: MEDIUM QUALITY | G128: GROSSULAR | H128: (Ca0.5Fe0.5Mg1.8)2.8(Cr0.3Al1.6)1.9(Si3.3O2.0)Σ3.3 | I128: Donatti et al. 2013 | J128: Clinopyroxene | K128: 18.55 | L128: 0 | M128: 6.55 | N128: 0 | O128: 0 | P128: 0 | Q128: 5.16 | R128: 0 | S128: 0 | T128: 0 | U128: 7.87 | V128: 0 | W128: 0 | X128: 0 | Y128: 0 | Z128: 16.95 | AA128: 0.29 | AB128: 0 | AC128: 0 | AD128: 0 | AE128: 0 | AF128: 0 | AG128: 0 | AH128: 0 | AI128: 45.43 | AJ128: 0 | AK128: 0 | AL128: 0 | AM128: 0 | AN128: 0 | AO128: 0 | AP128: 0 | AQ128: 0 | AR128: 0 | AS128: 0 | AT128: 100.8
A129: 0 | B129: 4333 | C129: GARNET | D129: MEDIUM QUALITY | E129: PYROPE | F129: MEDIUM QUALITY | G129: GROSSULAR | H129: (Ca0.4Fe0.4Mg2.0)2.8(Cr0.3Al1.6)1.9(Si3.3O2.0)Σ3.3 | I129: Donatti et al. 2013 | J129: Clinopyroxene | K129: 18.88 | L129: 0 | M129: 5.44 | N129: 0 | O129: 0 | P129: 0 | Q129: 4.91 | R129: 0 | S129: 0 | T129: 0 | U129: 7.02 | V129: 0 | W129: 0 | X129: 0 | Y129: 0 | Z129: 18.55 | AA129: 0.28 | AB129: 0 | AC129: 0 | AD129: 0 | AE129: 0 | AF129: 0 | AG129: 0 | AH129: 0 | AI129: 45.24 | AJ129: 0 | AK129: 0 | AL129: 0 | AM129: 0 | AN129: 0.06 | AO129: 0 | AP129: 0 | AQ129: 0 | AR129: 0 | AS129: 0 | AT129: 100.38
A130: 1 | B130: 16885 | C130: PYROXENE | D130: HIGH QUALITY | E130: DIOPSIDE | F130: MEDIUM QUALITY | G130: AUGITE | H130: (Ca0.9Na0.1)Σ1.0(Al0.1Mg0.9)Σ1.0(Si2.0)Σ2.0O6.0 | I130: Chaves et al. 2009 | J130: Clinopyroxene | K130: 1.72 | L130: 0 | M130: 22.55 | N130: 0 | O130: 0 | P130: 0 | Q130: 1.42 | R130: 0 | S130: 0 | T130: 0 | U130: 1.53 | V130: 0 | W130: 0 | X130: 0 | Y130: 0 | Z130: 16.09 | AA130: 0.12 | AB130: 1.26 | AC130: 0 | AD130: 0 | AE130: 0 | AF130: 0 | AG130: 0 | AH130: 0 | AI130: 55.18 | AJ130: 0 | AK130: 0 | AL130: 0 | AM130: 0 | AN130: 0.08 | AO130: 0 | AP130: 0 | AQ130: 0 | AR130: 0 | AS130: 0 | AT130: 99.95
A131: 1 | B131: 16886 | C131: PYROXENE | D131: HIGH QUALITY | E131: DIOPSIDE | F131: MEDIUM QUALITY | G131: TITAN-AUGITE | H131: (Ca0.8Na0.1Mg0.1)Σ1.0(Al0.1Fe0.1Mg0.7)Σ0.9(Si2.0)Σ2.0O6.0 | I131: Chaves et al. 2009 | J131: Clinopyroxene | K131: 2.43 | L131: 0 | M131: 21.36 | N131: 0 | O131: 0 | P131: 0 | Q131: 1.69 | R131: 0 | S131: 0 | T131: 0 | U131: 1.95 | V131: 0 | W131: 0 | X131: 0 | Y131: 0 | Z131: 15.2 | AA131: 0.06 | AB131: 1.86 | AC131: 0 | AD131: 0 | AE131: 0 | AF131: 0 | AG131: 0 | AH131: 0 | AI131: 54.41 | AJ131: 0 | AK131: 0 | AL131: 0 | AM131: 0 | AN131: 0.17 | AO131: 0 | AP131: 0 | AQ131: 0 | AR131: 0 | AS131: 0 | AT131: 99.13
A132: 1 | B132: 16887 | C132: PYROXENE | D132: HIGH QUALITY | E132: DIOPSIDE | F132: MEDIUM QUALITY | G132: AUGITE | H132: (Ca0.7Na0.1Mg0.2)Σ1.0(Al0.1Fe0.1Mg0.8)Σ1.0(Si2.0)Σ2.0O6.0 | I132: Chaves et al. 2009 | J132: Clinopyroxene | K132: 1.38 | L132: 0 | M132: 18.21 | N132: 0 | O132: 0 | P132: 0 | Q132: 2.22 | R132: 0 | S132: 0 | T132: 0 | U132: 2.98 | V132: 0 | W132: 0 | X132: 0 | Y132: 0 | Z132: 18.64 | AA132: 0.11 | AB132: 1.18 | AC132: 0 | AD132: 0 | AE132: 0 | AF132: 0 | AG132: 0 | AH132: 0 | AI132: 54.61 | AJ132: 0 | AK132: 0 | AL132: 0 | AM132: 0 | AN132: 0.2 | AO132: 0 | AP132: 0 | AQ132: 0 | AR132: 0 | AS132: 0 | AT132: 99.53
A133: 1 | B133: 16888 | C133: PYROXENE | D133: HIGH QUALITY | E133: OMPHACITE | F133: MEDIUM QUALITY | G133: DIOPSIDE | H133: (Ca0.6Na0.1Mg0.3)Σ1.0(Al0.1Fe0.1Mg0.8)Σ1.0(Si2.0)Σ2.0O6.0 | I133: Chaves et al. 2009 | J133: Clinopyroxene | K133: 2.04 | L133: 0 | M133: 14.47 | N133: 0 | O133: 0 | P133: 0 | Q133: 0.6 | R133: 0 | S133: 0 | T133: 0 | U133: 5.14 | V133: 0 | W133: 0 | X133: 0 | Y133: 0 | Z133: 20.97 | AA133: 0.15 | AB133: 0.87 | AC133: 0 | AD133: 0 | AE133: 0 | AF133: 0 | AG133: 0 | AH133: 0 | AI133: 54.62 | AJ133: 0 | AK133: 0 | AL133: 0 | AM133: 0 | AN133: 0.24 | AO133: 0 | AP133: 0 | AQ133: 0 | AR133: 0 | AS133: 0 | AT133: 99.1
A134: 1 | B134: 16889 | C134: PYROXENE | D134: HIGH QUALITY | E134: DIOPSIDE | F134: MEDIUM QUALITY | G134: OMPHACITE | H134: (Ca0.9Na0.1)Σ1.0(Al0.1Mg0.8)Σ0.9(Si2.0)Σ2.0O6.0 | I134: Chaves et al. 2009 | J134: Clinopyroxene | K134: 2.37 | L134: 0 | M134: 22.05 | N134: 0 | O134: 0 | P134: 0 | Q134: 1.61 | R134: 0 | S134: 0 | T134: 0 | U134: 1.39 | V134: 0 | W134: 0 | X134: 0 | Y134: 0 | Z134: 15.42 | AA134: 0.07 | AB134: 1.53 | AC134: 0 | AD134: 0 | AE134: 0 | AF134: 0 | AG134: 0 | AH134: 0 | AI134: 54.51 | AJ134: 0 | AK134: 0 | AL134: 0 | AM134: 0 | AN134: 0.04 | AO134: 0 | AP134: 0 | AQ134: 0 | AR134: 0 | AS134: 0 | AT134: 98.99
A135: 1 | B135: 16890 | C135: PYROXENE | D135: HIGH QUALITY | E135: DIOPSIDE | F135: MEDIUM QUALITY | G135: OMPHACITE | H135: (Ca0.9Na0.1)Σ1.0(Al0.1Mg0.8)Σ0.9(Si2.0)Σ2.0O6.0 | I135: Chaves et al. 2009 | J135: Clinopyroxene | K135: 1.77 | L135: 0 | M135: 22.5 | N135: 0 | O135: 0 | P135: 0 | Q135: 1.56 | R135: 0 | S135: 0 | T135: 0 | U135: 1.56 | V135: 0 | W135: 0 | X135: 0 | Y135: 0 | Z135: 15.54 | AA135: 0.08 | AB135: 1.37 | AC135: 0 | AD135: 0 | AE135: 0 | AF135: 0 | AG135: 0 | AH135: 0 | AI135: 54.73 | AJ135: 0 | AK135: 0 | AL135: 0 | AM135: 0 | AN135: 0.04 | AO135: 0 | AP135: 0 | AQ135: 0 | AR135: 0 | AS135: 0 | AT135: 99.15
A136: 1 | B136: 16891 | C136: PYROXENE | D136: HIGH QUALITY | E136: OMPHACITE | F136: MEDIUM QUALITY | G136: DIOPSIDE | H136: (Ca0.5Na0.1Mg0.4)Σ1.0(Al0.1Fe0.1Mg0.7)Σ0.9(Si2.0)Σ2.0O6.0 | I136: Chaves et al. 2009 | J136: Clinopyroxene | K136: 3.43 | L136: 0 | M136: 11.96 | N136: 0 | O136: 0 | P136: 0 | Q136: 1.05 | R136: 0 | S136: 0 | T136: 0 | U136: 4.65 | V136: 0 | W136: 0 | X136: 0 | Y136: 0 | Z136: 20.5 | AA136: 0.16 | AB136: 1.73 | AC136: 0 | AD136: 0 | AE136: 0 | AF136: 0 | AG136: 0 | AH136: 0 | AI136: 54.86 | AJ136: 0 | AK136: 0 | AL136: 0 | AM136: 0 | AN136: 0.22 | AO136: 0 | AP136: 0 | AQ136: 0 | AR136: 0 | AS136: 0 | AT136: 98.56
A137: 1 | B137: 16892 | C137: PYROXENE | D137: HIGH QUALITY | E137: DIOPSIDE | F137: MEDIUM QUALITY | G137: OMPHACITE | H137: (Ca0.8Na0.1Mg0.1)Σ1.0(Al0.1Mg0.8)Σ0.9(Si2.0)Σ2.0O6.0 | I137: Chaves et al. 2009 | J137: Clinopyroxene | K137: 1.67 | L137: 0 | M137: 20.99 | N137: 0 | O137: 0 | P137: 0 | Q137: 2.39 | R137: 0 | S137: 0 | T137: 0 | U137: 1.63 | V137: 0 | W137: 0 | X137: 0 | Y137: 0 | Z137: 15.66 | AA137: 0.06 | AB137: 1.75 | AC137: 0 | AD137: 0 | AE137: 0 | AF137: 0 | AG137: 0 | AH137: 0 | AI137: 54.72 | AJ137: 0 | AK137: 0 | AL137: 0 | AM137: 0 | AN137: 0.04 | AO137: 0 | AP137: 0 | AQ137: 0 | AR137: 0 | AS137: 0 | AT137: 98.91
A138: 1 | B138: 16893 | C138: PYROXENE | D138: HIGH QUALITY | E138: DIOPSIDE | F138: MEDIUM QUALITY | G138: AUGITE | H138: (Ca0.9Na0.1)Σ1.0(Fe0.1Mg0.9)Σ1.0(Si2.0)Σ2.0O6.0 | I138: Chaves et al. 2009 | J138: Clinopyroxene | K138: 0.15 | L138: 0 | M138: 22.85 | N138: 0 | O138: 0 | P138: 0 | Q138: 1.55 | R138: 0 | S138: 0 | T138: 0 | U138: 2.61 | V138: 0 | W138: 0 | X138: 0 | Y138: 0 | Z138: 16.13 | AA138: 0.08 | AB138: 0.98 | AC138: 0 | AD138: 0 | AE138: 0 | AF138: 0 | AG138: 0 | AH138: 0 | AI138: 54.72 | AJ138: 0 | AK138: 0 | AL138: 0 | AM138: 0 | AN138: 0.11 | AO138: 0 | AP138: 0 | AQ138: 0 | AR138: 0 | AS138: 0 | AT138: 99.18
A139: 1 | B139: 16894 | C139: PYROXENE | D139: HIGH QUALITY | E139: DIOPSIDE | F139: MEDIUM QUALITY | G139: OMPHACITE | H139: (Ca0.7Na0.3)Σ1.0(Fe0.1Al0.1Mg0.8)Σ1.0(Si2.0)Σ2.0O5.9 | I139: Thomaz 2009 | J139: Clinopyroxene | K139: 1.79 | L139: 0 | M139: 18.55 | N139: 0 | O139: 0 | P139: 0 | Q139: 3.89 | R139: 0 | S139: 0 | T139: 0 | U139: 3 | V139: 0 | W139: 0 | X139: 0 | Y139: 0 | Z139: 14.26 | AA139: 0.13 | AB139: 3.61 | AC139: 0 | AD139: 0 | AE139: 0.06 | AF139: 0 | AG139: 0 | AH139: 0 | AI139: 54.85 | AJ139: 0 | AK139: 0 | AL139: 0 | AM139: 0 | AN139: 0.12 | AO139: 0 | AP139: 0 | AQ139: 0 | AR139: 0 | AS139: 0 | AT139: 100.26
A140: 1 | B140: 16895 | C140: PYROXENE | D140: HIGH QUALITY | E140: DIOPSIDE | F140: MEDIUM QUALITY | G140: OMPHACITE | H140: (Ca0.7Na0.2Mg0.1)Σ1.0(Al0.1Mg0.6)Σ0.7(Si2.0)Σ2.0O6.0 | I140: Thomaz 2009 | J140: Clinopyroxene | K140: 2.31 | L140: 0 | M140: 18.31 | N140: 0 | O140: 0 | P140: 0 | Q140: 3.93 | R140: 0 | S140: 0 | T140: 0 | U140: 2.75 | V140: 0 | W140: 0 | X140: 0 | Y140: 0 | Z140: 13.79 | AA140: 0.06 | AB140: 3.49 | AC140: 0 | AD140: 0 | AE140: 0 | AF140: 0 | AG140: 0 | AH140: 0 | AI140: 54.7 | AJ140: 0 | AK140: 0 | AL140: 0 | AM140: 0 | AN140: 0.11 | AO140: 0 | AP140: 0 | AQ140: 0 | AR140: 0 | AS140: 0 | AT140: 99.45
A141: 1 | B141: 16896 | C141: PYROXENE | D141: HIGH QUALITY | E141: DIOPSIDE | F141: MEDIUM QUALITY | G141: OMPHACITE | H141: (Ca0.7Na0.3)Σ1.0(Fe0.1Al0.1Mg0.8)Σ1.0(Si2.0)Σ2.0O6.0 | I141: Thomaz 2009 | J141: Clinopyroxene | K141: 2.13 | L141: 0 | M141: 18.3 | N141: 0 | O141: 0 | P141: 0 | Q141: 4.2 | R141: 0 | S141: 0 | T141: 0 | U141: 2.83 | V141: 0 | W141: 0 | X141: 0 | Y141: 0 | Z141: 13.97 | AA141: 0.06 | AB141: 3.66 | AC141: 0 | AD141: 0 | AE141: 0.04 | AF141: 0 | AG141: 0 | AH141: 0 | AI141: 54.75 | AJ141: 0 | AK141: 0 | AL141: 0 | AM141: 0 | AN141: 0.15 | AO141: 0 | AP141: 0 | AQ141: 0 | AR141: 0 | AS141: 0 | AT141: 100.09
A142: 1 | B142: 16897 | C142: PYROXENE | D142: HIGH QUALITY | E142: DIOPSIDE | F142: MEDIUM QUALITY | G142: ENSTATITE/CLINOENSTATITE | H142: (Ca0.8Na0.1Mg0.1)Σ1.0(Al0.1Fe0.1Mg0.8)Σ1.0(Si2.0)Σ2.0O6.0 | I142: Thomaz 2009 | J142: Clinopyroxene | K142: 1.31 | L142: 0 | M142: 20.97 | N142: 0 | O142: 0 | P142: 0 | Q142: 1.55 | R142: 0 | S142: 0 | T142: 0 | U142: 2.47 | V142: 0 | W142: 0 | X142: 0 | Y142: 0 | Z142: 17.51 | AA142: 0.08 | AB142: 1.13 | AC142: 0 | AD142: 0 | AE142: 0.07 | AF142: 0 | AG142: 0 | AH142: 0 | AI142: 55.06 | AJ142: 0 | AK142: 0 | AL142: 0 | AM142: 0 | AN142: 0 | AO142: 0 | AP142: 0 | AQ142: 0 | AR142: 0 | AS142: 0 | AT142: 100.15
A143: 1 | B143: 16898 | C143: PYROXENE | D143: HIGH QUALITY | E143: DIOPSIDE | F143: MEDIUM QUALITY | G143: ENSTATITE/CLINOENSTATITE | H143: (Ca0.8Na0.1Mg0.1)Σ1.0(Al0.1Fe0.1Mg0.8)Σ1.0(Si2.0)Σ2.0O6.0 | I143: Thomaz 2009 | J143: Clinopyroxene | K143: 1.3 | L143: 0 | M143: 20.96 | N143: 0 | O143: 0 | P143: 0 | Q143: 1.68 | R143: 0 | S143: 0 | T143: 0 | U143: 2.65 | V143: 0 | W143: 0 | X143: 0 | Y143: 0 | Z143: 17.65 | AA143: 0.05 | AB143: 1.16 | AC143: 0 | AD143: 0 | AE143: 0.08 | AF143: 0 | AG143: 0 | AH143: 0 | AI143: 55.03 | AJ143: 0 | AK143: 0 | AL143: 0 | AM143: 0 | AN143: 0.01 | AO143: 0 | AP143: 0 | AQ143: 0 | AR143: 0 | AS143: 0 | AT143: 100.57
A144: 1 | B144: 16899 | C144: PYROXENE | D144: HIGH QUALITY | E144: DIOPSIDE | F144: MEDIUM QUALITY | G144: ENSTATITE/CLINOENSTATITE | H144: (Ca0.8Na0.1Mg0.1)Σ1.0(Al0.1Fe0.1Mg0.9)Σ1.1(Si2.0)Σ2.0O6.0 | I144: Thomaz 2009 | J144: Clinopyroxene | K144: 1.32 | L144: 0 | M144: 20.44 | N144: 0 | O144: 0 | P144: 0 | Q144: 1.64 | R144: 0 | S144: 0 | T144: 0 | U144: 2.5 | V144: 0 | W144: 0 | X144: 0 | Y144: 0 | Z144: 17.55 | AA144: 0.08 | AB144: 1.15 | AC144: 0 | AD144: 0 | AE144: 0.06 | AF144: 0 | AG144: 0 | AH144: 0 | AI144: 54.86 | AJ144: 0 | AK144: 0 | AL144: 0 | AM144: 0 | AN144: 0.03 | AO144: 0 | AP144: 0 | AQ144: 0 | AR144: 0 | AS144: 0 | AT144: 99.63
A145: 1 | B145: 16900 | C145: PYROXENE | D145: HIGH QUALITY | E145: DIOPSIDE | F145: MEDIUM QUALITY | G145: OMPHACITE | H145: (Ca0.7Na0.1Mg0.2)Σ1.0(Al0.1Fe0.1Mg0.8)Σ1.0(Si2.0)Σ2.0O6.0 | I145: Thomaz 2009 | J145: Clinopyroxene | K145: 1.75 | L145: 0 | M145: 18.81 | N145: 0 | O145: 0 | P145: 0 | Q145: 1.36 | R145: 0 | S145: 0 | T145: 0 | U145: 2.89 | V145: 0 | W145: 0 | X145: 0 | Y145: 0 | Z145: 18.63 | AA145: 0.08 | AB145: 1.13 | AC145: 0 | AD145: 0 | AE145: 0.05 | AF145: 0 | AG145: 0 | AH145: 0 | AI145: 54.92 | AJ145: 0 | AK145: 0 | AL145: 0 | AM145: 0 | AN145: 0.02 | AO145: 0 | AP145: 0 | AQ145: 0 | AR145: 0 | AS145: 0 | AT145: 99.64
A146: 1 | B146: 16901 | C146: PYROXENE | D146: HIGH QUALITY | E146: DIOPSIDE | F146: MEDIUM QUALITY | G146: OMPHACITE | H146: (Ca0.7Na0.1Mg0.2)Σ1.0(Al0.1Fe0.1Mg0.8)Σ1.0(Si2.0)Σ2.0O6.0 | I146: Thomaz 2009 | J146: Clinopyroxene | K146: 1.77 | L146: 0 | M146: 19.13 | N146: 0 | O146: 0 | P146: 0 | Q146: 1.02 | R146: 0 | S146: 0 | T146: 0 | U146: 3.21 | V146: 0 | W146: 0 | X146: 0 | Y146: 0 | Z146: 18.59 | AA146: 0.12 | AB146: 1.15 | AC146: 0 | AD146: 0 | AE146: 0.1 | AF146: 0 | AG146: 0 | AH146: 0 | AI146: 55.95 | AJ146: 0 | AK146: 0 | AL146: 0 | AM146: 0 | AN146: 0.05 | AO146: 0 | AP146: 0 | AQ146: 0 | AR146: 0 | AS146: 0 | AT146: 101.09
A147: 1 | B147: 16904 | C147: PYROXENE | D147: HIGH QUALITY | E147: DIOPSIDE | F147: MEDIUM QUALITY | G147: OMPHACITE | H147: (Ca0.8Na0.1Mg0.1)Σ1.0(Al0.1Mg0.9)Σ1.0(Si2.0)Σ2.0O6.0 | I147: Thomaz 2009 | J147: Clinopyroxene | K147: 1.57 | L147: 0 | M147: 20.09 | N147: 0 | O147: 0 | P147: 0 | Q147: 1.71 | R147: 0 | S147: 0 | T147: 0 | U147: 2.52 | V147: 0 | W147: 0 | X147: 0 | Y147: 0 | Z147: 18.4 | AA147: 0.08 | AB147: 1.26 | AC147: 0 | AD147: 0 | AE147: 0.11 | AF147: 0 | AG147: 0 | AH147: 0 | AI147: 55.01 | AJ147: 0 | AK147: 0 | AL147: 0 | AM147: 0 | AN147: 0.05 | AO147: 0 | AP147: 0 | AQ147: 0 | AR147: 0 | AS147: 0 | AT147: 100.8
A148: 1 | B148: 16905 | C148: PYROXENE | D148: HIGH QUALITY | E148: DIOPSIDE | F148: MEDIUM QUALITY | G148: ENSTATITE/CLINOENSTATITE | H148: (Ca0.8Na0.1Mg0.1)Σ1.0(Al0.1Mg0.9)Σ1.0(Si2.0)Σ2.0O6.0 | I148: Thomaz 2009 | J148: Clinopyroxene | K148: 1.6 | L148: 0 | M148: 20.26 | N148: 0 | O148: 0 | P148: 0 | Q148: 1.71 | R148: 0 | S148: 0 | T148: 0 | U148: 2.76 | V148: 0 | W148: 0 | X148: 0 | Y148: 0 | Z148: 18.29 | AA148: 0.06 | AB148: 1.23 | AC148: 0 | AD148: 0 | AE148: 0.06 | AF148: 0 | AG148: 0 | AH148: 0 | AI148: 54.84 | AJ148: 0 | AK148: 0 | AL148: 0 | AM148: 0 | AN148: 0.02 | AO148: 0 | AP148: 0 | AQ148: 0 | AR148: 0 | AS148: 0 | AT148: 100.83
A149: 1 | B149: 16906 | C149: PYROXENE | D149: HIGH QUALITY | E149: DIOPSIDE | F149: MEDIUM QUALITY | G149: TITAN-AUGITE | H149: (Ca0.7Na0.1Mg0.2)Σ1.0(Al0.1Fe0.1Mg0.8)Σ1.0(Si2.0)Σ2.0O6.0 | I149: Thomaz 2009 | J149: Clinopyroxene | K149: 2.16 | L149: 0 | M149: 18.64 | N149: 0 | O149: 0 | P149: 0 | Q149: 1.16 | R149: 0 | S149: 0 | T149: 0 | U149: 2.82 | V149: 0 | W149: 0 | X149: 0 | Y149: 0 | Z149: 18.46 | AA149: 0.13 | AB149: 1.2 | AC149: 0 | AD149: 0 | AE149: 0.05 | AF149: 0 | AG149: 0 | AH149: 0 | AI149: 55.31 | AJ149: 0 | AK149: 0 | AL149: 0 | AM149: 0 | AN149: 0.05 | AO149: 0 | AP149: 0 | AQ149: 0 | AR149: 0 | AS149: 0 | AT149: 99.98
A150: 1 | B150: 16907 | C150: PYROXENE | D150: HIGH QUALITY | E150: DIOPSIDE | F150: MEDIUM QUALITY | G150: ENSTATITE/CLINOENSTATITE | H150: (Ca0.8Na0.1Mg0.1)Σ1.0(Al0.1Mg0.8)Σ0.9(Si2.0)Σ2.0O6.0 | I150: Thomaz 2009 | J150: Clinopyroxene | K150: 1.3 | L150: 0 | M150: 22.08 | N150: 0 | O150: 0 | P150: 0 | Q150: 1.39 | R150: 0 | S150: 0 | T150: 0 | U150: 2.27 | V150: 0 | W150: 0 | X150: 0 | Y150: 0 | Z150: 17.5 | AA150: 0.1 | AB150: 1.14 | AC150: 0 | AD150: 0 | AE150: 0.07 | AF150: 0 | AG150: 0 | AH150: 0 | AI150: 55.3 | AJ150: 0 | AK150: 0 | AL150: 0 | AM150: 0 | AN150: 0.01 | AO150: 0 | AP150: 0 | AQ150: 0 | AR150: 0 | AS150: 0 | AT150: 101.16
A151: 1 | B151: 16908 | C151: PYROXENE | D151: HIGH QUALITY | E151: DIOPSIDE | F151: MEDIUM QUALITY | G151: OMPHACITE | H151: (Ca0.8Na0.1Mg0.1)Σ1.0(Al0.1Fe0.1Mg0.9)Σ1.1(Si2.0)Σ2.0O6.0 | I151: Thomaz 2009 | J151: Clinopyroxene | K151: 1.47 | L151: 0 | M151: 20.79 | N151: 0 | O151: 0 | P151: 0 | Q151: 1.38 | R151: 0 | S151: 0 | T151: 0 | U151: 2.59 | V151: 0 | W151: 0 | X151: 0 | Y151: 0 | Z151: 18.02 | AA151: 0.06 | AB151: 1.12 | AC151: 0 | AD151: 0 | AE151: 0 | AF151: 0 | AG151: 0 | AH151: 0 | AI151: 55.57 | AJ151: 0 | AK151: 0 | AL151: 0 | AM151: 0 | AN151: 0.03 | AO151: 0 | AP151: 0 | AQ151: 0 | AR151: 0 | AS151: 0 | AT151: 101.03
A152: 1 | B152: 16909 | C152: PYROXENE | D152: HIGH QUALITY | E152: DIOPSIDE | F152: MEDIUM QUALITY | G152: OMPHACITE | H152: (Ca0.7Na0.1Mg0.2)Σ1.0(Al0.1Fe0.1Mg0.8)Σ1.0(Si2.0)Σ2.0O6.0 | I152: Thomaz 2009 | J152: Clinopyroxene | K152: 2.1 | L152: 0 | M152: 18.82 | N152: 0 | O152: 0 | P152: 0 | Q152: 1.35 | R152: 0 | S152: 0 | T152: 0 | U152: 3.03 | V152: 0 | W152: 0 | X152: 0 | Y152: 0 | Z152: 18.76 | AA152: 0.1 | AB152: 1.26 | AC152: 0 | AD152: 0 | AE152: 0.11 | AF152: 0 | AG152: 0 | AH152: 0 | AI152: 55.32 | AJ152: 0 | AK152: 0 | AL152: 0 | AM152: 0 | AN152: 0.03 | AO152: 0 | AP152: 0 | AQ152: 0 | AR152: 0 | AS152: 0 | AT152: 100.88
A153: 1 | B153: 16912 | C153: PYROXENE | D153: HIGH QUALITY | E153: DIOPSIDE | F153: MEDIUM QUALITY | G153: OMPHACITE | H153: (Ca0.7Na0.3)Σ1.0(Al0.1Fe0.1Mg0.7)Σ0.9(Si2.0)Σ2.0O6.0 | I153: Thomaz 2009 | J153: Clinopyroxene | K153: 2.53 | L153: 0 | M153: 18.06 | N153: 0 | O153: 0 | P153: 0 | Q153: 3.75 | R153: 0 | S153: 0 | T153: 0 | U153: 2.81 | V153: 0 | W153: 0 | X153: 0 | Y153: 0 | Z153: 13.49 | AA153: 0.03 | AB153: 3.67 | AC153: 0 | AD153: 0 | AE153: 0.04 | AF153: 0 | AG153: 0 | AH153: 0 | AI153: 55.05 | AJ153: 0 | AK153: 0 | AL153: 0 | AM153: 0 | AN153: 0.08 | AO153: 0 | AP153: 0 | AQ153: 0 | AR153: 0 | AS153: 0 | AT153: 99.51
A154: 1 | B154: 16922 | C154: PYROXENE | D154: HIGH QUALITY | E154: DIOPSIDE | F154: MEDIUM QUALITY | G154: TITAN-AUGITE | H154: (Ca0.8Na0.2)Σ1.0(Al0.1Mg0.8)Σ0.9(Si2.0)Σ2.0O6.0 | I154: Thomaz 2009 | J154: Clinopyroxene | K154: 2.67 | L154: 0 | M154: 20.18 | N154: 0 | O154: 0 | P154: 0 | Q154: 2.32 | R154: 0 | S154: 0 | T154: 0 | U154: 1.39 | V154: 0 | W154: 0 | X154: 0 | Y154: 0 | Z154: 15.05 | AA154: 0.06 | AB154: 2.67 | AC154: 0 | AD154: 0 | AE154: 0.03 | AF154: 0 | AG154: 0 | AH154: 0 | AI154: 54.37 | AJ154: 0 | AK154: 0 | AL154: 0 | AM154: 0 | AN154: 0.16 | AO154: 0 | AP154: 0 | AQ154: 0 | AR154: 0 | AS154: 0 | AT154: 98.9
A155: 1 | B155: 16923 | C155: PYROXENE | D155: HIGH QUALITY | E155: DIOPSIDE | F155: MEDIUM QUALITY | G155: OMPHACITE | H155: (Ca0.8Na0.2)Σ1.0(Al0.1Mg0.8)Σ0.9(Si2.0)Σ2.0O6.0 | I155: Thomaz 2009 | J155: Clinopyroxene | K155: 2.62 | L155: 0 | M155: 20.63 | N155: 0 | O155: 0 | P155: 0 | Q155: 2.52 | R155: 0 | S155: 0 | T155: 0 | U155: 1.42 | V155: 0 | W155: 0 | X155: 0 | Y155: 0 | Z155: 15.13 | AA155: 0.07 | AB155: 2.65 | AC155: 0 | AD155: 0 | AE155: 0.04 | AF155: 0 | AG155: 0 | AH155: 0 | AI155: 54.84 | AJ155: 0 | AK155: 0 | AL155: 0 | AM155: 0 | AN155: 0.13 | AO155: 0 | AP155: 0 | AQ155: 0 | AR155: 0 | AS155: 0 | AT155: 100.05
A156: 1 | B156: 16924 | C156: PYROXENE | D156: HIGH QUALITY | E156: DIOPSIDE | F156: MEDIUM QUALITY | G156: TITAN-AUGITE | H156: (Ca0.8Na0.2)Σ1.0(Fe0.1Al0.1Mg0.8)Σ1.0(Si2.0)Σ2.0O6.0 | I156: Thomaz 2009 | J156: Clinopyroxene | K156: 2.8 | L156: 0 | M156: 20.1 | N156: 0 | O156: 0 | P156: 0 | Q156: 2.71 | R156: 0 | S156: 0 | T156: 0 | U156: 1.83 | V156: 0 | W156: 0 | X156: 0 | Y156: 0 | Z156: 14.71 | AA156: 0 | AB156: 2.98 | AC156: 0 | AD156: 0 | AE156: 0.05 | AF156: 0 | AG156: 0 | AH156: 0 | AI156: 54.72 | AJ156: 0 | AK156: 0 | AL156: 0 | AM156: 0 | AN156: 0.14 | AO156: 0 | AP156: 0 | AQ156: 0 | AR156: 0 | AS156: 0 | AT156: 100.04
A157: 1 | B157: 16925 | C157: PYROXENE | D157: HIGH QUALITY | E157: DIOPSIDE | F157: MEDIUM QUALITY | G157: AUGITE | H157: (Ca0.9Na0.1)Σ1.0(Fe0.1Mg0.9)Σ1.0(Si2.0)Σ2.0O6.0 | I157: Thomaz 2009 | J157: Clinopyroxene | K157: 0.21 | L157: 0 | M157: 22.8 | N157: 0 | O157: 0 | P157: 0 | Q157: 1.82 | R157: 0 | S157: 0 | T157: 0 | U157: 2.88 | V157: 0 | W157: 0 | X157: 0 | Y157: 0 | Z157: 16.61 | AA157: 0.07 | AB157: 1.25 | AC157: 0 | AD157: 0 | AE157: 0.03 | AF157: 0 | AG157: 0 | AH157: 0 | AI157: 55.03 | AJ157: 0 | AK157: 0 | AL157: 0 | AM157: 0 | AN157: 0.09 | AO157: 0 | AP157: 0 | AQ157: 0 | AR157: 0 | AS157: 0 | AT157: 100.79
A158: 1 | B158: 16926 | C158: PYROXENE | D158: HIGH QUALITY | E158: DIOPSIDE | F158: MEDIUM QUALITY | G158: AUGITE | H158: (Ca0.8Na0.2)Σ1.0(Fe0.1Mg0.8)Σ0.9(Si2.0)Σ2.0O6.0 | I158: Thomaz 2009 | J158: Clinopyroxene | K158: 1.14 | L158: 0 | M158: 21.48 | N158: 0 | O158: 0 | P158: 0 | Q158: 2.15 | R158: 0 | S158: 0 | T158: 0 | U158: 2.77 | V158: 0 | W158: 0 | X158: 0 | Y158: 0 | Z158: 15.54 | AA158: 0.09 | AB158: 2.29 | AC158: 0 | AD158: 0 | AE158: 0 | AF158: 0 | AG158: 0 | AH158: 0 | AI158: 54.97 | AJ158: 0 | AK158: 0 | AL158: 0 | AM158: 0 | AN158: 0.06 | AO158: 0 | AP158: 0 | AQ158: 0 | AR158: 0 | AS158: 0 | AT158: 100.49
A159: 1 | B159: 16927 | C159: PYROXENE | D159: HIGH QUALITY | E159: DIOPSIDE | F159: MEDIUM QUALITY | G159: AUGITE | H159: (Ca0.9Na0.1)Σ1.0(Fe0.1Mg0.9)Σ1.0(Si2.0)Σ2.0O6.0 | I159: Thomaz 2009 | J159: Clinopyroxene | K159: 0.3 | L159: 0 | M159: 22.17 | N159: 0 | O159: 0 | P159: 0 | Q159: 1.09 | R159: 0 | S159: 0 | T159: 0 | U159: 3.54 | V159: 0 | W159: 0 | X159: 0 | Y159: 0 | Z159: 16.66 | AA159: 0.07 | AB159: 1.26 | AC159: 0 | AD159: 0 | AE159: 0.09 | AF159: 0 | AG159: 0 | AH159: 0 | AI159: 55.01 | AJ159: 0 | AK159: 0 | AL159: 0 | AM159: 0 | AN159: 0.21 | AO159: 0 | AP159: 0 | AQ159: 0 | AR159: 0 | AS159: 0 | AT159: 100.4
A160: 1 | B160: 16928 | C160: PYROXENE | D160: HIGH QUALITY | E160: DIOPSIDE | F160: LOW QUALITY | G160: OMPHACITE | H160: (Ca0.6Na0.1Mg0.3)Σ1.0(Al0.1Fe0.1Mg0.7)Σ0.9(Si2.0)Σ2.0O6.0 | I160: Thomaz 2009 | J160: Clinopyroxene | K160: 2.52 | L160: 0 | M160: 16.42 | N160: 0 | O160: 0 | P160: 0 | Q160: 0.93 | R160: 0 | S160: 0 | T160: 0 | U160: 4.69 | V160: 0 | W160: 0 | X160: 0 | Y160: 0 | Z160: 18.84 | AA160: 0.15 | AB160: 1.4 | AC160: 0 | AD160: 0 | AE160: 0.09 | AF160: 0 | AG160: 0 | AH160: 0 | AI160: 54.71 | AJ160: 0 | AK160: 0 | AL160: 0 | AM160: 0 | AN160: 0.43 | AO160: 0 | AP160: 0 | AQ160: 0 | AR160: 0 | AS160: 0 | AT160: 100.18
A161: 1 | B161: 16929 | C161: PYROXENE | D161: HIGH QUALITY | E161: DIOPSIDE | F161: LOW QUALITY | G161: OMPHACITE | H161: (Ca0.6Na0.1Mg0.3)Σ1.0(Al0.1Fe0.1Mg0.7)Σ0.9(Si2.0)Σ2.0O6.0 | I161: Thomaz 2009 | J161: Clinopyroxene | K161: 2.46 | L161: 0 | M161: 15.71 | N161: 0 | O161: 0 | P161: 0 | Q161: 0.93 | R161: 0 | S161: 0 | T161: 0 | U161: 4.77 | V161: 0 | W161: 0 | X161: 0 | Y161: 0 | Z161: 19.08 | AA161: 0.15 | AB161: 1.33 | AC161: 0 | AD161: 0 | AE161: 0.07 | AF161: 0 | AG161: 0 | AH161: 0 | AI161: 54.71 | AJ161: 0 | AK161: 0 | AL161: 0 | AM161: 0 | AN161: 0.47 | AO161: 0 | AP161: 0 | AQ161: 0 | AR161: 0 | AS161: 0 | AT161: 99.68
A162: 1 | B162: 16932 | C162: PYROXENE | D162: HIGH QUALITY | E162: OMPHACITE | F162: MEDIUM QUALITY | G162: DIOPSIDE | H162: (Ca0.6Na0.1Mg0.3)Σ1.0(Al0.1Fe0.1Mg0.7)Σ0.9(Si2.0)Σ2.0O6.0 | I162: Thomaz 2009 | J162: Clinopyroxene | K162: 2.55 | L162: 0 | M162: 15.32 | N162: 0 | O162: 0 | P162: 0 | Q162: 0.85 | R162: 0 | S162: 0 | T162: 0 | U162: 4.8 | V162: 0 | W162: 0 | X162: 0 | Y162: 0 | Z162: 19.4 | AA162: 0.12 | AB162: 1.41 | AC162: 0 | AD162: 0 | AE162: 0.07 | AF162: 0 | AG162: 0 | AH162: 0 | AI162: 55.13 | AJ162: 0 | AK162: 0 | AL162: 0 | AM162: 0 | AN162: 0.42 | AO162: 0 | AP162: 0 | AQ162: 0 | AR162: 0 | AS162: 0 | AT162: 100.07
A163: 1 | B163: 16945 | C163: PYROXENE | D163: HIGH QUALITY | E163: DIOPSIDE | F163: LOW QUALITY | G163: OMPHACITE | H163: (Ca0.6Na0.1Mg0.3)Σ1.0(Al0.1Fe0.1Mg0.7)Σ0.9(Si2.0)Σ2.0O6.0 | I163: Thomaz 2009 | J163: Clinopyroxene | K163: 2.47 | L163: 0 | M163: 16.52 | N163: 0 | O163: 0 | P163: 0 | Q163: 0.98 | R163: 0 | S163: 0 | T163: 0 | U163: 4.52 | V163: 0 | W163: 0 | X163: 0 | Y163: 0 | Z163: 18.82 | AA163: 0.15 | AB163: 1.39 | AC163: 0 | AD163: 0 | AE163: 0.07 | AF163: 0 | AG163: 0 | AH163: 0 | AI163: 54.58 | AJ163: 0 | AK163: 0 | AL163: 0 | AM163: 0 | AN163: 0.42 | AO163: 0 | AP163: 0 | AQ163: 0 | AR163: 0 | AS163: 0 | AT163: 99.92
A164: 1 | B164: 16946 | C164: PYROXENE | D164: HIGH QUALITY | E164: OMPHACITE | F164: MEDIUM QUALITY | G164: DIOPSIDE | H164: (Ca0.6Na0.1Mg0.3)Σ1.0(Al0.1Fe0.1Mg0.8)Σ1.0(Si2.0)Σ2.0O6.0 | I164: Thomaz 2009 | J164: Clinopyroxene | K164: 2.36 | L164: 0 | M164: 14.79 | N164: 0 | O164: 0 | P164: 0 | Q164: 0.86 | R164: 0 | S164: 0 | T164: 0 | U164: 5.16 | V164: 0 | W164: 0 | X164: 0 | Y164: 0 | Z164: 20 | AA164: 0.19 | AB164: 1.36 | AC164: 0 | AD164: 0 | AE164: 0.04 | AF164: 0 | AG164: 0 | AH164: 0 | AI164: 54.85 | AJ164: 0 | AK164: 0 | AL164: 0 | AM164: 0 | AN164: 0.38 | AO164: 0 | AP164: 0 | AQ164: 0 | AR164: 0 | AS164: 0 | AT164: 99.99
A165: 1 | B165: 16947 | C165: PYROXENE | D165: HIGH QUALITY | E165: DIOPSIDE | F165: LOW QUALITY | G165: OMPHACITE | H165: (Ca0.6Na0.1Mg0.3)Σ1.0(Al0.1Fe0.1Mg0.7)Σ0.9(Si2.0)Σ2.0O6.0 | I165: Thomaz 2009 | J165: Clinopyroxene | K165: 2.47 | L165: 0 | M165: 16.07 | N165: 0 | O165: 0 | P165: 0 | Q165: 0.92 | R165: 0 | S165: 0 | T165: 0 | U165: 4.53 | V165: 0 | W165: 0 | X165: 0 | Y165: 0 | Z165: 18.95 | AA165: 0.15 | AB165: 1.34 | AC165: 0 | AD165: 0 | AE165: 0.06 | AF165: 0 | AG165: 0 | AH165: 0 | AI165: 54.95 | AJ165: 0 | AK165: 0 | AL165: 0 | AM165: 0 | AN165: 0.45 | AO165: 0 | AP165: 0 | AQ165: 0 | AR165: 0 | AS165: 0 | AT165: 99.89
A166: 1 | B166: 16948 | C166: PYROXENE | D166: HIGH QUALITY | E166: DIOPSIDE | F166: MEDIUM QUALITY | G166: OMPHACITE | H166: (Ca0.6Na0.1Mg0.3)Σ1.0(Al0.1Fe0.1Mg0.7)Σ0.9(Si2.0)Σ2.0O6.0 | I166: Thomaz 2009 | J166: Clinopyroxene | K166: 2.49 | L166: 0 | M166: 16.55 | N166: 0 | O166: 0 | P166: 0 | Q166: 0.91 | R166: 0 | S166: 0 | T166: 0 | U166: 4.72 | V166: 0 | W166: 0 | X166: 0 | Y166: 0 | Z166: 18.91 | AA166: 0.13 | AB166: 1.43 | AC166: 0 | AD166: 0 | AE166: 0.08 | AF166: 0 | AG166: 0 | AH166: 0 | AI166: 54.36 | AJ166: 0 | AK166: 0 | AL166: 0 | AM166: 0 | AN166: 0.4 | AO166: 0 | AP166: 0 | AQ166: 0 | AR166: 0 | AS166: 0 | AT166: 99.98
A167: 1 | B167: 16949 | C167: PYROXENE | D167: HIGH QUALITY | E167: DIOPSIDE | F167: MEDIUM QUALITY | G167: OMPHACITE | H167: (Ca0.6Na0.1Mg0.3)Σ1.0(Al0.1Fe0.1Mg0.7)Σ0.9(Si2.0)Σ2.0O6.0 | I167: Thomaz 2009 | J167: Clinopyroxene | K167: 2.45 | L167: 0 | M167: 16.44 | N167: 0 | O167: 0 | P167: 0 | Q167: 1.11 | R167: 0 | S167: 0 | T167: 0 | U167: 4.77 | V167: 0 | W167: 0 | X167: 0 | Y167: 0 | Z167: 18.82 | AA167: 0.17 | AB167: 1.42 | AC167: 0 | AD167: 0 | AE167: 0.05 | AF167: 0 | AG167: 0 | AH167: 0 | AI167: 54.64 | AJ167: 0 | AK167: 0 | AL167: 0 | AM167: 0 | AN167: 0.51 | AO167: 0 | AP167: 0 | AQ167: 0 | AR167: 0 | AS167: 0 | AT167: 100.38
A168: 1 | B168: 16950 | C168: PYROXENE | D168: HIGH QUALITY | E168: DIOPSIDE | F168: MEDIUM QUALITY | G168: OMPHACITE | H168: (Ca0.6Na0.1Mg0.3)Σ1.0(Al0.1Fe0.1Mg0.7)Σ0.9(Si2.0)Σ2.0O6.0 | I168: Thomaz 2009 | J168: Clinopyroxene | K168: 2.47 | L168: 0 | M168: 16.04 | N168: 0 | O168: 0 | P168: 0 | Q168: 1.01 | R168: 0 | S168: 0 | T168: 0 | U168: 4.7 | V168: 0 | W168: 0 | X168: 0 | Y168: 0 | Z168: 19 | AA168: 0.15 | AB168: 1.38 | AC168: 0 | AD168: 0 | AE168: 0.05 | AF168: 0 | AG168: 0 | AH168: 0 | AI168: 54.32 | AJ168: 0 | AK168: 0 | AL168: 0 | AM168: 0 | AN168: 0.42 | AO168: 0 | AP168: 0 | AQ168: 0 | AR168: 0 | AS168: 0 | AT168: 99.54
A169: 1 | B169: 16951 | C169: PYROXENE | D169: HIGH QUALITY | E169: DIOPSIDE | F169: MEDIUM QUALITY | G169: OMPHACITE | H169: (Ca0.7Na0.1Mg0.2)Σ1.0(Al0.1Mg0.8)Σ0.9(Si2.0)Σ2.0O6.0 | I169: Thomaz 2009 | J169: Clinopyroxene | K169: 1.85 | L169: 0 | M169: 19.2 | N169: 0 | O169: 0 | P169: 0 | Q169: 1.67 | R169: 0 | S169: 0 | T169: 0 | U169: 2.77 | V169: 0 | W169: 0 | X169: 0 | Y169: 0 | Z169: 18.82 | AA169: 0.1 | AB169: 1.2 | AC169: 0 | AD169: 0 | AE169: 0.06 | AF169: 0 | AG169: 0 | AH169: 0 | AI169: 55.08 | AJ169: 0 | AK169: 0 | AL169: 0 | AM169: 0 | AN169: 0.04 | AO169: 0 | AP169: 0 | AQ169: 0 | AR169: 0 | AS169: 0 | AT169: 100.79
A170: 1 | B170: 16952 | C170: PYROXENE | D170: HIGH QUALITY | E170: DIOPSIDE | F170: MEDIUM QUALITY | G170: OMPHACITE | H170: (Ca0.7Na0.1Mg0.2)Σ1.0(Al0.1Mg0.8)Σ0.9(Si2.0)Σ2.0O6.0 | I170: Thomaz 2009 | J170: Clinopyroxene | K170: 1.74 | L170: 0 | M170: 19.15 | N170: 0 | O170: 0 | P170: 0 | Q170: 1.25 | R170: 0 | S170: 0 | T170: 0 | U170: 2.91 | V170: 0 | W170: 0 | X170: 0 | Y170: 0 | Z170: 19.13 | AA170: 0.1 | AB170: 1.12 | AC170: 0 | AD170: 0 | AE170: 0.08 | AF170: 0 | AG170: 0 | AH170: 0 | AI170: 54.77 | AJ170: 0 | AK170: 0 | AL170: 0 | AM170: 0 | AN170: 0 | AO170: 0 | AP170: 0 | AQ170: 0 | AR170: 0 | AS170: 0 | AT170: 100.25
A171: 1 | B171: 16953 | C171: PYROXENE | D171: HIGH QUALITY | E171: DIOPSIDE | F171: MEDIUM QUALITY | G171: OMPHACITE | H171: (Ca0.7Na0.1Mg0.2)Σ1.0(Al0.1Mg0.8)Σ0.9(Si2.0)Σ2.0O6.0 | I171: Thomaz 2009 | J171: Clinopyroxene | K171: 1.9 | L171: 0 | M171: 18.93 | N171: 0 | O171: 0 | P171: 0 | Q171: 1.27 | R171: 0 | S171: 0 | T171: 0 | U171: 2.77 | V171: 0 | W171: 0 | X171: 0 | Y171: 0 | Z171: 18.91 | AA171: 0.13 | AB171: 1.12 | AC171: 0 | AD171: 0 | AE171: 0.06 | AF171: 0 | AG171: 0 | AH171: 0 | AI171: 54.63 | AJ171: 0 | AK171: 0 | AL171: 0 | AM171: 0 | AN171: 0.03 | AO171: 0 | AP171: 0 | AQ171: 0 | AR171: 0 | AS171: 0 | AT171: 99.75
A172: 1 | B172: 16954 | C172: PYROXENE | D172: HIGH QUALITY | E172: DIOPSIDE | F172: MEDIUM QUALITY | G172: OMPHACITE | H172: (Ca0.7Na0.1Mg0.2)Σ1.0(Al0.1Mg0.8)Σ0.9(Si2.0)Σ2.0O6.0 | I172: Thomaz 2009 | J172: Clinopyroxene | K172: 1.87 | L172: 0 | M172: 19.19 | N172: 0 | O172: 0 | P172: 0 | Q172: 1.27 | R172: 0 | S172: 0 | T172: 0 | U172: 2.79 | V172: 0 | W172: 0 | X172: 0 | Y172: 0 | Z172: 18.91 | AA172: 0.11 | AB172: 1.15 | AC172: 0 | AD172: 0 | AE172: 0.09 | AF172: 0 | AG172: 0 | AH172: 0 | AI172: 54.56 | AJ172: 0 | AK172: 0 | AL172: 0 | AM172: 0 | AN172: 0 | AO172: 0 | AP172: 0 | AQ172: 0 | AR172: 0 | AS172: 0 | AT172: 99.94
A173: 1 | B173: 16955 | C173: PYROXENE | D173: HIGH QUALITY | E173: DIOPSIDE | F173: MEDIUM QUALITY | G173: ENSTATITE/CLINOENSTATITE | H173: (Ca0.7Na0.1Mg0.2)Σ1.0(Al0.1Mg0.8)Σ0.9(Si2.0)Σ2.0O6.0 | I173: Thomaz 2009 | J173: Clinopyroxene | K173: 1.85 | L173: 0 | M173: 19.12 | N173: 0 | O173: 0 | P173: 0 | Q173: 1.41 | R173: 0 | S173: 0 | T173: 0 | U173: 2.85 | V173: 0 | W173: 0 | X173: 0 | Y173: 0 | Z173: 19 | AA173: 0.08 | AB173: 1.19 | AC173: 0 | AD173: 0 | AE173: 0.03 | AF173: 0 | AG173: 0 | AH173: 0 | AI173: 54.98 | AJ173: 0 | AK173: 0 | AL173: 0 | AM173: 0 | AN173: 0.01 | AO173: 0 | AP173: 0 | AQ173: 0 | AR173: 0 | AS173: 0 | AT173: 100.52
A174: 1 | B174: 16956 | C174: PYROXENE | D174: HIGH QUALITY | E174: DIOPSIDE | F174: MEDIUM QUALITY | G174: ENSTATITE/CLINOENSTATITE | H174: (Ca0.8Na0.1Mg0.1)Σ1.0(Al0.1Mg0.9)Σ1.0(Si2.0)Σ2.0O6.0 | I174: Thomaz 2009 | J174: Clinopyroxene | K174: 1.28 | L174: 0 | M174: 20.49 | N174: 0 | O174: 0 | P174: 0 | Q174: 1.33 | R174: 0 | S174: 0 | T174: 0 | U174: 2.55 | V174: 0 | W174: 0 | X174: 0 | Y174: 0 | Z174: 18.66 | AA174: 0.05 | AB174: 0.98 | AC174: 0 | AD174: 0 | AE174: 0.09 | AF174: 0 | AG174: 0 | AH174: 0 | AI174: 55.13 | AJ174: 0 | AK174: 0 | AL174: 0 | AM174: 0 | AN174: 0.01 | AO174: 0 | AP174: 0 | AQ174: 0 | AR174: 0 | AS174: 0 | AT174: 100.57
A175: 1 | B175: 16957 | C175: PYROXENE | D175: HIGH QUALITY | E175: DIOPSIDE | F175: MEDIUM QUALITY | G175: OMPHACITE | H175: (Ca0.7Na0.1Mg0.2)Σ1.0(Al0.1Fe0.1Mg0.8)Σ1.0(Si2.0)Σ2.0O6.0 | I175: Thomaz 2009 | J175: Clinopyroxene | K175: 1.7 | L175: 0 | M175: 19.23 | N175: 0 | O175: 0 | P175: 0 | Q175: 1.24 | R175: 0 | S175: 0 | T175: 0 | U175: 2.7 | V175: 0 | W175: 0 | X175: 0 | Y175: 0 | Z175: 18.88 | AA175: 0.09 | AB175: 1.09 | AC175: 0 | AD175: 0 | AE175: 0.06 | AF175: 0 | AG175: 0 | AH175: 0 | AI175: 54.92 | AJ175: 0 | AK175: 0 | AL175: 0 | AM175: 0 | AN175: 0.04 | AO175: 0 | AP175: 0 | AQ175: 0 | AR175: 0 | AS175: 0 | AT175: 99.95
A176: 1 | B176: 16958 | C176: PYROXENE | D176: HIGH QUALITY | E176: DIOPSIDE | F176: MEDIUM QUALITY | G176: OMPHACITE | H176: (Ca0.7Na0.1Mg0.2)Σ1.0(Al0.1Mg0.8)Σ0.9(Si2.0)Σ2.0O6.0 | I176: Thomaz 2009 | J176: Clinopyroxene | K176: 1.62 | L176: 0 | M176: 19.4 | N176: 0 | O176: 0 | P176: 0 | Q176: 1.39 | R176: 0 | S176: 0 | T176: 0 | U176: 2.76 | V176: 0 | W176: 0 | X176: 0 | Y176: 0 | Z176: 19.06 | AA176: 0.12 | AB176: 1.1 | AC176: 0 | AD176: 0 | AE176: 0.04 | AF176: 0 | AG176: 0 | AH176: 0 | AI176: 54.73 | AJ176: 0 | AK176: 0 | AL176: 0 | AM176: 0 | AN176: 0.02 | AO176: 0 | AP176: 0 | AQ176: 0 | AR176: 0 | AS176: 0 | AT176: 100.24
A177: 1 | B177: 16959 | C177: PYROXENE | D177: HIGH QUALITY | E177: DIOPSIDE | F177: MEDIUM QUALITY | G177: OMPHACITE | H177: (Ca0.7Na0.1Mg0.2)Σ1.0(Al0.1Mg0.8)Σ0.9(Si2.0)Σ2.0O6.0 | I177: Thomaz 2009 | J177: Clinopyroxene | K177: 1.66 | L177: 0 | M177: 19.14 | N177: 0 | O177: 0 | P177: 0 | Q177: 1.24 | R177: 0 | S177: 0 | T177: 0 | U177: 2.83 | V177: 0 | W177: 0 | X177: 0 | Y177: 0 | Z177: 19.12 | AA177: 0.07 | AB177: 1.07 | AC177: 0 | AD177: 0 | AE177: 0.08 | AF177: 0 | AG177: 0 | AH177: 0 | AI177: 54.61 | AJ177: 0 | AK177: 0 | AL177: 0 | AM177: 0 | AN177: 0.02 | AO177: 0 | AP177: 0 | AQ177: 0 | AR177: 0 | AS177: 0 | AT177: 99.84
A178: 1 | B178: 16960 | C178: PYROXENE | D178: HIGH QUALITY | E178: DIOPSIDE | F178: MEDIUM QUALITY | G178: OMPHACITE | H178: (Ca0.8Na0.1Mg0.1)Σ1.0(Al0.1Mg0.9)Σ1.0(Si2.0)Σ2.0O6.0 | I178: Thomaz 2009 | J178: Clinopyroxene | K178: 1.51 | L178: 0 | M178: 19.61 | N178: 0 | O178: 0 | P178: 0 | Q178: 1.29 | R178: 0 | S178: 0 | T178: 0 | U178: 2.74 | V178: 0 | W178: 0 | X178: 0 | Y178: 0 | Z178: 19.17 | AA178: 0.11 | AB178: 1.01 | AC178: 0 | AD178: 0 | AE178: 0.07 | AF178: 0 | AG178: 0 | AH178: 0 | AI178: 54.93 | AJ178: 0 | AK178: 0 | AL178: 0 | AM178: 0 | AN178: 0 | AO178: 0 | AP178: 0 | AQ178: 0 | AR178: 0 | AS178: 0 | AT178: 100.44
A179: 1 | B179: 16961 | C179: PYROXENE | D179: HIGH QUALITY | E179: DIOPSIDE | F179: MEDIUM QUALITY | G179: OMPHACITE | H179: (Ca0.7Na0.1Mg0.2)Σ1.0(Al0.1Fe0.1Mg0.8)Σ1.0(Si2.0)Σ2.0O6.0 | I179: Thomaz 2009 | J179: Clinopyroxene | K179: 1.88 | L179: 0 | M179: 18.96 | N179: 0 | O179: 0 | P179: 0 | Q179: 1.18 | R179: 0 | S179: 0 | T179: 0 | U179: 2.81 | V179: 0 | W179: 0 | X179: 0 | Y179: 0 | Z179: 18.77 | AA179: 0.11 | AB179: 1.11 | AC179: 0 | AD179: 0 | AE179: 0.06 | AF179: 0 | AG179: 0 | AH179: 0 | AI179: 55.03 | AJ179: 0 | AK179: 0 | AL179: 0 | AM179: 0 | AN179: 0.02 | AO179: 0 | AP179: 0 | AQ179: 0 | AR179: 0 | AS179: 0 | AT179: 99.93
A180: 1 | B180: 16962 | C180: PYROXENE | D180: HIGH QUALITY | E180: DIOPSIDE | F180: MEDIUM QUALITY | G180: OMPHACITE | H180: (Ca0.7Na0.1Mg0.2)Σ1.0(Al0.1Mg0.8)Σ0.9(Si2.0)Σ2.0O6.0 | I180: Thomaz 2009 | J180: Clinopyroxene | K180: 1.54 | L180: 0 | M180: 19.21 | N180: 0 | O180: 0 | P180: 0 | Q180: 1.54 | R180: 0 | S180: 0 | T180: 0 | U180: 2.64 | V180: 0 | W180: 0 | X180: 0 | Y180: 0 | Z180: 18.94 | AA180: 0.08 | AB180: 1.12 | AC180: 0 | AD180: 0 | AE180: 0.09 | AF180: 0 | AG180: 0 | AH180: 0 | AI180: 54.62 | AJ180: 0 | AK180: 0 | AL180: 0 | AM180: 0 | AN180: 0.01 | AO180: 0 | AP180: 0 | AQ180: 0 | AR180: 0 | AS180: 0 | AT180: 99.79
A181: 1 | B181: 16963 | C181: PYROXENE | D181: HIGH QUALITY | E181: DIOPSIDE | F181: MEDIUM QUALITY | G181: ENSTATITE/CLINOENSTATITE | H181: (Ca0.8Na0.1Mg0.1)Σ1.0(Al0.1Fe0.1Mg0.9)Σ1.1(Si2.0)Σ2.0O6.0 | I181: Thomaz 2009 | J181: Clinopyroxene | K181: 1.33 | L181: 0 | M181: 20.19 | N181: 0 | O181: 0 | P181: 0 | Q181: 1.39 | R181: 0 | S181: 0 | T181: 0 | U181: 2.5 | V181: 0 | W181: 0 | X181: 0 | Y181: 0 | Z181: 18.45 | AA181: 0.08 | AB181: 1.04 | AC181: 0 | AD181: 0 | AE181: 0.08 | AF181: 0 | AG181: 0 | AH181: 0 | AI181: 55.3 | AJ181: 0 | AK181: 0 | AL181: 0 | AM181: 0 | AN181: 0.04 | AO181: 0 | AP181: 0 | AQ181: 0 | AR181: 0 | AS181: 0 | AT181: 100.4
A182: 1 | B182: 16964 | C182: PYROXENE | D182: HIGH QUALITY | E182: DIOPSIDE | F182: MEDIUM QUALITY | G182: OMPHACITE | H182: (Ca0.7Na0.1Mg0.2)Σ1.0(Al0.1Fe0.1Mg0.8)Σ1.0(Si2.0)Σ2.0O6.0 | I182: Thomaz 2009 | J182: Clinopyroxene | K182: 1.87 | L182: 0 | M182: 19.01 | N182: 0 | O182: 0 | P182: 0 | Q182: 1.3 | R182: 0 | S182: 0 | T182: 0 | U182: 2.69 | V182: 0 | W182: 0 | X182: 0 | Y182: 0 | Z182: 18.8 | AA182: 0.08 | AB182: 1.1 | AC182: 0 | AD182: 0 | AE182: 0.06 | AF182: 0 | AG182: 0 | AH182: 0 | AI182: 54.57 | AJ182: 0 | AK182: 0 | AL182: 0 | AM182: 0 | AN182: 0 | AO182: 0 | AP182: 0 | AQ182: 0 | AR182: 0 | AS182: 0 | AT182: 99.48
A183: 1 | B183: 16965 | C183: PYROXENE | D183: HIGH QUALITY | E183: DIOPSIDE | F183: MEDIUM QUALITY | G183: OMPHACITE | H183: (Ca0.8Na0.1Mg0.1)Σ1.0(Al0.1Fe0.1Mg0.9)Σ1.1(Si2.0)Σ2.0O6.0 | I183: Thomaz 2009 | J183: Clinopyroxene | K183: 1.49 | L183: 0 | M183: 19.44 | N183: 0 | O183: 0 | P183: 0 | Q183: 1.32 | R183: 0 | S183: 0 | T183: 0 | U183: 2.72 | V183: 0 | W183: 0 | X183: 0 | Y183: 0 | Z183: 18.68 | AA183: 0.08 | AB183: 1.04 | AC183: 0 | AD183: 0 | AE183: 0.12 | AF183: 0 | AG183: 0 | AH183: 0 | AI183: 55.12 | AJ183: 0 | AK183: 0 | AL183: 0 | AM183: 0 | AN183: 0.02 | AO183: 0 | AP183: 0 | AQ183: 0 | AR183: 0 | AS183: 0 | AT183: 100.03
A184: 1 | B184: 16966 | C184: PYROXENE | D184: HIGH QUALITY | E184: DIOPSIDE | F184: MEDIUM QUALITY | G184: OMPHACITE | H184: (Ca0.8Na0.1Mg0.1)Σ1.0(Al0.1Fe0.1Mg0.9)Σ1.1(Si2.0)Σ2.0O6.0 | I184: Thomaz 2009 | J184: Clinopyroxene | K184: 1.51 | L184: 0 | M184: 19.55 | N184: 0 | O184: 0 | P184: 0 | Q184: 1.22 | R184: 0 | S184: 0 | T184: 0 | U184: 2.52 | V184: 0 | W184: 0 | X184: 0 | Y184: 0 | Z184: 18.56 | AA184: 0.07 | AB184: 1.05 | AC184: 0 | AD184: 0 | AE184: 0.08 | AF184: 0 | AG184: 0 | AH184: 0 | AI184: 54.51 | AJ184: 0 | AK184: 0 | AL184: 0 | AM184: 0 | AN184: 0.01 | AO184: 0 | AP184: 0 | AQ184: 0 | AR184: 0 | AS184: 0 | AT184: 99.08
A185: 1 | B185: 16967 | C185: PYROXENE | D185: HIGH QUALITY | E185: DIOPSIDE | F185: MEDIUM QUALITY | G185: OMPHACITE | H185: (Ca0.7Na0.1Mg0.2)Σ1.0(Al0.1Fe0.1Mg0.8)Σ1.0(Si2.0)Σ2.0O6.0 | I185: Thomaz 2009 | J185: Clinopyroxene | K185: 1.89 | L185: 0 | M185: 19.14 | N185: 0 | O185: 0 | P185: 0 | Q185: 1.56 | R185: 0 | S185: 0 | T185: 0 | U185: 2.93 | V185: 0 | W185: 0 | X185: 0 | Y185: 0 | Z185: 18.81 | AA185: 0.12 | AB185: 1.16 | AC185: 0 | AD185: 0 | AE185: 0.08 | AF185: 0 | AG185: 0 | AH185: 0 | AI185: 55.19 | AJ185: 0 | AK185: 0 | AL185: 0 | AM185: 0 | AN185: 0.04 | AO185: 0 | AP185: 0 | AQ185: 0 | AR185: 0 | AS185: 0 | AT185: 100.92
A186: 1 | B186: 16968 | C186: PYROXENE | D186: HIGH QUALITY | E186: DIOPSIDE | F186: MEDIUM QUALITY | G186: OMPHACITE | H186: (Ca0.7Na0.1Mg0.2)Σ1.0(Al0.1Fe0.1Mg0.8)Σ1.0(Si2.0)Σ2.0O6.0 | I186: Thomaz 2009 | J186: Clinopyroxene | K186: 1.63 | L186: 0 | M186: 19.21 | N186: 0 | O186: 0 | P186: 0 | Q186: 1.15 | R186: 0 | S186: 0 | T186: 0 | U186: 3.04 | V186: 0 | W186: 0 | X186: 0 | Y186: 0 | Z186: 19.14 | AA186: 0.12 | AB186: 1.03 | AC186: 0 | AD186: 0 | AE186: 0.1 | AF186: 0 | AG186: 0 | AH186: 0 | AI186: 55.07 | AJ186: 0 | AK186: 0 | AL186: 0 | AM186: 0 | AN186: 0.04 | AO186: 0 | AP186: 0 | AQ186: 0 | AR186: 0 | AS186: 0 | AT186: 100.53
A187: 1 | B187: 16980 | C187: PYROXENE | D187: HIGH QUALITY | E187: DIOPSIDE | F187: MEDIUM QUALITY | G187: AUGITE | H187: (Ca0.7Na0.1Mg0.2)Σ1.0(Al0.1Mg0.8)Σ0.9(Si2.0)Σ2.0O6.0 | I187: Thomaz 2009 | J187: Clinopyroxene | K187: 2.39 | L187: 0 | M187: 18 | N187: 0 | O187: 0 | P187: 0 | Q187: 1.14 | R187: 0 | S187: 0 | T187: 0 | U187: 3.46 | V187: 0 | W187: 0 | X187: 0 | Y187: 0 | Z187: 18.53 | AA187: 0.15 | AB187: 1.71 | AC187: 0 | AD187: 0 | AE187: 0.09 | AF187: 0 | AG187: 0 | AH187: 0 | AI187: 55.06 | AJ187: 0 | AK187: 0 | AL187: 0 | AM187: 0 | AN187: 0.23 | AO187: 0 | AP187: 0 | AQ187: 0 | AR187: 0 | AS187: 0 | AT187: 100.76
A188: 1 | B188: 16981 | C188: PYROXENE | D188: HIGH QUALITY | E188: DIOPSIDE | F188: MEDIUM QUALITY | G188: OMPHACITE | H188: (Ca0.7Na0.1Mg0.2)Σ1.0(Al0.1Mg0.8)Σ0.9(Si2.0)Σ2.0O6.0 | I188: Thomaz 2009 | J188: Clinopyroxene | K188: 2.37 | L188: 0 | M188: 18.08 | N188: 0 | O188: 0 | P188: 0 | Q188: 1.1 | R188: 0 | S188: 0 | T188: 0 | U188: 3.35 | V188: 0 | W188: 0 | X188: 0 | Y188: 0 | Z188: 18.28 | AA188: 0.09 | AB188: 1.73 | AC188: 0 | AD188: 0 | AE188: 0.07 | AF188: 0 | AG188: 0 | AH188: 0 | AI188: 55.12 | AJ188: 0 | AK188: 0 | AL188: 0 | AM188: 0 | AN188: 0.25 | AO188: 0 | AP188: 0 | AQ188: 0 | AR188: 0 | AS188: 0 | AT188: 100.44
A189: 1 | B189: 16982 | C189: PYROXENE | D189: HIGH QUALITY | E189: DIOPSIDE | F189: MEDIUM QUALITY | G189: ENSTATITE/CLINOENSTATITE | H189: (Ca0.7Na0.1Mg0.2)Σ1.0(Fe0.1Al0.1Mg0.8)Σ1.0(Si2.0)Σ2.0O6.0 | I189: Thomaz 2009 | J189: Clinopyroxene | K189: 2.27 | L189: 0 | M189: 18.31 | N189: 0 | O189: 0 | P189: 0 | Q189: 1.11 | R189: 0 | S189: 0 | T189: 0 | U189: 3.45 | V189: 0 | W189: 0 | X189: 0 | Y189: 0 | Z189: 18.08 | AA189: 0.1 | AB189: 1.72 | AC189: 0 | AD189: 0 | AE189: 0.09 | AF189: 0 | AG189: 0 | AH189: 0 | AI189: 54.53 | AJ189: 0 | AK189: 0 | AL189: 0 | AM189: 0 | AN189: 0.27 | AO189: 0 | AP189: 0 | AQ189: 0 | AR189: 0 | AS189: 0 | AT189: 99.93
A190: 1 | B190: 16983 | C190: PYROXENE | D190: HIGH QUALITY | E190: DIOPSIDE | F190: MEDIUM QUALITY | G190: OMPHACITE | H190: (Ca0.7Na0.1Mg0.2)Σ1.0(Al0.1Fe0.1Mg0.8)Σ1.0(Si2.0)Σ2.0O6.0 | I190: Thomaz 2009 | J190: Clinopyroxene | K190: 2.3 | L190: 0 | M190: 18.61 | N190: 0 | O190: 0 | P190: 0 | Q190: 1.09 | R190: 0 | S190: 0 | T190: 0 | U190: 3.42 | V190: 0 | W190: 0 | X190: 0 | Y190: 0 | Z190: 17.78 | AA190: 0.1 | AB190: 1.65 | AC190: 0 | AD190: 0 | AE190: 0.01 | AF190: 0 | AG190: 0 | AH190: 0 | AI190: 55.04 | AJ190: 0 | AK190: 0 | AL190: 0 | AM190: 0 | AN190: 0.25 | AO190: 0 | AP190: 0 | AQ190: 0 | AR190: 0 | AS190: 0 | AT190: 100.25
A191: 1 | B191: 16984 | C191: PYROXENE | D191: HIGH QUALITY | E191: DIOPSIDE | F191: MEDIUM QUALITY | G191: ENSTATITE/CLINOENSTATITE | H191: (Ca0.7Na0.1Mg0.2)Σ1.0(Al0.1Mg0.8)Σ0.9(Si2.0)Σ2.0O6.0 | I191: Thomaz 2009 | J191: Clinopyroxene | K191: 2.22 | L191: 0 | M191: 18.36 | N191: 0 | O191: 0 | P191: 0 | Q191: 1.05 | R191: 0 | S191: 0 | T191: 0 | U191: 3.38 | V191: 0 | W191: 0 | X191: 0 | Y191: 0 | Z191: 18.1 | AA191: 0.07 | AB191: 1.64 | AC191: 0 | AD191: 0 | AE191: 0.08 | AF191: 0 | AG191: 0 | AH191: 0 | AI191: 54.41 | AJ191: 0 | AK191: 0 | AL191: 0 | AM191: 0 | AN191: 0.27 | AO191: 0 | AP191: 0 | AQ191: 0 | AR191: 0 | AS191: 0 | AT191: 99.58
A192: 1 | B192: 16985 | C192: PYROXENE | D192: HIGH QUALITY | E192: DIOPSIDE | F192: MEDIUM QUALITY | G192: OMPHACITE | H192: (Ca0.7Na0.1Mg0.2)Σ1.0(Al0.1Mg0.8)Σ0.9(Si2.0)Σ2.0O6.0 | I192: Thomaz 2009 | J192: Clinopyroxene | K192: 2.43 | L192: 0 | M192: 17.82 | N192: 0 | O192: 0 | P192: 0 | Q192: 1.36 | R192: 0 | S192: 0 | T192: 0 | U192: 3.24 | V192: 0 | W192: 0 | X192: 0 | Y192: 0 | Z192: 18.34 | AA192: 0.12 | AB192: 1.73 | AC192: 0 | AD192: 0 | AE192: 0.04 | AF192: 0 | AG192: 0 | AH192: 0 | AI192: 54.96 | AJ192: 0 | AK192: 0 | AL192: 0 | AM192: 0 | AN192: 0.23 | AO192: 0 | AP192: 0 | AQ192: 0 | AR192: 0 | AS192: 0 | AT192: 100.27
A193: 1 | B193: 16986 | C193: PYROXENE | D193: HIGH QUALITY | E193: DIOPSIDE | F193: MEDIUM QUALITY | G193: OMPHACITE | H193: (Ca0.7Na0.1Mg0.2)Σ1.0(Al0.1Mg0.8)Σ0.9(Si2.0)Σ2.0O6.0 | I193: Thomaz 2009 | J193: Clinopyroxene | K193: 2.31 | L193: 0 | M193: 18.59 | N193: 0 | O193: 0 | P193: 0 | Q193: 1.33 | R193: 0 | S193: 0 | T193: 0 | U193: 3.18 | V193: 0 | W193: 0 | X193: 0 | Y193: 0 | Z193: 17.97 | AA193: 0.12 | AB193: 1.69 | AC193: 0 | AD193: 0 | AE193: 0.11 | AF193: 0 | AG193: 0 | AH193: 0 | AI193: 54.66 | AJ193: 0 | AK193: 0 | AL193: 0 | AM193: 0 | AN193: 0.26 | AO193: 0 | AP193: 0 | AQ193: 0 | AR193: 0 | AS193: 0 | AT193: 100.22
A194: 1 | B194: 16987 | C194: PYROXENE | D194: HIGH QUALITY | E194: DIOPSIDE | F194: MEDIUM QUALITY | G194: OMPHACITE | H194: (Ca0.7Na0.1Mg0.2)Σ1.0(Al0.1Fe0.1Mg0.8)Σ1.0(Si2.0)Σ2.0O6.0 | I194: Thomaz 2009 | J194: Clinopyroxene | K194: 2.38 | L194: 0 | M194: 17.88 | N194: 0 | O194: 0 | P194: 0 | Q194: 1.24 | R194: 0 | S194: 0 | T194: 0 | U194: 3.62 | V194: 0 | W194: 0 | X194: 0 | Y194: 0 | Z194: 18.34 | AA194: 0.12 | AB194: 1.73 | AC194: 0 | AD194: 0 | AE194: 0.06 | AF194: 0 | AG194: 0 | AH194: 0 | AI194: 55.4 | AJ194: 0 | AK194: 0 | AL194: 0 | AM194: 0 | AN194: 0.26 | AO194: 0 | AP194: 0 | AQ194: 0 | AR194: 0 | AS194: 0 | AT194: 101.03
A195: 1 | B195: 16988 | C195: PYROXENE | D195: HIGH QUALITY | E195: DIOPSIDE | F195: MEDIUM QUALITY | G195: TITAN-AUGITE | H195: (Ca0.7Na0.1Mg0.2)Σ1.0(Fe0.1Al0.1Mg0.8)Σ1.0(Si2.0)Σ2.0O6.0 | I195: Thomaz 2009 | J195: Clinopyroxene | K195: 2.28 | L195: 0 | M195: 18.12 | N195: 0 | O195: 0 | P195: 0 | Q195: 1.13 | R195: 0 | S195: 0 | T195: 0 | U195: 3.71 | V195: 0 | W195: 0 | X195: 0 | Y195: 0 | Z195: 18.57 | AA195: 0.09 | AB195: 1.67 | AC195: 0 | AD195: 0 | AE195: 0.05 | AF195: 0 | AG195: 0 | AH195: 0 | AI195: 54.74 | AJ195: 0 | AK195: 0 | AL195: 0 | AM195: 0 | AN195: 0.22 | AO195: 0 | AP195: 0 | AQ195: 0 | AR195: 0 | AS195: 0 | AT195: 100.58
A196: 1 | B196: 16989 | C196: PYROXENE | D196: HIGH QUALITY | E196: DIOPSIDE | F196: MEDIUM QUALITY | G196: OMPHACITE | H196: (Ca0.7Na0.1Mg0.2)Σ1.0(Al0.1Fe0.1Mg0.8)Σ1.0(Si2.0)Σ2.0O6.0 | I196: Thomaz 2009 | J196: Clinopyroxene | K196: 2.32 | L196: 0 | M196: 18.12 | N196: 0 | O196: 0 | P196: 0 | Q196: 1.34 | R196: 0 | S196: 0 | T196: 0 | U196: 3.33 | V196: 0 | W196: 0 | X196: 0 | Y196: 0 | Z196: 18.02 | AA196: 0.12 | AB196: 1.69 | AC196: 0 | AD196: 0 | AE196: 0.07 | AF196: 0 | AG196: 0 | AH196: 0 | AI196: 54.89 | AJ196: 0 | AK196: 0 | AL196: 0 | AM196: 0 | AN196: 0.28 | AO196: 0 | AP196: 0 | AQ196: 0 | AR196: 0 | AS196: 0 | AT196: 100.18
A197: 1 | B197: 16990 | C197: PYROXENE | D197: HIGH QUALITY | E197: DIOPSIDE | F197: MEDIUM QUALITY | G197: ENSTATITE/CLINOENSTATITE | H197: (Ca0.8Na0.1Mg0.1)Σ1.0(Al0.1Mg0.8)Σ0.9(Si2.0)Σ2.0O6.0 | I197: Thomaz 2009 | J197: Clinopyroxene | K197: 2.2 | L197: 0 | M197: 19.66 | N197: 0 | O197: 0 | P197: 0 | Q197: 1.39 | R197: 0 | S197: 0 | T197: 0 | U197: 3.03 | V197: 0 | W197: 0 | X197: 0 | Y197: 0 | Z197: 17.64 | AA197: 0.09 | AB197: 1.51 | AC197: 0 | AD197: 0 | AE197: 0.04 | AF197: 0 | AG197: 0 | AH197: 0 | AI197: 54.58 | AJ197: 0 | AK197: 0 | AL197: 0 | AM197: 0 | AN197: 0.24 | AO197: 0 | AP197: 0 | AQ197: 0 | AR197: 0 | AS197: 0 | AT197: 100.38
A198: 1 | B198: 16991 | C198: PYROXENE | D198: HIGH QUALITY | E198: DIOPSIDE | F198: MEDIUM QUALITY | G198: TITAN-AUGITE | H198: (Ca0.7Na0.1Mg0.2)Σ1.0(Fe0.1Al0.1Mg0.8)Σ1.0(Si2.0)Σ2.0O6.0 | I198: Thomaz 2009 | J198: Clinopyroxene | K198: 2.3 | L198: 0 | M198: 18 | N198: 0 | O198: 0 | P198: 0 | Q198: 1.14 | R198: 0 | S198: 0 | T198: 0 | U198: 3.44 | V198: 0 | W198: 0 | X198: 0 | Y198: 0 | Z198: 18.32 | AA198: 0.13 | AB198: 1.72 | AC198: 0 | AD198: 0 | AE198: 0.07 | AF198: 0 | AG198: 0 | AH198: 0 | AI198: 54.61 | AJ198: 0 | AK198: 0 | AL198: 0 | AM198: 0 | AN198: 0.24 | AO198: 0 | AP198: 0 | AQ198: 0 | AR198: 0 | AS198: 0 | AT198: 99.97
A199: 1 | B199: 16992 | C199: PYROXENE | D199: HIGH QUALITY | E199: DIOPSIDE | F199: MEDIUM QUALITY | G199: ENSTATITE/CLINOENSTATITE | H199: (Ca0.7Na0.1Mg0.2)Σ1.0(Al0.1Mg0.8)Σ0.9(Si2.0)Σ2.0O6.0 | I199: Thomaz 2009 | J199: Clinopyroxene | K199: 2.21 | L199: 0 | M199: 18.01 | N199: 0 | O199: 0 | P199: 0 | Q199: 1.23 | R199: 0 | S199: 0 | T199: 0 | U199: 3.33 | V199: 0 | W199: 0 | X199: 0 | Y199: 0 | Z199: 18.47 | AA199: 0.09 | AB199: 1.61 | AC199: 0 | AD199: 0 | AE199: 0.08 | AF199: 0 | AG199: 0 | AH199: 0 | AI199: 54.46 | AJ199: 0 | AK199: 0 | AL199: 0 | AM199: 0 | AN199: 0.26 | AO199: 0 | AP199: 0 | AQ199: 0 | AR199: 0 | AS199: 0 | AT199: 99.75
A200: 1 | B200: 16993 | C200: PYROXENE | D200: HIGH QUALITY | E200: DIOPSIDE | F200: MEDIUM QUALITY | G200: TITAN-AUGITE | H200: (Ca0.7Na0.1Mg0.2)Σ1.0(Fe0.1Al0.1Mg0.8)Σ1.0(Si2.0)Σ2.0O6.0 | I200: Thomaz 2009 | J200: Clinopyroxene | K200: 2.32 | L200: 0 | M200: 18.45 | N200: 0 | O200: 0 | P200: 0 | Q200: 1 | R200: 0 | S200: 0 | T200: 0 | U200: 3.45 | V200: 0 | W200: 0 | X200: 0 | Y200: 0 | Z200: 18.18 | AA200: 0.13 | AB200: 1.71 | AC200: 0 | AD200: 0 | AE200: 0.08 | AF200: 0 | AG200: 0 | AH200: 0 | AI200: 54.57 | AJ200: 0 | AK200: 0 | AL200: 0 | AM200: 0 | AN200: 0.27 | AO200: 0 | AP200: 0 | AQ200: 0 | AR200: 0 | AS200: 0 | AT200: 100.16
... 925 more rows

Sheet Table
D11: Group (Mineral) | E11: Instances | F11: Misclassification | G11: Accuracy | I11: Correct Classification | J11: Partial Balanced accuracy
D12: Amphibole | E12: 87 | F12: 13 | G12: =1-(13/87) -> 0.8506 | I12: =G12*E12 -> 74 | J12: =I12/$G$25 -> 0.0033
D13: Clinopyroxene | E13: 3282 | F13: 0 | G13: =1-(0/3282) -> 1.0000 | I13: 3282 | J13: =I13/$G$25 -> 0.1483
D14: Othopyrixene | E14: 1065 | F14: 0 | G14: =1-(0/1065) -> 1.0000 | I14: 1065 | J14: =I14/$G$25 -> 0.0481
D15: Spinel | E15: 5253 | F15: 28 | G15: =1 - (28/5253) -> 0.9947 | I15: 5225 | J15: =I15/$G$25 -> 0.2361
D16: Mica (Flogopite) | E16: 534 | F16: 4 | G16: =1-(4/534) -> 0.9925 | I16: 530 | J16: =I16/$G$25 -> 0.0239
D17: Garnet | E17: 9438 | F17: 52 | G17: =1-(52/9438) -> 0.9945 | I17: 9386 | J17: =I17/$G$25 -> 0.4241
D18: Ilmenite | E18: 996 | F18: 15 | G18: =1-(15/996) -> 0.9849 | I18: 981 | J18: =I18/$G$25 -> 0.0443
D19: Kalsitite | E19: 10 | F19: 3 | G19: =1-(3/10) -> 0.7000 | I19: 7 | J19: =I19/$G$25 -> 0.0003
D20: Olivine (Monticellite) | E20: 40 | F20: 2 | G20: =1-(2/40) -> 0.9500 | I20: 38 | J20: =I20/$G$25 -> 0.0017
D21: Olivine | E21: 1204 | F21: 0 | G21: =1-(0/1204) -> 1.0000 | I21: 1204 | J21: =I21/$G$25 -> 0.0544
D22: Perovskite | E22: 213 | F22: 5 | G22: =1-(5/213) -> 0.9765 | I22: 208 | J22: =I22/$G$25 -> 0.0094
D23: Feldspar (Sanidine) | E23: 12 | F23: 0 | G23: =1-(0/12) -> 1.0000 | I23: 12 | J23: =I23/$G$25 -> 0.0005
D25: Total Mean Accuracy | E25: =AVERAGE(G12:G23) -> 0.9536 | G25: =SUM(E12:E23) -> 22134
D26: Total Balanced Accuracy | E26: =SUM(J12:J23) -> 0.9945
D27: Total Sample Size | E27: =SUM(E12:E23) -> 22134.00
